Ref No,Fund Type,Dept,Cost Centre Description    ,Description    ,Creditor Name    ,GL Code Net Amount,Payment date        
2,Revenue,CAHD,South - Bed Purchasing and Direct payments,Permanent Nursing, Stanley House,6211.88, 19-Nov-2019
3,Revenue,CAHD,Jointly Funded H&SC Packages,Permanent Nursing, Stanley House,1776.56, 19-Nov-2019
4,Revenue,CAHD,North - bed purchasing and direct  payments,Permanent Nursing, Stanley House,8209.68, 19-Nov-2019
5,Revenue,CAHD,Central - Bed Purchasing and Direct Payments,Permanent Nursing, Stanley House,8582.16, 19-Nov-2019
6,Revenue,CAHD,Central - Bed Purchasing and Direct Payments,Permanent Nursing, Stanley House,3678.07, 19-Nov-2019
7,Revenue,CAHD,Central - Bed Purchasing and Direct Payments,Fees & Charges Income - General, Stanley House,740.14, 19-Nov-2019
8,Revenue,CAHD,MH Purchasing - Younger,Permanent Nursing, Stanley House,4738.16, 19-Nov-2019
9,Revenue,CAHD,Jointly Funded H&SC Packages,Permanent Nursing, Stanley House,4522.60, 19-Nov-2019
10,Revenue,CAHD,18-25 Year Olds,Permanent Residential,1 St Georges House,13333.52, 19-Nov-2019
11,Revenue,CAHD,CSC - LAC Housing Support Grants,Grants to Voluntary Bodies,1625 Independent People,3343.00, 11-Nov-2019
12,Revenue,CAHD,CSC - Care Leavers Independent Living,Grants to Voluntary Bodies,1625 Independent People,859.60, 12-Nov-2019
13,Revenue,CAHD,Supporting People Programme,Grants to Voluntary Bodies,1625 Independent People,15167.00, 01-Nov-2019
14,Revenue,CAHD,Supporting People Programme,Grants to Voluntary Bodies,1625 Independent People,10046.00, 01-Nov-2019
15,Revenue,CAHD,Supporting People Programme,Grants to Voluntary Bodies,1625 Independent People,15167.00, 29-Nov-2019
16,Revenue,CAHD,Supporting People Programme,Grants to Voluntary Bodies,1625 Independent People,10046.00, 29-Nov-2019
17,Revenue,CAHD,CSC - Care Leavers Independent Living,Independent Living,16Pluscare Support Solutions,6288.35, 14-Nov-2019
18,Revenue,CAHD,CSC - Asylum Seekers - Unaccompanied,Adults - Family Support,16Pluscare Support Solutions,6288.35, 14-Nov-2019
19,Revenue,CAHD,North - bed purchasing and direct  payments,Permanent Nursing,1St Floor Lingfield House,2367.00, 19-Nov-2019
20,Revenue,CAHD,Central - Community based support,Day Care / Social Activities,3 Trees Community Support Ltd,380.64, 01-Nov-2019
21,Revenue,CAHD,Central - Community based support,Other Small Contracts,3 Trees Community Support Ltd,5028.80, 01-Nov-2019
22,Revenue,CAHD,Central - Community based support,Supported Living,3 Trees Community Support Ltd,5278.32, 01-Nov-2019
23,Revenue,CAHD,North - Community based support,Day Care / Social Activities,3 Trees Community Support Ltd,683.20, 01-Nov-2019
24,Revenue,CAHD,Central - Community based support,Day Care / Social Activities,3 Trees Community Support Ltd,390.40, 07-Nov-2019
25,Revenue,CAHD,Central - Community based support,Other Small Contracts,3 Trees Community Support Ltd,5156.17, 07-Nov-2019
26,Revenue,CAHD,Central - Community based support,Supported Living,3 Trees Community Support Ltd,5283.22, 07-Nov-2019
27,Revenue,CAHD,North - Community based support,Day Care / Social Activities,3 Trees Community Support Ltd,678.32, 07-Nov-2019
28,Revenue,CAHD,Central - Community based support,Day Care / Social Activities,3 Trees Community Support Ltd,390.40, 14-Nov-2019
29,Revenue,CAHD,Central - Community based support,Other Small Contracts,3 Trees Community Support Ltd,5165.44, 14-Nov-2019
30,Revenue,CAHD,Central - Community based support,Supported Living,3 Trees Community Support Ltd,5275.89, 14-Nov-2019
31,Revenue,CAHD,North - Community based support,Day Care / Social Activities,3 Trees Community Support Ltd,683.20, 14-Nov-2019
32,Revenue,CAHD,Central - Community based support,Day Care / Social Activities,3 Trees Community Support Ltd,287.92, 27-Nov-2019
33,Revenue,CAHD,Central - Community based support,Other Small Contracts,3 Trees Community Support Ltd,5168.86, 27-Nov-2019
34,Revenue,CAHD,Central - Community based support,Supported Living,3 Trees Community Support Ltd,5278.32, 27-Nov-2019
35,Revenue,CAHD,North - Community based support,Day Care / Social Activities,3 Trees Community Support Ltd,527.04, 27-Nov-2019
36,Revenue,CAHD,Central - Community based support,Day Care / Social Activities,3 Trees Community Support Ltd,385.52, 27-Nov-2019
37,Revenue,CAHD,Central - Community based support,Other Small Contracts,3 Trees Community Support Ltd,5165.44, 27-Nov-2019
38,Revenue,CAHD,Central - Community based support,Supported Living,3 Trees Community Support Ltd,5278.32, 27-Nov-2019
39,Revenue,CAHD,North - Community based support,Day Care / Social Activities,3 Trees Community Support Ltd,683.20, 27-Nov-2019
40,Revenue,CAHD,South - Bed Purchasing and Direct payments,Permanent Residential,5Th Floor Harlech Court,16667.12, 19-Nov-2019
41,Revenue,CAHD,South - Bed Purchasing and Direct payments,Permanent Residential,5Th Floor Harlech Court,10419.52, 19-Nov-2019
42,Revenue,CAHD,S28A cases,Permanent Residential,5Th Floor Harlech Court,10904.68, 19-Nov-2019
43,Revenue,CAHD,South - Bed Purchasing and Direct payments,Permanent Residential,5Th Floor Harlech Court,11436.40, 19-Nov-2019
44,Revenue,CAHD,North - bed purchasing and direct  payments,Permanent Residential,5Th Floor Harlech Court,12498.56, 19-Nov-2019
45,Revenue,CAHD,North - bed purchasing and direct  payments,Permanent Residential,5Th Floor Harlech Court,10537.24, 19-Nov-2019
46,Revenue,CAHD,North - bed purchasing and direct  payments,Permanent Residential,5Th Floor Harlech Court,9071.12, 19-Nov-2019
47,Revenue,CAHD,Learning Difficulties Development Fund,Other Supplies & Services,A Clean Sweep Co-operative Ltd,2504.00, 06-Nov-2019
48,Revenue,CAHD,CSC - Section 17 0-25,Preventative Assistance,A+bility Ltd,556.00, 21-Nov-2019
49,Revenue,CAHD,EARLY YEARS DEPRIVATION PAYMENT,Preventative Assistance,Abacus Pre School @ Mangotsfield,1152.40, 25-Nov-2019
50,Revenue,CAHD,EARLY YEARS DEPRIVATION PAYMENT,Preventative Assistance,Abacus Pre-School (Meadowbrook),768.27, 25-Nov-2019
51,Revenue,CAHD,EARLY YEARS DEPRIVATION PAYMENT,Preventative Assistance,Abbeywood Tots Day Nursery Ltd,768.27, 25-Nov-2019
52,Revenue,CAHD,EARLY YEARS DEPRIVATION PAYMENT,Preventative Assistance,Abbeywood Tots Day Nursery Ltd,768.27, 25-Nov-2019
53,Revenue,CAHD,Section 117 Placements MH Younger,Permanent Residential,Acorn Care Providers,6608.20, 19-Nov-2019
54,Revenue,CAHD,North - S117,Permanent Residential,Acorn Care Providers,3900.00, 19-Nov-2019
55,Revenue,CAHD,Jointly Funded H&SC Packages,Permanent Residential,Acorn Care Providers,2100.00, 19-Nov-2019
56,Revenue,CAHD,MH Purchasing - Younger,Permanent Residential,Acorn Care Providers,6144.00, 19-Nov-2019
57,Revenue,CAHD,Schools Specific Grant Income,Other Public Bodies,Acorn Education Trust,630.00, 25-Nov-2019
58,Revenue,CAHD,Training - Adult Services,Training Expenses,Acorn Health & Safety Limited,477.00, 14-Nov-2019
59,Revenue,CAHD,Training - Adult Services,Training Expenses,Acorn Health & Safety Limited,418.00, 21-Nov-2019
60,Revenue,CAHD,Training - Adult Services,Training Expenses,Acorn Health & Safety Limited,1401.50, 14-Nov-2019
61,Revenue,CAHD,Training - Adult Services,Training Expenses,Acorn Health & Safety Limited,427.50, 28-Nov-2019
62,Revenue,CAHD,CSC - Agency Fostering,Foster Parent Allowances,Action for Children,6975.00, 08-Nov-2019
63,Revenue,CAHD,CSC - Agency Fostering,Foster Parent Allowances,Action for Children,6750.00, 28-Nov-2019
64,Revenue,CAHD,South - community based support,Supported Living,Action on Hearing Loss,844.20, 27-Nov-2019
65,Revenue,CAHD,North - bed purchasing and direct  payments,Permanent Nursing,Admirals Reach Care Home,2662.24, 19-Nov-2019
66,Revenue,CAHD,North - bed purchasing and direct  payments,Permanent Nursing,Admirals Reach Care Home,1901.60, 19-Nov-2019
67,Revenue,CAHD,South - community based support,Other Small Contracts,Advantedge Commercial Finance Limited,628.32, 19-Nov-2019
68,Revenue,CAHD,South - community based support,Other Small Contracts,Advantedge Commercial Finance Limited,790.16, 20-Nov-2019
69,Revenue,CAHD,South - community based support,Other Small Contracts,Advantedge Commercial Finance Limited,2094.40, 19-Nov-2019
70,Revenue,CAHD,South - community based support,Other Small Contracts,Advantedge Commercial Finance Limited,947.24, 19-Nov-2019
71,Revenue,CAHD,South - community based support,Other Small Contracts,Advantedge Commercial Finance Limited,533.12, 21-Nov-2019
72,Revenue,CAHD,South - community based support,Other Small Contracts,Advantedge Commercial Finance Limited,685.44, 20-Nov-2019
73,Revenue,CAHD,North - Community based support,Day Care / Social Activities,Age Concern,621.60, 19-Nov-2019
74,Revenue,CAHD,North - Community based support,Day Care / Social Activities,Age Concern,720.00, 19-Nov-2019
75,Revenue,CAHD,Central - Community based support,Day Care / Social Activities,Age Concern,634.24, 19-Nov-2019
76,Revenue,CAHD,Central - Community based support,Day Care / Social Activities,Age Concern,536.00, 19-Nov-2019
77,Revenue,CAHD,North - Community based support,Day Care / Social Activities,Age Concern,634.24, 19-Nov-2019
78,Revenue,CAHD,Central - Community based support,Day Care / Social Activities,Age Concern,621.60, 19-Nov-2019
79,Revenue,CAHD,Extra Care Housing,Private & Voluntary Home Care,Agincare UK Limited,665.00, 15-Nov-2019
80,Revenue,CAHD,Extra Care Housing,Private & Voluntary Home Care,Agincare UK Limited,23256.50, 01-Nov-2019
81,Revenue,CAHD,Extra Care Housing,Private & Voluntary Home Care,Agincare UK Limited,23256.50, 29-Nov-2019
82,Revenue,CAHD,Extra Care Housing,Private & Voluntary Home Care,Agincare UK Limited,11253.50, 01-Nov-2019
83,Revenue,CAHD,Extra Care Housing,Private & Voluntary Home Care,Agincare UK Limited,11253.50, 29-Nov-2019
84,Revenue,CAHD,Extra Care Housing,Private & Voluntary Home Care,Agincare UK Limited,28508.53, 04-Nov-2019
85,Revenue,CAHD,Extra Care Housing,Private & Voluntary Home Care,Agincare UK Limited,1026.06, 12-Nov-2019
86,Revenue,CAHD,Extra Care Housing,Private & Voluntary Home Care,Agincare UK Limited,2984.53, 12-Nov-2019
87,Revenue,CAHD,Extra Care Housing,Private & Voluntary Home Care,Agincare UK Limited,3039.46, 15-Nov-2019
88,Revenue,CAHD,Extra Care Housing,Private & Voluntary Home Care,Agincare UK Limited,5405.40, 14-Nov-2019
89,Revenue,CAHD,Extra Care Housing,Private & Voluntary Home Care,Agincare UK Limited,3388.32, 12-Nov-2019
90,Revenue,CAHD,Extra Care Housing,Private & Voluntary Home Care,Agincare UK Limited,1385.28, 12-Nov-2019
91,Revenue,CAHD,Extra Care Housing,Private & Voluntary Home Care,Agincare UK Limited,3567.38, 12-Nov-2019
92,Revenue,CAHD,Extra Care Housing,Private & Voluntary Home Care,Agincare UK Limited,2795.77, 12-Nov-2019
93,Revenue,CAHD,Extra Care Housing,Private & Voluntary Home Care,Agincare UK Limited,3604.37, 12-Nov-2019
94,Revenue,CAHD,Extra Care Housing,Private & Voluntary Home Care,Agincare UK Limited,4011.32, 15-Nov-2019
95,Revenue,CAHD,CSC - Care Leavers Support Costs,Furniture & Fittings Loose,Individual,1899.12, 01-Nov-2019
96,Revenue,CAHD,18-25 Year Olds,Permanent Residential,Alexander House,12155.16, 19-Nov-2019
97,Revenue,CAHD,South - community based support,Other Small Contracts,AliMo Care Ltd,767.52, 01-Nov-2019
98,Revenue,CAHD,North - Community based support,Other Small Contracts,AliMo Care Ltd,126.36, 01-Nov-2019
99,Revenue,CAHD,South - community based support,Other Small Contracts,AliMo Care Ltd,730.08, 01-Nov-2019
100,Revenue,CAHD,North - Community based support,Other Small Contracts,AliMo Care Ltd,117.00, 01-Nov-2019
101,Revenue,CAHD,South - community based support,Other Small Contracts,AliMo Care Ltd,655.20, 01-Nov-2019
102,Revenue,CAHD,North - Community based support,Other Small Contracts,AliMo Care Ltd,121.68, 01-Nov-2019
103,Revenue,CAHD,South - community based support,Other Small Contracts,AliMo Care Ltd,645.84, 11-Nov-2019
104,Revenue,CAHD,North - Community based support,Other Small Contracts,AliMo Care Ltd,112.32, 11-Nov-2019
105,Revenue,CAHD,South - community based support,Other Small Contracts,AliMo Care Ltd,767.52, 11-Nov-2019
106,Revenue,CAHD,North - Community based support,Other Small Contracts,AliMo Care Ltd,121.68, 11-Nov-2019
107,Revenue,CAHD,South - community based support,Other Small Contracts,AliMo Care Ltd,870.48, 20-Nov-2019
108,Revenue,CAHD,North - Community based support,Other Small Contracts,AliMo Care Ltd,121.68, 20-Nov-2019
109,Revenue,CAHD,CSC - Emergency Duty Team,Training Expenses,All Terrain Services Limited,550.00, 14-Nov-2019
110,Revenue,CAHD,North - bed purchasing and direct  payments,Permanent Nursing,Allambie Court,2320.44, 19-Nov-2019
111,Revenue,CAHD,CSC - Residential Placements,Permanent Residential,Amberleigh Care Ltd,17244.86, 08-Nov-2019
112,Revenue,CAHD,CSC - Residential Placements,Permanent Residential,Amberleigh Care Ltd,17244.86, 14-Nov-2019
113,Revenue,CAHD,CSC - Residential Placements,Permanent Residential,Amberleigh Care Ltd,16688.57, 29-Nov-2019
114,Revenue,CAHD,North - bed purchasing and direct  payments,Permanent Nursing,Amerind Grove Nursing Home,2706.32, 19-Nov-2019
115,Revenue,CAHD,A &CL - Pre-Employability 19/20,Educational Materials,Amey Computer Services,687.00, 29-Nov-2019
116,Revenue,CAHD,CSC - Agency Fostering,Foster Parent Allowances,Amicus Foster Care Ltd,3262.44, 01-Nov-2019
117,Revenue,CAHD,CSC - Parent & Child Assessments,Foster Parent Allowances,Amicus Foster Care Ltd,7625.38, 08-Nov-2019
118,Revenue,CAHD,CSC - Agency Fostering,Foster Parent Allowances,Amicus Foster Care Ltd,4879.00, 01-Nov-2019
119,Revenue,CAHD,CSC - Agency Fostering,Foster Parent Allowances,Amicus Foster Care Ltd,5514.28, 08-Nov-2019
120,Revenue,CAHD,EARLY YEARS DISABILITY  ACCES FUND,Preventative Assistance,Anchor Day Nursery Ltd,615.00, 08-Nov-2019
121,Revenue,CAHD,Supporting People Programme,Grants to Voluntary Bodies,Anchor Hanover Group,1039.00, 01-Nov-2019
122,Revenue,CAHD,Supporting People Programme,Grants to Voluntary Bodies,Anchor Hanover Group,1039.00, 29-Nov-2019
123,Revenue,CAHD,Supporting People Programme,Grants to Voluntary Bodies,Anchor Hanover Group,847.00, 01-Nov-2019
124,Revenue,CAHD,Supporting People Programme,Grants to Voluntary Bodies,Anchor Hanover Group,847.00, 29-Nov-2019
125,Revenue,CAHD,CSC - Vinney Green Secure Unit,External Lecturers Fees,Annabel Shilliday,1150.00, 15-Nov-2019
126,Revenue,CAHD,Future Bright,Fees - General,APAC Ltd,1000.00, 20-Nov-2019
127,Revenue,CAHD,EARLY YEARS DEPRIVATION PAYMENT,Preventative Assistance,Apple Tree Pre-School,1152.40, 25-Nov-2019
128,Revenue,CAHD,Jointly Funded H&SC Packages,Permanent Residential,Ash View House,1111.40, 19-Nov-2019
129,Revenue,CAHD,South - Bed Purchasing and Direct payments,Permanent Residential,Ash View House,5421.04, 19-Nov-2019
130,Revenue,CAHD,S117 Placements PCT,Permanent Residential,Ash View House,7556.32, 19-Nov-2019
131,Revenue,CAHD,18-25 Year Olds,Permanent Residential,Ash View House,7099.52, 19-Nov-2019
132,Revenue,CAHD,North - bed purchasing and direct  payments,Permanent Residential,Ash View House,7120.00, 19-Nov-2019
133,Revenue,CAHD,Section 117 Placements MH Younger,Permanent Residential,Ash View House,4924.12, 19-Nov-2019
134,Revenue,CAHD,Jointly Funded H&SC Packages,Permanent Residential,Ash View House,2110.40, 19-Nov-2019
135,Revenue,CAHD,South - S117,Permanent Residential,Ash View House,6692.80, 19-Nov-2019
136,Revenue,CAHD,18-25 Year Olds,Permanent Residential,Ash View House,6615.52, 19-Nov-2019
137,Revenue,CAHD,North - bed purchasing and direct  payments,Permanent Residential,Aspects 2 Limited,7231.88, 19-Nov-2019
138,Revenue,CAHD,Supporting People Programme,Grants to Voluntary Bodies,Aspects and Milestones Trust,3441.00, 01-Nov-2019
139,Revenue,CAHD,Supporting People Programme,Grants to Voluntary Bodies,Aspects and Milestones Trust,1725.00, 01-Nov-2019
140,Revenue,CAHD,Supporting People Programme,Grants to Voluntary Bodies,Aspects and Milestones Trust,3441.00, 29-Nov-2019
141,Revenue,CAHD,Supporting People Programme,Grants to Voluntary Bodies,Aspects and Milestones Trust,1725.00, 29-Nov-2019
142,Revenue,CAHD,CSC - Care Leavers Support Costs,Furniture & Fittings Loose,Aspirations Client Account,1650.00, 08-Nov-2019
143,Revenue,CAHD,CSC - Vinney Green Secure Unit,Operational Equipment,Assa Abloy Limited,431.50, 13-Nov-2019
144,Revenue,CAHD,South - community based support,Adults - Family Support,Ategi Limited,846.16, 25-Nov-2019
145,Revenue,CAHD,South - community based support,Adults - Family Support,Ategi Limited,2224.32, 29-Nov-2019
146,Revenue,CAHD,South - community based support,Adults - Family Support,Ategi Limited,1878.88, 29-Nov-2019
147,Revenue,CAHD,North - Community based support,Adults - Family Support,Ategi Limited,1532.00, 29-Nov-2019
148,Revenue,CAHD,South - community based support,Adults - Family Support,Ategi Limited,2028.35, 29-Nov-2019
149,Revenue,CAHD,South - Bed Purchasing and Direct payments,Adults - Family Support,Ategi Limited,17425.02, 20-Nov-2019
150,Revenue,CAHD,CSC - Vinney Green Secure Unit,R & M by Departments,Atus Systems Limited,500.00, 20-Nov-2019
151,Revenue,CAHD,Independent Special Placements - Pre 16,Other Private Contractors,Aurora Hedgeway School,15154.33, 01-Nov-2019
152,Revenue,CAHD,Independent Special Placements - Pre 16,Other Private Contractors,Aurora Hedgeway School,15154.33, 01-Nov-2019
153,Revenue,CAHD,Independent Special Placements - Pre 16,Other Private Contractors,Aurora Hedgeway School,15154.33, 01-Nov-2019
154,Revenue,CAHD,Independent Special Placements - Pre 16,Other Private Contractors,Aurora Hedgeway School,15154.33, 01-Nov-2019
155,Revenue,CAHD,South - Bed Purchasing and Direct payments,Permanent Residential,Autism Specialised Care Homes,6506.88, 19-Nov-2019
156,Revenue,CAHD,North - bed purchasing and direct  payments,Permanent Residential,Avery Homes Downend Limited,4200.00, 19-Nov-2019
157,Revenue,CAHD,North - bed purchasing and direct  payments,Permanent Residential,Avery Homes Downend Limited,4300.80, 19-Nov-2019
158,Revenue,CAHD,North - bed purchasing and direct  payments,Permanent Residential,Avery Homes Downend Limited,5420.00, 19-Nov-2019
159,Revenue,CAHD,North - bed purchasing and direct  payments,Permanent Residential,Avery Homes Downend Limited,4420.00, 19-Nov-2019
160,Revenue,CAHD,Central - Bed Purchasing and Direct Payments,Permanent Residential,Avery Homes Downend Limited,5000.00, 19-Nov-2019
161,Revenue,CAHD,Younger Adult Mental Health,Health Services (Third Party Payments),Avon & Wiltshire Mental Health,1693.33, 07-Nov-2019
162,Revenue,CAHD,Health Inequalities,Other Small Contracts,Avon Local Pharmaceutical Committee,3672.00, 20-Nov-2019
163,Revenue,CAHD,South - Bed Purchasing and Direct payments,Permanent Residential,Avon Valley Care Home,3714.29, 19-Nov-2019
164,Revenue,CAHD,South - Bed Purchasing and Direct payments,Permanent Residential,Avon Valley Care Home,4000.00, 19-Nov-2019
165,Revenue,CAHD,South - Bed Purchasing and Direct payments,Permanent Residential,Avon Valley Care Home,3960.00, 19-Nov-2019
166,Revenue,CAHD,South - Bed Purchasing and Direct payments,Permanent Residential,Avon Valley Care Home,3960.00, 19-Nov-2019
167,Revenue,CAHD,South - Bed Purchasing and Direct payments,Permanent Residential,Avon Valley Care Home,10285.72, 19-Nov-2019
168,Revenue,CAHD,South - Bed Purchasing and Direct payments,Permanent Residential,Avon Valley Care Home,3714.29, 19-Nov-2019
169,Revenue,CAHD,South - Bed Purchasing and Direct payments,Fees & Charges Income - General,Avon Valley Care Home,1146.20, 19-Nov-2019
170,Revenue,CAHD,South - Bed Purchasing and Direct payments,Permanent Residential,Avon Valley Care Home,4000.00, 19-Nov-2019
171,Revenue,CAHD,South - Bed Purchasing and Direct payments,Permanent Residential,Avon Valley Care Home,4000.00, 19-Nov-2019
172,Revenue,CAHD,South - Bed Purchasing and Direct payments,Respite Planned - Residential,Avon Valley Care Home,3000.00, 19-Nov-2019
173,Revenue,CAHD,Early Years High Needs Support,Other Private Contractors,Baker Street Nursery & Pre-School,810.26, 22-Nov-2019
174,Revenue,CAHD,Early Years High Needs Support,Other Private Contractors,Baker Street Nursery & Pre-School,810.26, 22-Nov-2019
175,Revenue,CAHD,CSC - Quality Review Unit,Agency Staff (Admin/Support Staff) Pay,Baltimore Consulting Group,4560.00, 04-Nov-2019
176,Revenue,CAHD,CSC - Quality Review Unit,Agency Staff (Admin/Support Staff) Pay,Baltimore Consulting Group,2400.00, 04-Nov-2019
177,Revenue,CAHD,CSC - Quality Review Unit,Agency Staff (Admin/Support Staff) Pay,Baltimore Consulting Group,4800.00, 04-Nov-2019
178,Revenue,CAHD,CSC - Quality Review Unit,Agency Staff (Admin/Support Staff) Pay,Baltimore Consulting Group,2040.00, 04-Nov-2019
179,Revenue,CAHD,CSC - Quality Review Unit,Agency Staff (Admin/Support Staff) Pay,Baltimore Consulting Group,2400.00, 01-Nov-2019
180,Revenue,CAHD,CSC - Quality Review Unit,Agency Staff (Admin/Support Staff) Pay,Baltimore Consulting Group,2040.00, 04-Nov-2019
181,Revenue,CAHD,CSC - Quality Review Unit,Agency Staff (Admin/Support Staff) Pay,Baltimore Consulting Group,1920.00, 08-Nov-2019
182,Revenue,CAHD,CSC - Quality Review Unit,Agency Staff (Admin/Support Staff) Pay,Baltimore Consulting Group,2400.00, 18-Nov-2019
183,Revenue,CAHD,CSC - Quality Review Unit,Agency Staff (Admin/Support Staff) Pay,Baltimore Consulting Group,2400.00, 27-Nov-2019
184,Revenue,CAHD,A &CL - Pre-Employability 19/20,Premises Hire,Banjo Island Community & Sports Association,400.00, 20-Nov-2019
185,Revenue,CAHD,A & CL - Employability 19/20,Premises Hire,Banjo Island Community & Sports Association,440.00, 20-Nov-2019
186,Revenue,CAHD,18-25 Year Olds,Day Care / Social Activities,Barnardo Services Limited,2748.00, 01-Nov-2019
187,Revenue,CAHD,CSC - Vinney Green Secure Unit,Service Contracts (Premises),Barnardo Services Limited,5980.00, 28-Nov-2019
188,Revenue,CAHD,18-25 Year Olds,Day Care / Social Activities,Barnardo Services Limited,1536.00, 01-Nov-2019
189,Revenue,CAHD,CSC - Family Group Conferencing,Grants to Voluntary Bodies,Barnardo Services Limited,5422.75, 07-Nov-2019
190,Revenue,CAHD,Children & Young People�s Health,Other Small Contracts,Barnardos,7650.00, 15-Nov-2019
191,Revenue,CAHD,Pensions - Non DSG,Annual Pension,Bath & North East Somerset Council,6371.72, 26-Nov-2019
192,Revenue,CAHD,Pensions - Non DSG,Annual Pension,Bath & North East Somerset Council,109670.58, 06-Nov-2019
193,Revenue,CAHD,Schools Specific Grant Income,Other Public Bodies,Bath & North East Somerset Council,630.00, 05-Nov-2019
194,Revenue,CAHD,"Education, Learning and Skills",Catering,Bawa Healthcare & Leisure,342.34, 27-Nov-2019
195,Revenue,CAHD,"Education, Learning and Skills",Premises Hire,Bawa Healthcare & Leisure,341.00, 27-Nov-2019
196,Revenue,CAHD,"Education, Learning and Skills",Catering,Bawa Healthcare & Leisure,342.34, 27-Nov-2019
197,Revenue,CAHD,"Education, Learning and Skills",Premises Hire,Bawa Healthcare & Leisure,341.00, 27-Nov-2019
198,Revenue,CAHD,Early Years Development,Catering,Bawa Healthcare & Leisure,1603.33, 25-Nov-2019
199,Revenue,CAHD,Early Years Development,Premises Hire,Bawa Healthcare & Leisure,1000.00, 25-Nov-2019
200,Revenue,CAHD,Future Bright,Fees - General,BCMB Ltd,1200.00, 14-Nov-2019
201,Revenue,CAHD,CSC - Adoption Support Fund,Post Adoption,Individual,735.00, 29-Nov-2019
202,Revenue,CAHD,Pathway 3 - (Complex Beds),Permanent Nursing,Beaufort Care Ltd,5571.00, 01-Nov-2019
203,Revenue,CAHD,South Glos Users in South Glos Homes,Permanent Nursing,Beaufort Grange Care Home,662.24, 19-Nov-2019
204,Revenue,CAHD,South Glos Users in South Glos Homes,Permanent Nursing,Beaufort Grange Care Home,662.24, 19-Nov-2019
205,Revenue,CAHD,South Glos Users in South Glos Homes,Permanent Nursing,Beaufort Grange Care Home,662.24, 19-Nov-2019
206,Revenue,CAHD,South Glos Users in South Glos Homes,Permanent Nursing,Beaufort Grange Care Home,662.24, 19-Nov-2019
207,Revenue,CAHD,South - Bed Purchasing and Direct payments,Respite Planned - Nursing,Beaufort Grange Care Home,2860.43, 19-Nov-2019
208,Revenue,CAHD,South Glos Users in South Glos Homes,Permanent Nursing,Beaufort Grange Care Home,662.24, 19-Nov-2019
209,Revenue,CAHD,South Glos Users in South Glos Homes,Permanent Nursing,Beaufort Grange Care Home,662.24, 19-Nov-2019
210,Revenue,CAHD,South Glos Users in South Glos Homes,Permanent Nursing,Beaufort Grange Care Home,662.24, 19-Nov-2019
211,Revenue,CAHD,South Glos Users in South Glos Homes,Permanent Nursing,Beaufort Grange Care Home,662.24, 19-Nov-2019
212,Revenue,CAHD,South Glos Users in South Glos Homes,Permanent Nursing,Beaufort Grange Care Home,662.24, 19-Nov-2019
213,Revenue,CAHD,South Glos Users in South Glos Homes,Permanent Nursing,Beaufort Grange Care Home,662.24, 19-Nov-2019
214,Revenue,CAHD,South Glos Users in South Glos Homes,Permanent Nursing,Beaufort Grange Care Home,662.24, 19-Nov-2019
215,Revenue,CAHD,North - S117,Permanent Nursing,Beaufort Grange Care Home,4877.04, 19-Nov-2019
216,Revenue,CAHD,South Glos Users in South Glos Homes,Permanent Nursing,Beaufort Grange Care Home,662.24, 19-Nov-2019
217,Revenue,CAHD,South Glos Users in South Glos Homes,Permanent Nursing,Beaufort Grange Care Home,662.24, 19-Nov-2019
218,Revenue,CAHD,South Glos Users in South Glos Homes,Permanent Nursing,Beaufort Grange Care Home,662.24, 19-Nov-2019
219,Revenue,CAHD,South Glos Users in South Glos Homes,Permanent Nursing,Beaufort Grange Care Home,662.24, 19-Nov-2019
220,Revenue,CAHD,Central - Bed Purchasing and Direct Payments,Permanent Nursing,Beaufort Grange Care Home,4428.00, 19-Nov-2019
221,Revenue,CAHD,Central - Bed Purchasing and Direct Payments,Permanent Nursing,Beaufort Grange Care Home,1739.57, 19-Nov-2019
222,Revenue,CAHD,South Glos Users in South Glos Homes,Permanent Nursing,Beaufort Grange Care Home,662.24, 19-Nov-2019
223,Revenue,CAHD,South Glos Users in South Glos Homes,Permanent Nursing,Beaufort Grange Care Home,662.24, 19-Nov-2019
224,Revenue,CAHD,North - bed purchasing and direct  payments,Fees & Charges Income - General,Beaufort Grange Care Home,717.98, 19-Nov-2019
225,Revenue,CAHD,South Glos Users in South Glos Homes,Permanent Nursing,Beaufort Grange Care Home,662.24, 19-Nov-2019
226,Revenue,CAHD,North - S117,Permanent Nursing,Beaufort Grange Care Home,5005.76, 19-Nov-2019
227,Revenue,CAHD,South Glos Users in South Glos Homes,Permanent Nursing,Beaufort Grange Care Home,662.24, 19-Nov-2019
228,Revenue,CAHD,South Glos Users in South Glos Homes,Permanent Nursing,Beaufort Grange Care Home,662.24, 19-Nov-2019
229,Revenue,CAHD,South Glos Users in South Glos Homes,Permanent Nursing,Beaufort Grange Care Home,662.24, 19-Nov-2019
230,Revenue,CAHD,South Glos Users in South Glos Homes,Permanent Nursing,Beaufort Grange Care Home,662.24, 19-Nov-2019
231,Revenue,CAHD,North - bed purchasing and direct  payments,Respite Planned - Residential,Beaufort Grange Care Home,1251.44, 19-Nov-2019
232,Revenue,CAHD,South Glos Users in South Glos Homes,Permanent Nursing,Beaufort Grange Care Home,662.24, 19-Nov-2019
233,Revenue,CAHD,South Glos Users in South Glos Homes,Permanent Nursing,Beaufort Grange Care Home,662.24, 19-Nov-2019
234,Revenue,CAHD,South Glos Users in South Glos Homes,Permanent Nursing,Beaufort Grange Care Home,662.24, 19-Nov-2019
235,Revenue,CAHD,South - Bed Purchasing and Direct payments,Permanent Residential,Beaufort Grange Care Home,5156.20, 19-Nov-2019
236,Revenue,CAHD,South Glos Users in South Glos Homes,Permanent Nursing,Beaufort Grange Care Home,662.24, 19-Nov-2019
237,Revenue,CAHD,South Glos Users in South Glos Homes,Permanent Nursing,Beaufort Grange Care Home,662.24, 19-Nov-2019
238,Revenue,CAHD,South Glos Users in South Glos Homes,Permanent Nursing,Beaufort Grange Care Home,662.24, 19-Nov-2019
239,Revenue,CAHD,South Glos Users in South Glos Homes,Permanent Nursing,Beaufort Grange Care Home,662.24, 19-Nov-2019
240,Revenue,CAHD,South Glos Users in South Glos Homes,Permanent Nursing,Beaufort Grange Care Home,662.24, 19-Nov-2019
241,Revenue,CAHD,South Glos Users in South Glos Homes,Permanent Nursing,Beaufort Grange Care Home,662.24, 19-Nov-2019
242,Revenue,CAHD,South Glos Users in South Glos Homes,Permanent Nursing,Beaufort Grange Care Home,662.24, 19-Nov-2019
243,Revenue,CAHD,South Glos Users in South Glos Homes,Permanent Nursing,Beaufort Grange Care Home,662.24, 19-Nov-2019
244,Revenue,CAHD,South Glos Users in South Glos Homes,Permanent Nursing,Beaufort Grange Care Home,2459.75, 19-Nov-2019
245,Revenue,CAHD,South Glos Users in South Glos Homes,Permanent Nursing,Beaufort Grange Care Home,662.24, 19-Nov-2019
246,Revenue,CAHD,South Glos Users in South Glos Homes,Permanent Nursing,Beaufort Grange Care Home,662.24, 19-Nov-2019
247,Revenue,CAHD,North - bed purchasing and direct  payments,Permanent Nursing,Beaufort Grange Care Home,5405.76, 19-Nov-2019
248,Revenue,CAHD,South Glos Users in South Glos Homes,Permanent Nursing,Beaufort Grange Care Home,662.24, 19-Nov-2019
249,Revenue,CAHD,North - bed purchasing and direct  payments,Permanent Residential,Beaufort House,2549.56, 19-Nov-2019
250,Revenue,CAHD,Central - Bed Purchasing and Direct Payments,Permanent Residential,Beaufort House,2867.20, 19-Nov-2019
251,Revenue,CAHD,Central - Bed Purchasing and Direct Payments,Permanent Residential,Beaufort House,2775.60, 19-Nov-2019
252,Revenue,CAHD,North - bed purchasing and direct  payments,Permanent Residential,Beaufort House,2571.40, 19-Nov-2019
253,Revenue,CAHD,South - Bed Purchasing and Direct payments,Permanent Residential,Beaufort House,2536.84, 19-Nov-2019
254,Revenue,CAHD,North - bed purchasing and direct  payments,Permanent Residential,Beaufort House,3072.00, 19-Nov-2019
255,Revenue,CAHD,North - bed purchasing and direct  payments,Permanent Residential,Beaufort House,2699.92, 19-Nov-2019
256,Revenue,CAHD,Central - Bed Purchasing and Direct Payments,Respite Planned - Residential,Beaufort House,900.00, 19-Nov-2019
257,Revenue,CAHD,Central - Bed Purchasing and Direct Payments,Respite Planned - Residential,Beaufort House,642.86, 19-Nov-2019
258,Revenue,CAHD,Central - Bed Purchasing and Direct Payments,Permanent Residential,Beaufort House,3400.00, 19-Nov-2019
259,Revenue,CAHD,Central - Bed Purchasing and Direct Payments,Permanent Residential,Beaufort House,2428.57, 19-Nov-2019
260,Revenue,CAHD,South - Bed Purchasing and Direct payments,Permanent Residential,Beech House,2959.64, 19-Nov-2019
261,Revenue,CAHD,South Glos Users in South Glos Homes,Permanent Nursing,Beech House,662.24, 19-Nov-2019
262,Revenue,CAHD,South Glos Users in South Glos Homes,Permanent Nursing,Beech House,662.24, 19-Nov-2019
263,Revenue,CAHD,South Glos Users in South Glos Homes,Permanent Nursing,Beech House,662.24, 19-Nov-2019
264,Revenue,CAHD,South Glos Users in South Glos Homes,Permanent Nursing,Beech House,662.24, 19-Nov-2019
265,Revenue,CAHD,South Glos Users in South Glos Homes,Permanent Nursing,Beech House,662.24, 19-Nov-2019
266,Revenue,CAHD,South Glos Users in South Glos Homes,Permanent Nursing,Beech House,662.24, 19-Nov-2019
267,Revenue,CAHD,South Glos Users in South Glos Homes,Permanent Nursing,Beech House,662.24, 19-Nov-2019
268,Revenue,CAHD,North - bed purchasing and direct  payments,Permanent Nursing,Beech House,3547.76, 19-Nov-2019
269,Revenue,CAHD,South Glos Users in South Glos Homes,Permanent Nursing,Beech House,662.24, 19-Nov-2019
270,Revenue,CAHD,North - bed purchasing and direct  payments,Permanent Residential,Beech House,2959.64, 19-Nov-2019
271,Revenue,CAHD,South Glos Users in South Glos Homes,Permanent Nursing,Beech House,662.24, 19-Nov-2019
272,Revenue,CAHD,South Glos Users in South Glos Homes,Permanent Nursing,Beech House,662.24, 19-Nov-2019
273,Revenue,CAHD,North - bed purchasing and direct  payments,Permanent Nursing,Beech House,4283.20, 19-Nov-2019
274,Revenue,CAHD,South Glos Users in South Glos Homes,Permanent Nursing,Beech House,662.24, 19-Nov-2019
275,Revenue,CAHD,South Glos Users in South Glos Homes,Permanent Nursing,Beech House,662.24, 19-Nov-2019
276,Revenue,CAHD,South Glos Users in South Glos Homes,Permanent Nursing,Beech House,662.24, 19-Nov-2019
277,Revenue,CAHD,North - bed purchasing and direct  payments,Respite Planned - Nursing,Beech House,3582.86, 19-Nov-2019
278,Revenue,CAHD,North - bed purchasing and direct  payments,Respite Planned - Nursing,Beech House,597.14, 19-Nov-2019
279,Revenue,CAHD,South Glos Users in South Glos Homes,Permanent Nursing,Beech House,662.24, 19-Nov-2019
280,Revenue,CAHD,North - bed purchasing and direct  payments,Permanent Nursing,Beech House,3993.60, 19-Nov-2019
281,Revenue,CAHD,South Glos Users in South Glos Homes,Permanent Nursing,Beech House,662.24, 19-Nov-2019
282,Revenue,CAHD,South Glos Users in South Glos Homes,Permanent Nursing,Beech House,662.24, 19-Nov-2019
283,Revenue,CAHD,South Glos Users in South Glos Homes,Permanent Nursing,Beech House,662.24, 19-Nov-2019
284,Revenue,CAHD,North - bed purchasing and direct  payments,Permanent Residential,Beech House,4075.52, 19-Nov-2019
285,Revenue,CAHD,South Glos Users in South Glos Homes,Permanent Nursing,Beech House,662.24, 19-Nov-2019
286,Revenue,CAHD,North - bed purchasing and direct  payments,Permanent Nursing,Beech House,4223.56, 19-Nov-2019
287,Revenue,CAHD,South Glos Users in South Glos Homes,Permanent Nursing,Beech House,662.24, 19-Nov-2019
288,Revenue,CAHD,South Glos Users in South Glos Homes,Permanent Nursing,Beech House,662.24, 19-Nov-2019
289,Revenue,CAHD,South Glos Users in South Glos Homes,Permanent Nursing,Beech House,662.24, 19-Nov-2019
290,Revenue,CAHD,North - bed purchasing and direct  payments,Permanent Nursing,Beech House,3075.00, 19-Nov-2019
291,Revenue,CAHD,North - bed purchasing and direct  payments,Permanent Nursing,Beech House,1025.00, 19-Nov-2019
292,Revenue,CAHD,North - bed purchasing and direct  payments,Permanent Nursing,Beech House,1025.00, 19-Nov-2019
293,Revenue,CAHD,South Glos Users in South Glos Homes,Permanent Nursing,Beech House,662.24, 19-Nov-2019
294,Revenue,CAHD,South Glos Users in South Glos Homes,Permanent Nursing,Beech House,662.24, 19-Nov-2019
295,Revenue,CAHD,South Glos Users in South Glos Homes,Permanent Nursing,Beech House,662.24, 19-Nov-2019
296,Revenue,CAHD,North - bed purchasing and direct  payments,Permanent Residential,Beech House,4280.32, 19-Nov-2019
297,Revenue,CAHD,South Glos Users in South Glos Homes,Permanent Nursing,Beechwood Care Home,1028.00, 19-Nov-2019
298,Revenue,CAHD,18-25 Year Olds,Permanent Residential,Beechwood Court,15254.92, 19-Nov-2019
299,Revenue,CAHD,South - S117,Permanent Residential,Bidna House,3692.64, 19-Nov-2019
300,Revenue,CAHD,Tobacco Control,Other Supplies & Services,Bionical Solutions Limited,3375.00, 28-Nov-2019
301,Revenue,CAHD,North - S117,Permanent Residential,Blackwater Mill,3600.00, 19-Nov-2019
302,Revenue,CAHD,Central - Community based support,Other Small Contracts,Blakehill Healthcare Ltd,1650.00, 18-Nov-2019
303,Revenue,CAHD,Central - Community based support,Other Small Contracts,Blakehill Healthcare Ltd,5250.00, 11-Nov-2019
304,Revenue,CAHD,Central - Community based support,Other Small Contracts,Blakehill Healthcare Ltd,6620.00, 08-Nov-2019
305,Revenue,CAHD,Central - Community based support,Other Small Contracts,Blakehill Healthcare Ltd,750.00, 07-Nov-2019
306,Revenue,CAHD,Central - Community based support,Other Small Contracts,Blakehill Healthcare Ltd,3190.88, 11-Nov-2019
307,Revenue,CAHD,Central - Community based support,Other Small Contracts,Blakehill Healthcare Ltd,1875.00, 11-Nov-2019
308,Revenue,CAHD,Central - Community based support,Other Small Contracts,Blakehill Healthcare Ltd,1637.50, 19-Nov-2019
309,Revenue,CAHD,South - Bed Purchasing and Direct payments,Permanent Nursing,Blossom Field,18609.26, 19-Nov-2019
310,Revenue,CAHD,South - Bed Purchasing and Direct payments,Permanent Nursing,Blossom Field,4780.36, 19-Nov-2019
311,Revenue,CAHD,South - Bed Purchasing and Direct payments,Fees & Charges Income - General,Blossom Field,2196.26, 19-Nov-2019
312,Revenue,CAHD,South Glos Users in South Glos Homes,Permanent Nursing,Blossom Field,662.24, 19-Nov-2019
313,Revenue,CAHD,North - bed purchasing and direct  payments,Permanent Nursing,Blossom Field,4730.40, 19-Nov-2019
314,Revenue,CAHD,South Glos Users in South Glos Homes,Permanent Nursing,Blossom Field,662.24, 19-Nov-2019
315,Revenue,CAHD,North - bed purchasing and direct  payments,Permanent Nursing,Blossom Field,4770.40, 19-Nov-2019
316,Revenue,CAHD,South Glos Users in South Glos Homes,Permanent Nursing,Blossom Field,662.24, 19-Nov-2019
317,Revenue,CAHD,South Glos Users in South Glos Homes,Permanent Nursing,Blossom Field,662.24, 19-Nov-2019
318,Revenue,CAHD,North - bed purchasing and direct  payments,Permanent Nursing,Blossom Field,5029.48, 19-Nov-2019
319,Revenue,CAHD,North - bed purchasing and direct  payments,Permanent Nursing,Blossom Field,4267.44, 19-Nov-2019
320,Revenue,CAHD,North - bed purchasing and direct  payments,Permanent Nursing,Blossom Field,5000.00, 19-Nov-2019
321,Revenue,CAHD,South Glos Users in South Glos Homes,Permanent Nursing,Blossom Field,662.24, 19-Nov-2019
322,Revenue,CAHD,South Glos Users in South Glos Homes,Permanent Nursing,Blossom Field,662.24, 19-Nov-2019
323,Revenue,CAHD,South - Bed Purchasing and Direct payments,Permanent Nursing,Blossom Field,4413.08, 19-Nov-2019
324,Revenue,CAHD,South Glos Users in South Glos Homes,Permanent Nursing,Blossom Field,662.24, 19-Nov-2019
325,Revenue,CAHD,North - bed purchasing and direct  payments,Permanent Nursing,Blossom Field,3533.92, 19-Nov-2019
326,Revenue,CAHD,South Glos Users in South Glos Homes,Permanent Nursing,Blossom Field,662.24, 19-Nov-2019
327,Revenue,CAHD,North - bed purchasing and direct  payments,Permanent Nursing,Blossom Field,4799.88, 19-Nov-2019
328,Revenue,CAHD,South Glos Users in South Glos Homes,Permanent Nursing,Blossom Field,662.24, 19-Nov-2019
329,Revenue,CAHD,South Glos Users in South Glos Homes,Permanent Nursing,Blossom Field,662.24, 19-Nov-2019
330,Revenue,CAHD,North - bed purchasing and direct  payments,Permanent Nursing,Blossom Field,4800.00, 19-Nov-2019
331,Revenue,CAHD,South Glos Users in South Glos Homes,Permanent Nursing,Blossom Field,662.24, 19-Nov-2019
332,Revenue,CAHD,South Glos Users in South Glos Homes,Permanent Nursing,Blossom Field,662.24, 19-Nov-2019
333,Revenue,CAHD,South Glos Users in South Glos Homes,Permanent Nursing,Blossom Field,662.24, 19-Nov-2019
334,Revenue,CAHD,Central - Bed Purchasing and Direct Payments,Permanent Nursing,Blossom Field,4267.36, 19-Nov-2019
335,Revenue,CAHD,South Glos Users in South Glos Homes,Permanent Nursing,Blossom Field,662.24, 19-Nov-2019
336,Revenue,CAHD,South Glos Users in South Glos Homes,Permanent Nursing,Blossom Field,662.24, 19-Nov-2019
337,Revenue,CAHD,North - bed purchasing and direct  payments,Permanent Nursing,Blossom Field,33854.48, 19-Nov-2019
338,Revenue,CAHD,North - bed purchasing and direct  payments,Permanent Nursing,Blossom Field,4962.96, 19-Nov-2019
339,Revenue,CAHD,South Glos Users in South Glos Homes,Permanent Nursing,Blossom Field,662.24, 19-Nov-2019
340,Revenue,CAHD,North - bed purchasing and direct  payments,Permanent Nursing,Blossom Field,4267.36, 19-Nov-2019
341,Revenue,CAHD,South Glos Users in South Glos Homes,Permanent Nursing,Blossom Field,662.24, 19-Nov-2019
342,Revenue,CAHD,South Glos Users in South Glos Homes,Permanent Nursing,Blossom Field,662.24, 19-Nov-2019
343,Revenue,CAHD,Central - Bed Purchasing and Direct Payments,Respite Planned - Nursing,Blossom Field,4800.00, 19-Nov-2019
344,Revenue,CAHD,South Glos Users in South Glos Homes,Permanent Nursing,Blossom Field,662.24, 19-Nov-2019
345,Revenue,CAHD,South Glos Users in South Glos Homes,Permanent Nursing,Blossom Field,662.24, 19-Nov-2019
346,Revenue,CAHD,North - S117,Permanent Nursing,Blossom Field,4400.00, 19-Nov-2019
347,Revenue,CAHD,North - bed purchasing and direct  payments,Permanent Nursing,Blossom Field,3634.96, 19-Nov-2019
348,Revenue,CAHD,South Glos Users in South Glos Homes,Permanent Nursing,Blossom Field,662.24, 19-Nov-2019
349,Revenue,CAHD,North - bed purchasing and direct  payments,Permanent Nursing,Blossom Field,5000.00, 19-Nov-2019
350,Revenue,CAHD,South Glos Users in South Glos Homes,Permanent Nursing,Blossom Field,662.24, 19-Nov-2019
351,Revenue,CAHD,South Glos Users in South Glos Homes,Permanent Nursing,Blossom Field,662.24, 19-Nov-2019
352,Revenue,CAHD,North - bed purchasing and direct  payments,Permanent Residential,Bluebells,3699.60, 19-Nov-2019
353,Revenue,CAHD,EARLY YEARS DEPRIVATION PAYMENT,Preventative Assistance,Bluebells Pre School,1152.40, 25-Nov-2019
354,Revenue,CAHD,Pathway 1 - Re-Ablement Home Care,Other Small Contracts,Bluebird Care (South Gloucestershire),588.90, 08-Nov-2019
355,Revenue,CAHD,Pathway 1 - Re-Ablement Home Care,Other Small Contracts,Bluebird Care (South Gloucestershire),573.80, 15-Nov-2019
356,Revenue,CAHD,Pathway 1 - Re-Ablement Home Care,Other Small Contracts,Bluebird Care (South Gloucestershire),588.90, 26-Nov-2019
357,Revenue,CAHD,Central - Community based support,Other Small Contracts,Bluebird Care (South Gloucestershire),3254.05, 01-Nov-2019
358,Revenue,CAHD,South - community based support,Other Small Contracts,Bluebird Care (South Gloucestershire),1260.73, 01-Nov-2019
359,Revenue,CAHD,North - Community based support,Other Small Contracts,Bluebird Care (South Gloucestershire),2233.79, 01-Nov-2019
360,Revenue,CAHD,Central - Community based support,Other Small Contracts,Bluebird Care (South Gloucestershire),3352.20, 01-Nov-2019
361,Revenue,CAHD,South - community based support,Other Small Contracts,Bluebird Care (South Gloucestershire),1180.91, 01-Nov-2019
362,Revenue,CAHD,North - Community based support,Other Small Contracts,Bluebird Care (South Gloucestershire),2135.31, 01-Nov-2019
363,Revenue,CAHD,Central - Community based support,Other Small Contracts,Bluebird Care (South Gloucestershire),3274.40, 11-Nov-2019
364,Revenue,CAHD,South - community based support,Other Small Contracts,Bluebird Care (South Gloucestershire),635.17, 11-Nov-2019
365,Revenue,CAHD,North - Community based support,Other Small Contracts,Bluebird Care (South Gloucestershire),3882.04, 11-Nov-2019
366,Revenue,CAHD,Central - Community based support,Other Small Contracts,Bluebird Care (South Gloucestershire),3325.07, 20-Nov-2019
367,Revenue,CAHD,South - community based support,Other Small Contracts,Bluebird Care (South Gloucestershire),1398.79, 20-Nov-2019
368,Revenue,CAHD,North - Community based support,Other Small Contracts,Bluebird Care (South Gloucestershire),4614.08, 20-Nov-2019
369,Revenue,CAHD,Central - Community based support,Other Small Contracts,Bluebird Care (South Gloucestershire),3018.77, 22-Nov-2019
370,Revenue,CAHD,South - community based support,Other Small Contracts,Bluebird Care (South Gloucestershire),1351.33, 22-Nov-2019
371,Revenue,CAHD,North - Community based support,Other Small Contracts,Bluebird Care (South Gloucestershire),4120.94, 22-Nov-2019
372,Revenue,CAHD,Central - Community based support,Other Small Contracts,Bluebird Care (South Gloucestershire),3385.47, 28-Nov-2019
373,Revenue,CAHD,South - community based support,Other Small Contracts,Bluebird Care (South Gloucestershire),1513.11, 28-Nov-2019
374,Revenue,CAHD,North - Community based support,Other Small Contracts,Bluebird Care (South Gloucestershire),4913.35, 28-Nov-2019
375,Revenue,CAHD,Training - Adult Services,Training Expenses,Individual,1375.00, 08-Nov-2019
376,Revenue,CAHD,Training - Adult Services,Training Expenses,Individual,975.00, 18-Nov-2019
377,Revenue,CAHD,CSC - Vinney Green Secure Unit,Service Contracts (Premises),Bob Ritchie Limited,430.00, 20-Nov-2019
378,Revenue,CAHD,CSC - Vinney Green Secure Unit,"Provisions (Food, etc)",Booker Cash & Carry,541.10, 08-Nov-2019
379,Revenue,CAHD,Sexual Health,Other Small Contracts,Boots UK Ltd,820.01, 05-Nov-2019
380,Revenue,CAHD,Sexual Health,Other Small Contracts,Boots UK Ltd,816.76, 05-Nov-2019
381,Revenue,CAHD,Drug and Alcohol Programme,Other Small Contracts,Boots UK Ltd,675.00, 05-Nov-2019
382,Revenue,CAHD,Drug and Alcohol Programme,Other Small Contracts,Boots UK Ltd,525.00, 05-Nov-2019
383,Revenue,CAHD,S28A cases,Permanent Residential,Bradbury House,6505.16, 19-Nov-2019
384,Revenue,CAHD,18-25 Year Olds,Permanent Residential,Bradbury House,9917.08, 19-Nov-2019
385,Revenue,CAHD,North - S117,Permanent Residential,Bradbury House,5740.24, 19-Nov-2019
386,Revenue,CAHD,Jointly Funded H&SC Packages,Permanent Residential,Bradbury House,7927.00, 19-Nov-2019
387,Revenue,CAHD,South - Bed Purchasing and Direct payments,Permanent Residential,Bradbury House,9777.00, 19-Nov-2019
388,Revenue,CAHD,NHS Health Checks,Other Small Contracts,Bradley Stoke Surgery,3358.00, 22-Nov-2019
389,Revenue,CAHD,Sexual Health,Other Small Contracts,Bradley Stoke Surgery,990.00, 26-Nov-2019
390,Revenue,CAHD,Sexual Health,Other Small Contracts,Bradley Stoke Surgery,2334.50, 26-Nov-2019
391,Revenue,CAHD,Drug and Alcohol Programme,Other Small Contracts,Bradley Stoke Surgery,1015.00, 05-Nov-2019
392,Revenue,CAHD,Sexual Health,Other Small Contracts,Bradley Stoke Surgery,2405.42, 26-Nov-2019
393,Revenue,CAHD,North - Community based support,Other Small Contracts,Bramble Home Care Limited,1055.76, 21-Nov-2019
394,Revenue,CAHD,North - Community based support,Other Small Contracts,Bramble Home Care Limited,608.78, 22-Nov-2019
395,Revenue,CAHD,CSC - Residential Placements,Permanent Residential,Branas ISAF Ltd,21035.71, 12-Nov-2019
396,Revenue,CAHD,CSC - Residential Placements,Permanent Residential,Branas ISAF Ltd,19928.57, 12-Nov-2019
397,Revenue,CAHD,Social Lettings Agency,Fees - General,Individual,8.15, 01-Nov-2019
398,Revenue,CAHD,Social Lettings Agency,Other Supplies & Services,Individual,766.10, 01-Nov-2019
399,Revenue,CAHD,North - bed purchasing and direct  payments,Permanent Residential,Bridge House Care Home,2625.52, 19-Nov-2019
400,Revenue,CAHD,North - bed purchasing and direct  payments,Permanent Residential,Bridgwater Court,10773.64, 19-Nov-2019
401,Revenue,CAHD,EARLY YEARS DEPRIVATION PAYMENT,Preventative Assistance,Bright Sparks Pre School Ltd,768.27, 25-Nov-2019
402,Revenue,CAHD,Early Years Inclusion Fund,Other Public Bodies,Bright Sparks Pre School Ltd,4250.00, 27-Nov-2019
403,Revenue,CAHD,Early Years Inclusion Fund,Other Public Bodies,Bright Sparks Pre School Ltd,1400.00, 27-Nov-2019
404,Revenue,CAHD,Early Years Inclusion Fund,Other Public Bodies,Bright Sparks Pre-School,3600.00, 27-Nov-2019
405,Revenue,CAHD,Community Support - South,Preventative Assistance,Bristol Ambulance EMS,926.00, 15-Nov-2019
406,Revenue,CAHD,Transport OLA Special Schools and RB,Client Transport,Bristol City Council,3641.33, 27-Nov-2019
407,Revenue,CAHD,ICES / NRS Contract,Daily Living Equipment,Bristol City Council,5146.32, 27-Nov-2019
408,Revenue,CAHD,Placements OLA Special Schools and RB,Other L.A.'s - General,Bristol City Council - Schools,2578.00, 27-Nov-2019
409,Revenue,CAHD,Placements OLA Special Schools and RB,Other L.A.'s - General,Bristol City Council - Schools,1381.00, 27-Nov-2019
410,Revenue,CAHD,Placements OLA Special Schools and RB,Other L.A.'s - General,Bristol City Council - Schools,914.33, 27-Nov-2019
411,Revenue,CAHD,Placements OLA Special Schools and RB,Other L.A.'s - General,Bristol City Council - Schools,1305.58, 27-Nov-2019
412,Revenue,CAHD,Placements OLA Special Schools and RB,Other L.A.'s - General,Bristol City Council - Schools,3356.33, 27-Nov-2019
413,Revenue,CAHD,Placements OLA Special Schools and RB,Other L.A.'s - General,Bristol City Council - Schools,2578.00, 27-Nov-2019
414,Revenue,CAHD,Placements OLA Special Schools and RB,Other L.A.'s - General,Bristol City Council - Schools,1381.00, 27-Nov-2019
415,Revenue,CAHD,Placements OLA Special Schools and RB,Other L.A.'s - General,Bristol City Council - Schools,2050.17, 27-Nov-2019
416,Revenue,CAHD,Placements OLA Special Schools and RB,Other L.A.'s - General,Bristol City Council - Schools,1381.00, 27-Nov-2019
417,Revenue,CAHD,Placements OLA Special Schools and RB,Other L.A.'s - General,Bristol City Council - Schools,1381.00, 27-Nov-2019
418,Revenue,CAHD,Placements OLA Special Schools and RB,Other L.A.'s - General,Bristol City Council - Schools,2050.17, 27-Nov-2019
419,Revenue,CAHD,Placements OLA Special Schools and RB,Other L.A.'s - General,Bristol City Council - Schools,1675.30, 27-Nov-2019
420,Revenue,CAHD,Placements OLA Special Schools and RB,Other L.A.'s - General,Bristol City Council - Schools,809.00, 27-Nov-2019
421,Revenue,CAHD,Placements OLA Special Schools and RB,Other L.A.'s - General,Bristol City Council - Schools,883.50, 27-Nov-2019
422,Revenue,CAHD,Placements OLA Special Schools and RB,Other L.A.'s - General,Bristol City Council - Schools,4107.54, 27-Nov-2019
423,Revenue,CAHD,Placements OLA Special Schools and RB,Other L.A.'s - General,Bristol City Council - Schools,777.50, 27-Nov-2019
424,Revenue,CAHD,Placements OLA Special Schools and RB,Other L.A.'s - General,Bristol City Council - Schools,1031.20, 27-Nov-2019
425,Revenue,CAHD,Placements OLA Special Schools and RB,Other L.A.'s - General,Bristol City Council - Schools,2783.92, 27-Nov-2019
426,Revenue,CAHD,Placements OLA Special Schools and RB,Other L.A.'s - General,Bristol City Council - Schools,2578.00, 27-Nov-2019
427,Revenue,CAHD,Placements OLA Special Schools and RB,Other L.A.'s - General,Bristol City Council - Schools,809.00, 27-Nov-2019
428,Revenue,CAHD,Placements OLA Special Schools and RB,Other L.A.'s - General,Bristol City Council - Schools,2578.00, 27-Nov-2019
429,Revenue,CAHD,Placements OLA Special Schools and RB,Other L.A.'s - General,Bristol City Council - Schools,3405.92, 27-Nov-2019
430,Revenue,CAHD,Placements OLA Special Schools and RB,Other L.A.'s - General,Bristol City Council - Schools,2062.40, 27-Nov-2019
431,Revenue,CAHD,Placements OLA Special Schools and RB,Other L.A.'s - General,Bristol City Council - Schools,2578.00, 27-Nov-2019
432,Revenue,CAHD,Placements OLA Special Schools and RB,Other L.A.'s - General,Bristol City Council - Schools,1305.58, 27-Nov-2019
433,Revenue,CAHD,CSC - LAC Placements,Personal Needs of Clients,Bristol Clifton & West of England Zoological,600.00, 27-Nov-2019
434,Revenue,CAHD,Bed and Breakfast,Bed & Breakfast,Bristol Housing & Support Limited,420.00, 07-Nov-2019
435,Revenue,CAHD,Bed and Breakfast,Bed & Breakfast,Bristol Housing & Support Limited,420.00, 12-Nov-2019
436,Revenue,CAHD,Bed and Breakfast,Bed & Breakfast,Bristol Housing & Support Limited,420.00, 18-Nov-2019
437,Revenue,CAHD,Bed and Breakfast,Bed & Breakfast,Bristol Housing & Support Limited,420.00, 25-Nov-2019
438,Revenue,CAHD,SEN High Needs - Not at School Base,Other Private Contractors,Bristol Tuition Limited,888.00, 14-Nov-2019
439,Revenue,CAHD,Parent Partnership,Fees - General,Individual,9000.00, 15-Nov-2019
440,Revenue,CAHD,Parent Partnership,Fees - General,Individual,4836.50, 26-Nov-2019
441,Revenue,CAHD,Parent Partnership,Fees - General,Individual,1248.00, 26-Nov-2019
442,Revenue,CAHD,Parent Partnership,Fees - General,Individual,1500.00, 26-Nov-2019
443,Revenue,CAHD,South Glos Users in South Glos Homes,Permanent Nursing,Brunelcare,733.19, 25-Nov-2019
444,Revenue,CAHD,South Glos Users in South Glos Homes,Permanent Nursing,Brunelcare,733.19, 25-Nov-2019
445,Revenue,CAHD,South Glos Users in South Glos Homes,Permanent Nursing,Brunelcare,733.19, 25-Nov-2019
446,Revenue,CAHD,South Glos Users in South Glos Homes,Permanent Nursing,Brunelcare,733.19, 25-Nov-2019
447,Revenue,CAHD,South Glos Users in South Glos Homes,Permanent Nursing,Brunelcare,733.19, 25-Nov-2019
448,Revenue,CAHD,South Glos Users in South Glos Homes,Permanent Nursing,Brunelcare,733.19, 25-Nov-2019
449,Revenue,CAHD,South Glos Users in South Glos Homes,Permanent Nursing,Brunelcare,733.19, 25-Nov-2019
450,Revenue,CAHD,South Glos Users in South Glos Homes,Permanent Nursing,Brunelcare,733.19, 25-Nov-2019
451,Revenue,CAHD,South Glos Users in South Glos Homes,Permanent Nursing,Brunelcare,733.19, 25-Nov-2019
452,Revenue,CAHD,South Glos Users in South Glos Homes,Permanent Nursing,Brunelcare,733.19, 25-Nov-2019
453,Revenue,CAHD,South Glos Users in South Glos Homes,Permanent Nursing,Brunelcare,733.19, 25-Nov-2019
454,Revenue,CAHD,South Glos Users in South Glos Homes,Permanent Nursing,Brunelcare,733.19, 25-Nov-2019
455,Revenue,CAHD,South Glos Users in South Glos Homes,Permanent Nursing,Brunelcare,733.19, 25-Nov-2019
456,Revenue,CAHD,South - S117,Permanent Nursing,Brunelcare,3669.07, 25-Nov-2019
457,Revenue,CAHD,North - S117,Permanent Nursing,Brunelcare,3669.07, 25-Nov-2019
458,Revenue,CAHD,North - S117,Permanent Nursing,Brunelcare,3669.07, 25-Nov-2019
459,Revenue,CAHD,South - Bed Purchasing and Direct payments,Permanent Nursing,Brunelcare,3669.07, 25-Nov-2019
460,Revenue,CAHD,South - Bed Purchasing and Direct payments,Permanent Nursing,Brunelcare,3038.66, 25-Nov-2019
461,Revenue,CAHD,South - Bed Purchasing and Direct payments,Permanent Nursing,Brunelcare,2674.86, 25-Nov-2019
462,Revenue,CAHD,South - Bed Purchasing and Direct payments,Permanent Nursing,Brunelcare,2831.98, 25-Nov-2019
463,Revenue,CAHD,South - Bed Purchasing and Direct payments,Permanent Nursing,Brunelcare,2938.31, 25-Nov-2019
464,Revenue,CAHD,South - Bed Purchasing and Direct payments,Permanent Nursing,Brunelcare,3056.38, 25-Nov-2019
465,Revenue,CAHD,South - Bed Purchasing and Direct payments,Permanent Nursing,Brunelcare,2663.87, 25-Nov-2019
466,Revenue,CAHD,South - Bed Purchasing and Direct payments,Permanent Nursing,Brunelcare,3669.07, 25-Nov-2019
467,Revenue,CAHD,Enhanced Dementia Beds,Respite Planned - Nursing,Brunelcare,1834.86, 25-Nov-2019
468,Revenue,CAHD,Enhanced Dementia Beds,Respite Planned - Nursing,Brunelcare,1693.71, 25-Nov-2019
469,Revenue,CAHD,South - Bed Purchasing and Direct payments,Respite Planned - Nursing,Brunelcare,1065.21, 25-Nov-2019
470,Revenue,CAHD,South - Bed Purchasing and Direct payments,Respite Planned - Nursing,Brunelcare,946.86, 25-Nov-2019
471,Revenue,CAHD,North - bed purchasing and direct  payments,Permanent Nursing,Brunelcare,2753.69, 25-Nov-2019
472,Revenue,CAHD,North - bed purchasing and direct  payments,Permanent Nursing,Brunelcare,2945.09, 25-Nov-2019
473,Revenue,CAHD,North - bed purchasing and direct  payments,Permanent Nursing,Brunelcare,2938.49, 25-Nov-2019
474,Revenue,CAHD,North - bed purchasing and direct  payments,Permanent Nursing,Brunelcare,3669.07, 25-Nov-2019
475,Revenue,CAHD,North - bed purchasing and direct  payments,Respite Planned - Nursing,Brunelcare,828.50, 25-Nov-2019
476,Revenue,CAHD,South Glos Users in South Glos Homes,Permanent Nursing,Brunelcare,2152.28, 25-Nov-2019
477,Revenue,CAHD,Central - Bed Purchasing and Direct Payments,Permanent Nursing,Brunelcare,3038.66, 25-Nov-2019
478,Revenue,CAHD,South - community based support,Other Small Contracts,Brunelcare,20575.50, 01-Nov-2019
479,Revenue,CAHD,North - Community based support,Other Small Contracts,Brunelcare,297.99, 01-Nov-2019
480,Revenue,CAHD,South - community based support,Other Small Contracts,Brunelcare,20485.63, 01-Nov-2019
481,Revenue,CAHD,North - Community based support,Other Small Contracts,Brunelcare,297.99, 01-Nov-2019
482,Revenue,CAHD,South - community based support,Other Small Contracts,Brunelcare,20412.98, 22-Nov-2019
483,Revenue,CAHD,North - Community based support,Other Small Contracts,Brunelcare,297.99, 22-Nov-2019
484,Revenue,CAHD,South - community based support,Other Small Contracts,Brunelcare,20556.58, 27-Nov-2019
485,Revenue,CAHD,North - Community based support,Other Small Contracts,Brunelcare,307.45, 27-Nov-2019
486,Revenue,CAHD,South - community based support,Other Small Contracts,Brunelcare,19638.96, 28-Nov-2019
487,Revenue,CAHD,North - Community based support,Other Small Contracts,Brunelcare,302.72, 28-Nov-2019
488,Revenue,CAHD,Pathway 1 - Re-Ablement Home Care,Other Small Contracts,Brunelcare,10045.46, 04-Nov-2019
489,Revenue,CAHD,South - community based support,Other Small Contracts,Brunelcare,1553.15, 27-Nov-2019
490,Revenue,CAHD,Information Systems - Software,Computer Equipment - Purchase,BT Global Services Solutions,489.74, 18-Nov-2019
491,Revenue,CAHD,Minor Adaptations Service,Other Transport Costs,Buddi Limited,425.00, 01-Nov-2019
492,Revenue,CAHD,CSC - Ofsted Work,Training Expenses,BW Training & Coaching Ltd,2300.00, 07-Nov-2019
493,Revenue,CAHD,Training - Adult Services,Training Expenses,BW Training & Coaching Ltd,900.00, 05-Nov-2019
494,Revenue,CAHD,Training - Adult Services,Training Expenses,BW Training & Coaching Ltd,900.00, 21-Nov-2019
495,Revenue,CAHD,CSC - Vinney Green Secure Unit,R & M by Departments,BWS Standfast Fire & Security Systems,806.00, 29-Nov-2019
496,Revenue,CAHD,CSC - Vinney Green Secure Unit,R & M by Departments,BWS Standfast Fire & Security Systems,35000.00, 29-Nov-2019
497,Revenue,CAHD,CSC - Agency Fostering,Foster Parent Allowances,By the Bridge Ltd,4479.00, 29-Nov-2019
498,Revenue,CAHD,Social Lettings Agency,Fees - General,Individual,16.16, 26-Nov-2019
499,Revenue,CAHD,Social Lettings Agency,Other Supplies & Services,Individual,744.44, 26-Nov-2019
500,Revenue,CAHD,Academy Resource Base Funding,Other Public Bodies,Cabot Learning Federation,1639.34, 22-Nov-2019
501,Revenue,CAHD,Academy Resource Base Funding,Other Public Bodies,Cabot Learning Federation,1693.98, 22-Nov-2019
502,Revenue,CAHD,NHS Health Checks,Other Small Contracts,Cadbury Heath Healthcare,2070.00, 22-Nov-2019
503,Revenue,CAHD,Sexual Health,Other Small Contracts,Cadbury Heath Healthcare,1020.00, 26-Nov-2019
504,Revenue,CAHD,Sexual Health,Other Small Contracts,Cadbury Heath Healthcare,1771.00, 26-Nov-2019
505,Revenue,CAHD,Drug and Alcohol Programme,Other Small Contracts,Cadbury Heath Healthcare,3045.00, 05-Nov-2019
506,Revenue,CAHD,Sexual Health,Other Small Contracts,Cadbury Heath Healthcare,1393.70, 26-Nov-2019
507,Revenue,CAHD,North - bed purchasing and direct  payments,Permanent Nursing,Caernarvon House,12806.72, 19-Nov-2019
508,Revenue,CAHD,North - bed purchasing and direct  payments,Permanent Nursing,Caernarvon House,3201.68, 19-Nov-2019
509,Revenue,CAHD,North - bed purchasing and direct  payments,Permanent Nursing,Caernarvon House,19200.00, 19-Nov-2019
510,Revenue,CAHD,North - bed purchasing and direct  payments,Permanent Nursing,Caernarvon House,4800.00, 19-Nov-2019
511,Revenue,CAHD,North - bed purchasing and direct  payments,Permanent Nursing,Caernarvon House,18841.60, 19-Nov-2019
512,Revenue,CAHD,North - bed purchasing and direct  payments,Permanent Nursing,Caernarvon House,4710.40, 19-Nov-2019
513,Revenue,CAHD,South - Bed Purchasing and Direct payments,Permanent Nursing,Caernarvon House,18841.60, 19-Nov-2019
514,Revenue,CAHD,South - Bed Purchasing and Direct payments,Permanent Nursing,Caernarvon House,4710.40, 19-Nov-2019
515,Revenue,CAHD,North - S117,Permanent Nursing,Caernarvon House,15960.96, 19-Nov-2019
516,Revenue,CAHD,North - S117,Permanent Nursing,Caernarvon House,3990.24, 19-Nov-2019
517,Revenue,CAHD,South - Bed Purchasing and Direct payments,Permanent Nursing,Caernarvon House,19660.80, 19-Nov-2019
518,Revenue,CAHD,South - Bed Purchasing and Direct payments,Permanent Nursing,Caernarvon House,4915.20, 19-Nov-2019
519,Revenue,CAHD,South - Bed Purchasing and Direct payments,Permanent Nursing,Caernarvon House,19200.00, 19-Nov-2019
520,Revenue,CAHD,South - Bed Purchasing and Direct payments,Permanent Nursing,Caernarvon House,4800.00, 19-Nov-2019
521,Revenue,CAHD,South - Bed Purchasing and Direct payments,Permanent Nursing,Caernarvon House,17203.20, 19-Nov-2019
522,Revenue,CAHD,South - Bed Purchasing and Direct payments,Permanent Nursing,Caernarvon House,4300.80, 19-Nov-2019
523,Revenue,CAHD,South - S117,Permanent Nursing,Caernarvon House,19660.80, 19-Nov-2019
524,Revenue,CAHD,South - S117,Permanent Nursing,Caernarvon House,4915.20, 19-Nov-2019
525,Revenue,CAHD,North - bed purchasing and direct  payments,Permanent Nursing,Caernarvon House,19200.00, 19-Nov-2019
526,Revenue,CAHD,North - bed purchasing and direct  payments,Permanent Nursing,Caernarvon House,4800.00, 19-Nov-2019
527,Revenue,CAHD,Schools Specific Grant Income,Other Public Bodies,Caerphilly County Borough Council,630.00, 21-Nov-2019
528,Revenue,CAHD,CSC - Residential Placements,Permanent Residential,Cambian Childcare Ltd,19285.80, 26-Nov-2019
529,Revenue,CAHD,CSC - Residential Placements,Permanent Residential,Cambian Childcare Ltd,19928.66, 26-Nov-2019
530,Revenue,CAHD,CSC - Residential Placements,Permanent Residential,Cambian Childcare Ltd,19042.99, 14-Nov-2019
531,Revenue,CAHD,CSC - Residential Placements,Permanent Residential,Cambian Childcare Ltd,23250.00, 08-Nov-2019
532,Revenue,CAHD,North - Community based support,Day Care / Social Activities,Camphill Communities Thornbury Limited,856.13, 01-Nov-2019
533,Revenue,CAHD,North - Community based support,Other Small Contracts,Camphill Communities Thornbury Limited,170.28, 01-Nov-2019
534,Revenue,CAHD,North - Community based support,Supported Living,Camphill Communities Thornbury Limited,917.62, 01-Nov-2019
535,Revenue,CAHD,North - Community based support,Day Care / Social Activities,Camphill Communities Thornbury Limited,700.04, 08-Nov-2019
536,Revenue,CAHD,North - Community based support,Other Small Contracts,Camphill Communities Thornbury Limited,170.28, 08-Nov-2019
537,Revenue,CAHD,North - Community based support,Supported Living,Camphill Communities Thornbury Limited,979.11, 08-Nov-2019
538,Revenue,CAHD,North - Community based support,Day Care / Social Activities,Camphill Communities Thornbury Limited,529.76, 15-Nov-2019
539,Revenue,CAHD,North - Community based support,Other Small Contracts,Camphill Communities Thornbury Limited,170.28, 15-Nov-2019
540,Revenue,CAHD,North - Community based support,Supported Living,Camphill Communities Thornbury Limited,1035.87, 15-Nov-2019
541,Revenue,CAHD,North - Community based support,Day Care / Social Activities,Camphill Communities Thornbury Limited,1087.90, 22-Nov-2019
542,Revenue,CAHD,North - Community based support,Other Small Contracts,Camphill Communities Thornbury Limited,170.28, 22-Nov-2019
543,Revenue,CAHD,North - Community based support,Supported Living,Camphill Communities Thornbury Limited,1040.60, 22-Nov-2019
544,Revenue,CAHD,North - Community based support,Day Care / Social Activities,Camphill Communities Thornbury Limited,1163.58, 29-Nov-2019
545,Revenue,CAHD,North - Community based support,Other Small Contracts,Camphill Communities Thornbury Limited,170.28, 29-Nov-2019
546,Revenue,CAHD,North - Community based support,Supported Living,Camphill Communities Thornbury Limited,690.58, 29-Nov-2019
547,Revenue,CAHD,North - S117,Permanent Residential,Canjayor,3937.76, 19-Nov-2019
548,Revenue,CAHD,Practitioner Training Grant (PT),Grant Income - Government Depts,Capita Business Services Limited,686.98, 08-Nov-2019
549,Revenue,CAHD,CAH Assistant Directors,Other Employee Expenses,Capita Resourcing Limited,4150.00, 08-Nov-2019
550,Revenue,CAHD,Central - Community based support,Other Small Contracts,Care 1st Homecare,2912.48, 07-Nov-2019
551,Revenue,CAHD,Central - Community based support,Other Small Contracts,Care 1st Homecare,2929.92, 07-Nov-2019
552,Revenue,CAHD,Central - Community based support,Other Small Contracts,Care 1st Homecare,2929.92, 07-Nov-2019
553,Revenue,CAHD,Central - Community based support,Other Small Contracts,Care 1st Homecare,2929.92, 15-Nov-2019
554,Revenue,CAHD,18-25 Year Olds,Other Small Contracts,Care Horizons Limited,77.28, 01-Nov-2019
555,Revenue,CAHD,Central - Community based support,Other Small Contracts,Care Horizons Limited,1386.21, 01-Nov-2019
556,Revenue,CAHD,South - community based support,Other Small Contracts,Care Horizons Limited,173.88, 01-Nov-2019
557,Revenue,CAHD,North - Community based support,Day Care / Social Activities,Care Horizons Limited,405.72, 01-Nov-2019
558,Revenue,CAHD,North - Community based support,Other Small Contracts,Care Horizons Limited,937.02, 01-Nov-2019
559,Revenue,CAHD,Younger MH non-res purchasing,Other Small Contracts,Care Horizons Limited,425.04, 01-Nov-2019
560,Revenue,CAHD,18-25 Year Olds,Other Small Contracts,Care Horizons Limited,193.20, 13-Nov-2019
561,Revenue,CAHD,Central - Community based support,Other Small Contracts,Care Horizons Limited,1352.40, 13-Nov-2019
562,Revenue,CAHD,South - community based support,Other Small Contracts,Care Horizons Limited,183.54, 13-Nov-2019
563,Revenue,CAHD,North - Community based support,Day Care / Social Activities,Care Horizons Limited,405.72, 13-Nov-2019
564,Revenue,CAHD,North - Community based support,Other Small Contracts,Care Horizons Limited,666.54, 13-Nov-2019
565,Revenue,CAHD,Younger MH non-res purchasing,Other Small Contracts,Care Horizons Limited,376.74, 13-Nov-2019
566,Revenue,CAHD,18-25 Year Olds,Other Small Contracts,Care Horizons Limited,115.92, 14-Nov-2019
567,Revenue,CAHD,Central - Community based support,Other Small Contracts,Care Horizons Limited,1081.92, 14-Nov-2019
568,Revenue,CAHD,South - community based support,Other Small Contracts,Care Horizons Limited,154.56, 14-Nov-2019
569,Revenue,CAHD,North - Community based support,Day Care / Social Activities,Care Horizons Limited,405.72, 14-Nov-2019
570,Revenue,CAHD,North - Community based support,Other Small Contracts,Care Horizons Limited,666.54, 14-Nov-2019
571,Revenue,CAHD,Younger MH non-res purchasing,Other Small Contracts,Care Horizons Limited,309.12, 14-Nov-2019
572,Revenue,CAHD,North - Community based support,Other Small Contracts,Carepride Ltd,908.04, 14-Nov-2019
573,Revenue,CAHD,North - Community based support,Other Small Contracts,Carepride Ltd,676.20, 14-Nov-2019
574,Revenue,CAHD,North - Community based support,Other Small Contracts,Carepride Ltd,618.24, 14-Nov-2019
575,Revenue,CAHD,CSC - Care Leavers Independent Living,Independent Living,Caring for Communities and People,11569.28, 29-Nov-2019
576,Revenue,CAHD,Central - Community based support,Supported Living,Cartrefi Cymru Co Operative,1340.32, 19-Nov-2019
577,Revenue,CAHD,Central - Community based support,Other Small Contracts,Cartrefi Cymru Co-operative Ltd,7194.32, 07-Nov-2019
578,Revenue,CAHD,Social Lettings Agency,Fees - General,Individual,10.53, 01-Nov-2019
579,Revenue,CAHD,Social Lettings Agency,Fees & Charges Income - General,Individual,595.11, 01-Nov-2019
580,Revenue,CAHD,Social Lettings Agency,Fees - General,Individual,10.53, 29-Nov-2019
581,Revenue,CAHD,Social Lettings Agency,Fees & Charges Income - General,Individual,595.11, 29-Nov-2019
582,Revenue,CAHD,North - Community based support,Day Care / Social Activities,Causeway House,2133.96, 19-Nov-2019
583,Revenue,CAHD,Central - Community based support,Day Care / Social Activities,Causeway House,1136.76, 19-Nov-2019
584,Revenue,CAHD,South - community based support,Day Care / Social Activities,Causeway House,5253.12, 19-Nov-2019
585,Revenue,CAHD,18-25 Year Olds,Day Care / Social Activities,Causeway House,1418.72, 19-Nov-2019
586,Revenue,CAHD,18-25 Year Olds,Day Care / Social Activities,Causeway House,4414.64, 19-Nov-2019
587,Revenue,CAHD,Central - Community based support,Day Care / Social Activities,Causeway House,3891.60, 19-Nov-2019
588,Revenue,CAHD,Central - Community based support,Day Care / Social Activities,Causeway House,1704.96, 19-Nov-2019
589,Revenue,CAHD,North - Community based support,Day Care / Social Activities,Causeway House,3226.20, 19-Nov-2019
590,Revenue,CAHD,North - Community based support,Day Care / Social Activities,Causeway House,4806.44, 19-Nov-2019
591,Revenue,CAHD,Central - Community based support,Day Care / Social Activities,Causeway House,3652.12, 19-Nov-2019
592,Revenue,CAHD,North - Community based support,Day Care / Social Activities,Causeway House,3149.08, 19-Nov-2019
593,Revenue,CAHD,North - Community based support,Day Care / Social Activities,Causeway House,568.32, 19-Nov-2019
594,Revenue,CAHD,South - Bed Purchasing and Direct payments,Permanent Nursing,Cedar Care Homes Limited,3095.92, 19-Nov-2019
595,Revenue,CAHD,North - bed purchasing and direct  payments,Permanent Residential,Cepen Lodge,2741.48, 19-Nov-2019
596,Revenue,CAHD,South - Bed Purchasing and Direct payments,Permanent Residential,Challenge House,2834.44, 19-Nov-2019
597,Revenue,CAHD,North - S117,Permanent Residential,Challenge House,2571.40, 19-Nov-2019
598,Revenue,CAHD,North - bed purchasing and direct  payments,Permanent Residential,Challenge House,2233.00, 19-Nov-2019
599,Revenue,CAHD,North - bed purchasing and direct  payments,Permanent Residential,Challenge House,2900.00, 19-Nov-2019
600,Revenue,CAHD,North - bed purchasing and direct  payments,Fees & Charges Income - General,Challenge House,663.17, 19-Nov-2019
601,Revenue,CAHD,Central - Bed Purchasing and Direct Payments,Permanent Residential,Challenge House,5407.09, 19-Nov-2019
602,Revenue,CAHD,Central - Bed Purchasing and Direct Payments,Permanent Residential,Challenge House,2365.60, 19-Nov-2019
603,Revenue,CAHD,Central - Bed Purchasing and Direct Payments,Fees & Charges Income - General,Challenge House,501.34, 19-Nov-2019
604,Revenue,CAHD,Central - Bed Purchasing and Direct Payments,Permanent Residential,Challenge House,5402.06, 19-Nov-2019
605,Revenue,CAHD,Central - Bed Purchasing and Direct Payments,Permanent Residential,Challenge House,2363.40, 19-Nov-2019
606,Revenue,CAHD,Central - Bed Purchasing and Direct Payments,Fees & Charges Income - General,Challenge House,1726.99, 19-Nov-2019
607,Revenue,CAHD,North - bed purchasing and direct  payments,Permanent Residential,Challenge House,2363.40, 19-Nov-2019
608,Revenue,CAHD,Central - Bed Purchasing and Direct Payments,Respite Emergency - Residential,Challenge House,2834.44, 19-Nov-2019
609,Revenue,CAHD,North - bed purchasing and direct  payments,Permanent Residential,Challenge House,2834.40, 19-Nov-2019
610,Revenue,CAHD,North - bed purchasing and direct  payments,Permanent Nursing,Challenge House,3130.36, 19-Nov-2019
611,Revenue,CAHD,Central - Bed Purchasing and Direct Payments,Permanent Nursing,Challenge House,3000.00, 19-Nov-2019
612,Revenue,CAHD,North - S117,Permanent Nursing,Challenge House,2395.80, 19-Nov-2019
613,Revenue,CAHD,Central - Bed Purchasing and Direct Payments,Permanent Nursing,Challenge House,3056.00, 19-Nov-2019
614,Revenue,CAHD,North - bed purchasing and direct  payments,Permanent Nursing,Challenge House,2571.40, 19-Nov-2019
615,Revenue,CAHD,North - bed purchasing and direct  payments,Fees & Charges Income - General,Challenge House,747.71, 19-Nov-2019
616,Revenue,CAHD,North - bed purchasing and direct  payments,Fees & Charges Income - General,Challenge House,1403.50, 19-Nov-2019
617,Revenue,CAHD,North - bed purchasing and direct  payments,Permanent Nursing,Challenge House,2395.80, 19-Nov-2019
618,Revenue,CAHD,North - bed purchasing and direct  payments,Permanent Nursing,Challenge House,3130.36, 19-Nov-2019
619,Revenue,CAHD,South Glos Users in South Glos Homes,Permanent Nursing,Challenge House,662.24, 19-Nov-2019
620,Revenue,CAHD,South Glos Users in South Glos Homes,Permanent Nursing,Challenge House,662.24, 19-Nov-2019
621,Revenue,CAHD,South Glos Users in South Glos Homes,Permanent Nursing,Challenge House,662.24, 19-Nov-2019
622,Revenue,CAHD,North - Community based support,Day Care / Social Activities,Challenge House,1437.20, 19-Nov-2019
623,Revenue,CAHD,South - Bed Purchasing and Direct payments,Permanent Nursing,Challenge House,2884.20, 19-Nov-2019
624,Revenue,CAHD,South Glos Users in South Glos Homes,Permanent Nursing,Challenge House,662.24, 19-Nov-2019
625,Revenue,CAHD,North - bed purchasing and direct  payments,Permanent Nursing,Challenge House,3335.08, 19-Nov-2019
626,Revenue,CAHD,North - bed purchasing and direct  payments,Permanent Nursing,Challenge House,3208.48, 19-Nov-2019
627,Revenue,CAHD,South Glos Users in South Glos Homes,Permanent Nursing,Challenge House,662.24, 19-Nov-2019
628,Revenue,CAHD,South Glos Users in South Glos Homes,Permanent Nursing,Challenge House,662.24, 19-Nov-2019
629,Revenue,CAHD,North - bed purchasing and direct  payments,Permanent Nursing,Challenge House,3338.84, 19-Nov-2019
630,Revenue,CAHD,South Glos Users in South Glos Homes,Permanent Nursing,Challenge House,662.24, 19-Nov-2019
631,Revenue,CAHD,South Glos Users in South Glos Homes,Permanent Nursing,Challenge House,662.24, 19-Nov-2019
632,Revenue,CAHD,South Glos Users in South Glos Homes,Permanent Nursing,Challenge House,662.24, 19-Nov-2019
633,Revenue,CAHD,South - Bed Purchasing and Direct payments,Permanent Nursing,Challenge House,3000.00, 19-Nov-2019
634,Revenue,CAHD,South Glos Users in South Glos Homes,Permanent Nursing,Challenge House,662.24, 19-Nov-2019
635,Revenue,CAHD,South - Bed Purchasing and Direct payments,Permanent Residential,Challenge House,3000.00, 19-Nov-2019
636,Revenue,CAHD,South Glos Users in South Glos Homes,Permanent Nursing,Challenge House,662.24, 19-Nov-2019
637,Revenue,CAHD,South Glos Users in South Glos Homes,Permanent Nursing,Challenge House,662.24, 19-Nov-2019
638,Revenue,CAHD,South Glos Users in South Glos Homes,Permanent Nursing,Challenge House,662.24, 19-Nov-2019
639,Revenue,CAHD,Central - Bed Purchasing and Direct Payments,Permanent Nursing,Challenge House,3000.00, 19-Nov-2019
640,Revenue,CAHD,South - Bed Purchasing and Direct payments,Permanent Nursing,Challenge House,3000.00, 19-Nov-2019
641,Revenue,CAHD,North - bed purchasing and direct  payments,Permanent Nursing,Challenge House,2827.52, 19-Nov-2019
642,Revenue,CAHD,South Glos Users in South Glos Homes,Permanent Nursing,Challenge House,662.24, 19-Nov-2019
643,Revenue,CAHD,North - bed purchasing and direct  payments,Permanent Nursing,Challenge House,3338.84, 19-Nov-2019
644,Revenue,CAHD,South Glos Users in South Glos Homes,Permanent Nursing,Challenge House,662.24, 19-Nov-2019
645,Revenue,CAHD,South Glos Users in South Glos Homes,Permanent Nursing,Challenge House,662.24, 19-Nov-2019
646,Revenue,CAHD,South Glos Users in South Glos Homes,Permanent Nursing,Challenge House,662.24, 19-Nov-2019
647,Revenue,CAHD,North - bed purchasing and direct  payments,Permanent Nursing,Challenge House,2827.52, 19-Nov-2019
648,Revenue,CAHD,South Glos Users in South Glos Homes,Permanent Nursing,Challenge House,662.24, 19-Nov-2019
649,Revenue,CAHD,South Glos Users in South Glos Homes,Permanent Nursing,Challenge House,662.24, 19-Nov-2019
650,Revenue,CAHD,North - bed purchasing and direct  payments,Permanent Nursing,Challenge House,3263.84, 19-Nov-2019
651,Revenue,CAHD,South Glos Users in South Glos Homes,Permanent Nursing,Challenge House,662.24, 19-Nov-2019
652,Revenue,CAHD,EARLY YEARS DEPRIVATION PAYMENT,Preventative Assistance,Charfield Pre-School,1536.54, 25-Nov-2019
653,Revenue,CAHD,CSC - Vinney Green Secure Unit,"Provisions (Food, etc)",Charles Saunders Limited,586.08, 08-Nov-2019
654,Revenue,CAHD,Alexandra Way,"Provisions (Food, etc)",Charles Saunders Limited,568.78, 14-Nov-2019
655,Revenue,CAHD,Alexandra Way,"Provisions (Food, etc)",Charles Saunders Limited,685.34, 14-Nov-2019
656,Revenue,CAHD,Mental Capacity Act / DOLS,Legal Fees,Individual,500.00, 21-Nov-2019
657,Revenue,CAHD,Central - Community based support,Other Small Contracts,Cherish Able Care Limited,2104.85, 14-Nov-2019
658,Revenue,CAHD,South - community based support,Other Small Contracts,Cherish Able Care Limited,6149.11, 14-Nov-2019
659,Revenue,CAHD,North - Community based support,Other Small Contracts,Cherish Able Care Limited,1243.99, 14-Nov-2019
660,Revenue,CAHD,Central - Community based support,Other Small Contracts,Cherish Able Care Limited,2090.66, 14-Nov-2019
661,Revenue,CAHD,South - community based support,Other Small Contracts,Cherish Able Care Limited,5369.39, 14-Nov-2019
662,Revenue,CAHD,North - Community based support,Other Small Contracts,Cherish Able Care Limited,1390.62, 14-Nov-2019
663,Revenue,CAHD,Central - Community based support,Other Small Contracts,Cherish Able Care Limited,2081.20, 14-Nov-2019
664,Revenue,CAHD,South - community based support,Other Small Contracts,Cherish Able Care Limited,4374.56, 14-Nov-2019
665,Revenue,CAHD,North - Community based support,Other Small Contracts,Cherish Able Care Limited,1206.15, 14-Nov-2019
666,Revenue,CAHD,Central - Community based support,Other Small Contracts,Cherish Able Care Limited,2081.20, 27-Nov-2019
667,Revenue,CAHD,South - community based support,Other Small Contracts,Cherish Able Care Limited,4965.91, 27-Nov-2019
668,Revenue,CAHD,North - Community based support,Other Small Contracts,Cherish Able Care Limited,1366.97, 27-Nov-2019
669,Revenue,CAHD,Central - Community based support,Other Small Contracts,Cherish Able Care Limited,2071.74, 27-Nov-2019
670,Revenue,CAHD,South - community based support,Other Small Contracts,Cherish Able Care Limited,4988.23, 27-Nov-2019
671,Revenue,CAHD,North - Community based support,Other Small Contracts,Cherish Able Care Limited,1281.83, 27-Nov-2019
672,Revenue,CAHD,Central - Community based support,Other Small Contracts,Cherish Able Care Limited,1939.30, 28-Nov-2019
673,Revenue,CAHD,South - community based support,Other Small Contracts,Cherish Able Care Limited,4956.35, 28-Nov-2019
674,Revenue,CAHD,North - Community based support,Other Small Contracts,Cherish Able Care Limited,1305.48, 28-Nov-2019
675,Revenue,CAHD,South - community based support,Supported Living,Cherry Orchards,1286.56, 14-Nov-2019
676,Revenue,CAHD,18-25 Year Olds,Other Small Contracts,Cherry Orchards,1589.28, 25-Nov-2019
677,Revenue,CAHD,18-25 Year Olds,Other Small Contracts,Cherry Orchards,3216.40, 15-Nov-2019
678,Revenue,CAHD,S28A cases,Permanent Residential,Chescombe Lodge,9764.44, 19-Nov-2019
679,Revenue,CAHD,EARLY YEARS DEPRIVATION PAYMENT,Preventative Assistance,Chipping Sodbury Pre School,614.61, 25-Nov-2019
680,Revenue,CAHD,18-25 Year Olds,Other Small Contracts,Cintre,73.20, 01-Nov-2019
681,Revenue,CAHD,Central - Community based support,Other Small Contracts,Cintre,312.32, 01-Nov-2019
682,Revenue,CAHD,South - community based support,Other Small Contracts,Cintre,746.64, 01-Nov-2019
683,Revenue,CAHD,18-25 Year Olds,Other Small Contracts,Cintre,78.08, 07-Nov-2019
684,Revenue,CAHD,Central - Community based support,Other Small Contracts,Cintre,292.80, 07-Nov-2019
685,Revenue,CAHD,South - community based support,Other Small Contracts,Cintre,746.64, 07-Nov-2019
686,Revenue,CAHD,18-25 Year Olds,Other Small Contracts,Cintre,73.20, 20-Nov-2019
687,Revenue,CAHD,Central - Community based support,Other Small Contracts,Cintre,234.24, 20-Nov-2019
688,Revenue,CAHD,South - community based support,Other Small Contracts,Cintre,683.20, 20-Nov-2019
689,Revenue,CAHD,18-25 Year Olds,Other Small Contracts,Cintre,39.04, 20-Nov-2019
690,Revenue,CAHD,Central - Community based support,Other Small Contracts,Cintre,312.32, 20-Nov-2019
691,Revenue,CAHD,South - community based support,Other Small Contracts,Cintre,683.20, 20-Nov-2019
692,Revenue,CAHD,18-25 Year Olds,Other Small Contracts,Cintre,73.20, 27-Nov-2019
693,Revenue,CAHD,Central - Community based support,Other Small Contracts,Cintre,380.64, 27-Nov-2019
694,Revenue,CAHD,South - community based support,Other Small Contracts,Cintre,746.64, 27-Nov-2019
695,Revenue,CAHD,Learning Difficulties,Premises Hire,Circadian Trust,845.00, 29-Nov-2019
696,Revenue,CAHD,Learning Difficulties,Premises Hire,Circadian Trust,860.00, 29-Nov-2019
697,Revenue,CAHD,Learning Difficulties,Premises Hire,Circadian Trust,540.00, 29-Nov-2019
698,Revenue,CAHD,Learning Difficulties,Premises Hire,Circadian Trust,607.50, 29-Nov-2019
699,Revenue,CAHD,Learning Difficulties,Premises Hire,Circadian Trust,607.50, 29-Nov-2019
700,Revenue,CAHD,Learning Difficulties,Premises Hire,Circadian Trust,540.00, 29-Nov-2019
701,Revenue,CAHD,Post 16 High Needs Placements,Other Private Contractors,City of Bristol College,367732.79, 26-Nov-2019
702,Revenue,CAHD,Homelessness Contingency,Other Supplies & Services,Civica UK Limited,26462.50, 29-Nov-2019
703,Revenue,CAHD,Information Systems - Software,Software Support & Maintenance,Civica UK Limited,24494.19, 15-Nov-2019
704,Revenue,CAHD,Section 117 Placements MH Younger,Permanent Residential,Claro Homes,3554.60, 19-Nov-2019
705,Revenue,CAHD,North - bed purchasing and direct  payments,Permanent Nursing,Claro Homes,3318.20, 19-Nov-2019
706,Revenue,CAHD,South - Bed Purchasing and Direct payments,Permanent Residential,Cleeve Lodge,3686.40, 19-Nov-2019
707,Revenue,CAHD,South - Bed Purchasing and Direct payments,Permanent Residential,Cleeve Lodge,3686.40, 19-Nov-2019
708,Revenue,CAHD,South - Bed Purchasing and Direct payments,Permanent Residential,Cleeve Lodge,1308.44, 19-Nov-2019
709,Revenue,CAHD,South - Bed Purchasing and Direct payments,Permanent Residential,Cleeve Lodge,2921.68, 19-Nov-2019
710,Revenue,CAHD,South - Bed Purchasing and Direct payments,Permanent Residential,Cleeve Lodge,3086.48, 19-Nov-2019
711,Revenue,CAHD,South - Bed Purchasing and Direct payments,Permanent Residential,Cleeve Lodge,4000.00, 19-Nov-2019
712,Revenue,CAHD,MH Purchasing - Younger,Respite Emergency - Residential,Cleeve Lodge,6000.00, 19-Nov-2019
713,Revenue,CAHD,South - Bed Purchasing and Direct payments,Permanent Residential,Cleeve Lodge,2893.00, 19-Nov-2019
714,Revenue,CAHD,South - Bed Purchasing and Direct payments,Permanent Residential,Cleeve Lodge,2635.60, 19-Nov-2019
715,Revenue,CAHD,South - Bed Purchasing and Direct payments,Respite Planned - Residential,Cleeve Lodge,2000.00, 19-Nov-2019
716,Revenue,CAHD,South - Bed Purchasing and Direct payments,Respite Planned - Residential,Cleeve Lodge,1571.43, 19-Nov-2019
717,Revenue,CAHD,South - Bed Purchasing and Direct payments,Respite Planned - Residential,Cleeve Lodge,571.43, 19-Nov-2019
718,Revenue,CAHD,North - bed purchasing and direct  payments,Permanent Nursing,Clevedon Court Nursing Home,3448.16, 19-Nov-2019
719,Revenue,CAHD,NHS Health Checks,Other Small Contracts,Close Farm Surgery,989.00, 22-Nov-2019
720,Revenue,CAHD,Sexual Health,Other Small Contracts,Close Farm Surgery,576.00, 26-Nov-2019
721,Revenue,CAHD,Sexual Health,Other Small Contracts,Close Farm Surgery,1127.00, 26-Nov-2019
722,Revenue,CAHD,Drug and Alcohol Programme,Other Small Contracts,Close Farm Surgery,710.50, 05-Nov-2019
723,Revenue,CAHD,Sexual Health,Other Small Contracts,Close Farm Surgery,825.90, 26-Nov-2019
724,Revenue,CAHD,North - Community based support,Other Small Contracts,Clover Health and Home Care Ltd,509.76, 28-Nov-2019
725,Revenue,CAHD,Central - Community based support,Other Small Contracts,Clover Health and Home Care Ltd,1970.01, 08-Nov-2019
726,Revenue,CAHD,Central - Community based support,Other Small Contracts,Clover Health and Home Care Ltd,2081.52, 28-Nov-2019
727,Revenue,CAHD,Central - Community based support,Other Small Contracts,Clover Health and Home Care Ltd,892.08, 19-Nov-2019
728,Revenue,CAHD,Central - Community based support,Other Small Contracts,Clover Health and Home Care Ltd,1210.68, 07-Nov-2019
729,Revenue,CAHD,Central - Community based support,Other Small Contracts,Clover Health and Home Care Ltd,1210.68, 28-Nov-2019
730,Revenue,CAHD,South - Bed Purchasing and Direct payments,Permanent Residential,Collingwood Care Home,2826.24, 19-Nov-2019
731,Revenue,CAHD,South - Bed Purchasing and Direct payments,Permanent Residential,Collingwood Care Home,2241.28, 19-Nov-2019
732,Revenue,CAHD,South - Bed Purchasing and Direct payments,Permanent Residential,Collingwood Care Home,2420.80, 19-Nov-2019
733,Revenue,CAHD,North - bed purchasing and direct  payments,Permanent Residential,Collingwood Care Home,3000.00, 19-Nov-2019
734,Revenue,CAHD,South - Bed Purchasing and Direct payments,Permanent Residential,Collingwood Care Home,2504.28, 19-Nov-2019
735,Revenue,CAHD,NHS Health Checks,Other Small Contracts,Concord Medical Centre,621.00, 22-Nov-2019
736,Revenue,CAHD,Sexual Health,Other Small Contracts,Concord Medical Centre,1690.50, 26-Nov-2019
737,Revenue,CAHD,Drug and Alcohol Programme,Other Small Contracts,Concord Medical Centre,812.00, 05-Nov-2019
738,Revenue,CAHD,Sexual Health,Other Small Contracts,Concord Medical Centre,2436.40, 26-Nov-2019
739,Revenue,CAHD,South - Bed Purchasing and Direct payments,Respite Planned - Residential,Concorde Lodge,19007.60, 19-Nov-2019
740,Revenue,CAHD,NHS Health Checks,Other Small Contracts,Coniston Medical Practice,506.00, 22-Nov-2019
741,Revenue,CAHD,Sexual Health,Other Small Contracts,Coniston Medical Practice,644.00, 26-Nov-2019
742,Revenue,CAHD,Drug and Alcohol Programme,Other Small Contracts,Coniston Medical Practice,1421.00, 05-Nov-2019
743,Revenue,CAHD,Sexual Health,Other Small Contracts,Coniston Medical Practice,1620.82, 26-Nov-2019
744,Revenue,CAHD,Statemented Support Equipment,Educational Supplies & Equipment,Connevans Limited,1590.05, 08-Nov-2019
745,Revenue,CAHD,Statemented Support Equipment,Educational Supplies & Equipment,Connevans Limited,1577.25, 21-Nov-2019
746,Revenue,CAHD,Bed and Breakfast,Bed & Breakfast,Connolly & Callaghan Limited,455.00, 07-Nov-2019
747,Revenue,CAHD,Bed and Breakfast,Bed & Breakfast,Connolly & Callaghan Limited,497.00, 07-Nov-2019
748,Revenue,CAHD,Bed and Breakfast,Bed & Breakfast,Connolly & Callaghan Limited,497.00, 07-Nov-2019
749,Revenue,CAHD,Bed and Breakfast,Bed & Breakfast,Connolly & Callaghan Limited,490.00, 07-Nov-2019
750,Revenue,CAHD,Bed and Breakfast,Bed & Breakfast,Connolly & Callaghan Limited,910.00, 07-Nov-2019
751,Revenue,CAHD,Bed and Breakfast,Bed & Breakfast,Connolly & Callaghan Limited,504.00, 07-Nov-2019
752,Revenue,CAHD,Bed and Breakfast,Bed & Breakfast,Connolly & Callaghan Limited,445.00, 07-Nov-2019
753,Revenue,CAHD,Bed and Breakfast,Bed & Breakfast,Connolly & Callaghan Limited,714.00, 11-Nov-2019
754,Revenue,CAHD,Bed and Breakfast,Bed & Breakfast,Connolly & Callaghan Limited,455.00, 07-Nov-2019
755,Revenue,CAHD,Bed and Breakfast,Bed & Breakfast,Connolly & Callaghan Limited,497.00, 11-Nov-2019
756,Revenue,CAHD,Bed and Breakfast,Bed & Breakfast,Connolly & Callaghan Limited,483.00, 07-Nov-2019
757,Revenue,CAHD,Bed and Breakfast,Bed & Breakfast,Connolly & Callaghan Limited,539.00, 07-Nov-2019
758,Revenue,CAHD,Bed and Breakfast,Bed & Breakfast,Connolly & Callaghan Limited,490.00, 08-Nov-2019
759,Revenue,CAHD,Bed and Breakfast,Bed & Breakfast,Connolly & Callaghan Limited,504.00, 13-Nov-2019
760,Revenue,CAHD,Bed and Breakfast,Bed & Breakfast,Connolly & Callaghan Limited,455.00, 08-Nov-2019
761,Revenue,CAHD,Bed and Breakfast,Bed & Breakfast,Connolly & Callaghan Limited,497.00, 11-Nov-2019
762,Revenue,CAHD,Bed and Breakfast,Bed & Breakfast,Connolly & Callaghan Limited,483.00, 08-Nov-2019
763,Revenue,CAHD,Bed and Breakfast,Bed & Breakfast,Connolly & Callaghan Limited,490.00, 14-Nov-2019
764,Revenue,CAHD,Bed and Breakfast,Bed & Breakfast,Connolly & Callaghan Limited,910.00, 14-Nov-2019
765,Revenue,CAHD,Bed and Breakfast,Bed & Breakfast,Connolly & Callaghan Limited,504.00, 14-Nov-2019
766,Revenue,CAHD,Bed and Breakfast,Bed & Breakfast,Connolly & Callaghan Limited,714.00, 14-Nov-2019
767,Revenue,CAHD,Bed and Breakfast,Bed & Breakfast,Connolly & Callaghan Limited,560.00, 14-Nov-2019
768,Revenue,CAHD,Bed and Breakfast,Bed & Breakfast,Connolly & Callaghan Limited,497.00, 14-Nov-2019
769,Revenue,CAHD,Bed and Breakfast,Bed & Breakfast,Connolly & Callaghan Limited,490.00, 20-Nov-2019
770,Revenue,CAHD,Bed and Breakfast,Bed & Breakfast,Connolly & Callaghan Limited,910.00, 20-Nov-2019
771,Revenue,CAHD,Bed and Breakfast,Bed & Breakfast,Connolly & Callaghan Limited,462.00, 20-Nov-2019
772,Revenue,CAHD,Bed and Breakfast,Bed & Breakfast,Connolly & Callaghan Limited,504.00, 20-Nov-2019
773,Revenue,CAHD,Bed and Breakfast,Bed & Breakfast,Connolly & Callaghan Limited,714.00, 20-Nov-2019
774,Revenue,CAHD,Bed and Breakfast,Bed & Breakfast,Connolly & Callaghan Limited,490.00, 20-Nov-2019
775,Revenue,CAHD,Bed and Breakfast,Bed & Breakfast,Connolly & Callaghan Limited,497.00, 20-Nov-2019
776,Revenue,CAHD,Bed and Breakfast,Bed & Breakfast,Connolly & Callaghan Limited,497.00, 20-Nov-2019
777,Revenue,CAHD,Bed and Breakfast,Bed & Breakfast,Connolly & Callaghan Limited,490.00, 28-Nov-2019
778,Revenue,CAHD,Bed and Breakfast,Bed & Breakfast,Connolly & Callaghan Limited,910.00, 28-Nov-2019
779,Revenue,CAHD,Bed and Breakfast,Bed & Breakfast,Connolly & Callaghan Limited,539.00, 28-Nov-2019
780,Revenue,CAHD,Bed and Breakfast,Bed & Breakfast,Connolly & Callaghan Limited,504.00, 28-Nov-2019
781,Revenue,CAHD,Bed and Breakfast,Bed & Breakfast,Connolly & Callaghan Limited,714.00, 28-Nov-2019
782,Revenue,CAHD,Bed and Breakfast,Bed & Breakfast,Connolly & Callaghan Limited,490.00, 28-Nov-2019
783,Revenue,CAHD,Bed and Breakfast,Bed & Breakfast,Connolly & Callaghan Limited,497.00, 28-Nov-2019
784,Revenue,CAHD,Bed and Breakfast,Bed & Breakfast,Connolly & Callaghan Limited,497.00, 28-Nov-2019
785,Revenue,CAHD,CSC - Vinney Green Secure Unit,Service Contracts (Premises),Coram Voice,1948.50, 07-Nov-2019
786,Revenue,CAHD,CSC - Fostering Carer Support,Care Mgt/Asesmnt Staff Pay,Core Assets Expert Services Ltd T/A Carter Brown,2400.00, 18-Nov-2019
787,Revenue,CAHD,Independent Special Placements - Pre 16,Other Private Contractors,Cotswold Chine School,25223.25, 01-Nov-2019
788,Revenue,CAHD,Independent Special Placements - Pre 16,Other Private Contractors,Cotswold Chine School,25223.25, 01-Nov-2019
789,Revenue,CAHD,Independent Special Placements - Post 16,Other Private Contractors,Cotswold Chine School,46897.50, 21-Nov-2019
790,Revenue,CAHD,Independent Special Placements - Post 16,Other Private Contractors,Cotswold Chine School,39292.50, 21-Nov-2019
791,Revenue,CAHD,Independent Special Placements - Post 16,Other Private Contractors,Cotswold Chine School,22815.00, 21-Nov-2019
792,Revenue,CAHD,Independent Special Placements - Pre 16,Other Private Contractors,Cotswold Chine School,23955.75, 21-Nov-2019
793,Revenue,CAHD,Independent Special Placements - Pre 16,Other Private Contractors,Cotswold Chine School,23965.75, 21-Nov-2019
794,Revenue,CAHD,Alexandra Way,Cleaning & Domestic Services,Countrywide Healthcare Supplies Ltd,646.59, 27-Nov-2019
795,Revenue,CAHD,EARLY YEARS DEPRIVATION PAYMENT,Preventative Assistance,Courtney Ladybirds Pre-School,768.27, 25-Nov-2019
796,Revenue,CAHD,NHS Health Checks,Other Small Contracts,Courtside Surgery,1794.00, 22-Nov-2019
797,Revenue,CAHD,Sexual Health,Other Small Contracts,Courtside Surgery,1026.00, 26-Nov-2019
798,Revenue,CAHD,Sexual Health,Other Small Contracts,Courtside Surgery,2737.00, 26-Nov-2019
799,Revenue,CAHD,Drug and Alcohol Programme,Other Small Contracts,Courtside Surgery,1522.50, 05-Nov-2019
800,Revenue,CAHD,Sexual Health,Other Small Contracts,Courtside Surgery,1569.20, 26-Nov-2019
801,Revenue,CAHD,Bed Purchasing - Southmead Hospital,Permanent Nursing,Cranhill Nursing Home,10729.00, 19-Nov-2019
802,Revenue,CAHD,North - bed purchasing and direct  payments,Permanent Residential,Cream Iii Ltd,8644.00, 19-Nov-2019
803,Revenue,CAHD,S28A cases,Permanent Residential,Creedy Court,10597.96, 19-Nov-2019
804,Revenue,CAHD,S28A cases,Permanent Residential,Creedy Court,8904.92, 19-Nov-2019
805,Revenue,CAHD,North - bed purchasing and direct  payments,Permanent Residential,Creedy Court,14054.00, 19-Nov-2019
806,Revenue,CAHD,Training Budget - Children`s Social Serv,Training Expenses,Cruidin Training and Consultancy Ltd,6488.65, 18-Nov-2019
807,Revenue,CAHD,South - Bed Purchasing and Direct payments,Permanent Residential,Daneswood,12268.80, 19-Nov-2019
808,Revenue,CAHD,South - community based support,Day Care / Social Activities,Daneswood,1413.28, 19-Nov-2019
809,Revenue,CAHD,North - bed purchasing and direct  payments,Permanent Residential,Daneswood,10264.00, 19-Nov-2019
810,Revenue,CAHD,North - S117,Permanent Nursing,Danshell Healthcare Group,10872.28, 19-Nov-2019
811,Revenue,CAHD,Jointly Funded H&SC Packages,Permanent Nursing,Danshell Healthcare Group,1613.28, 19-Nov-2019
812,Revenue,CAHD,Learning Difficulties PSL,Other Supplies & Services,Individual,2400.00, 22-Nov-2019
813,Revenue,CAHD,Training Budget - Children`s Social Serv,Training Expenses,Dartington Hall Trust,2741.16, 13-Nov-2019
814,Revenue,CAHD,South - community based support,Day Care / Social Activities,Deafblind Uk,1409.58, 28-Nov-2019
815,Revenue,CAHD,North - Community based support,Day Care / Social Activities,Deafblind Uk,641.76, 29-Nov-2019
816,Revenue,CAHD,South - community based support,Supported Living,Design House,2661.20, 19-Nov-2019
817,Revenue,CAHD,South - community based support,Supported Living,Design House,3063.00, 19-Nov-2019
818,Revenue,CAHD,South - community based support,Supported Living,Design House,3132.76, 19-Nov-2019
819,Revenue,CAHD,South - community based support,Supported Living,Design House,2993.28, 19-Nov-2019
820,Revenue,CAHD,South - community based support,Day Care / Social Activities,Design House,516.32, 19-Nov-2019
821,Revenue,CAHD,South - community based support,Day Care / Social Activities,Design House,1183.20, 19-Nov-2019
822,Revenue,CAHD,Central - Community based support,Day Care / Social Activities,Design House,2440.84, 19-Nov-2019
823,Revenue,CAHD,South - community based support,Day Care / Social Activities,Design House,921.28, 19-Nov-2019
824,Revenue,CAHD,South - community based support,Supported Living,Design House,2638.60, 19-Nov-2019
825,Revenue,CAHD,South - community based support,Supported Living,Design House,2638.60, 19-Nov-2019
826,Revenue,CAHD,South - community based support,Supported Living,Design House,2149.32, 19-Nov-2019
827,Revenue,CAHD,South - community based support,Day Care / Social Activities,Design House,516.32, 19-Nov-2019
828,Revenue,CAHD,South - community based support,Supported Living,Design House,1896.52, 19-Nov-2019
829,Revenue,CAHD,South - community based support,Supported Living,Design House,2516.60, 19-Nov-2019
830,Revenue,CAHD,South - community based support,Supported Living,Design House,4307.12, 19-Nov-2019
831,Revenue,CAHD,North - Community based support,Supported Living,Design House,3054.24, 19-Nov-2019
832,Revenue,CAHD,South - community based support,Day Care / Social Activities,Design House,1505.96, 19-Nov-2019
833,Revenue,CAHD,South - community based support,Supported Living,Design House,2924.68, 19-Nov-2019
834,Revenue,CAHD,South - community based support,Supported Living,Design House,2542.80, 19-Nov-2019
835,Revenue,CAHD,South - community based support,Supported Living,Design House,2257.48, 19-Nov-2019
836,Revenue,CAHD,South - community based support,Supported Living,Design House,2257.48, 19-Nov-2019
837,Revenue,CAHD,Central - Community based support,Other Small Contracts,Dhek Bhal,84.32, 07-Nov-2019
838,Revenue,CAHD,South - community based support,Other Small Contracts,Dhek Bhal,453.22, 07-Nov-2019
839,Revenue,CAHD,Central - Community based support,Other Small Contracts,Dhek Bhal,84.32, 20-Nov-2019
840,Revenue,CAHD,South - community based support,Other Small Contracts,Dhek Bhal,495.38, 20-Nov-2019
841,Revenue,CAHD,Central - Community based support,Other Small Contracts,Dhek Bhal,84.32, 20-Nov-2019
842,Revenue,CAHD,South - community based support,Other Small Contracts,Dhek Bhal,495.38, 20-Nov-2019
843,Revenue,CAHD,Early Years Development,Membership Fees,Individual,648.00, 15-Nov-2019
844,Revenue,CAHD,South - community based support,Supported Living,Dimensions  Suite 2,1903.12, 19-Nov-2019
845,Revenue,CAHD,South - community based support,Supported Living,Dimensions  Suite 2,1902.28, 19-Nov-2019
846,Revenue,CAHD,South - community based support,Supported Living,Dimensions  Suite 2,1902.28, 19-Nov-2019
847,Revenue,CAHD,South - community based support,Supported Living,Dimensions  Suite 2,1902.28, 19-Nov-2019
848,Revenue,CAHD,South - Bed Purchasing and Direct payments,Permanent Residential,Dimensions  Suite 2,5630.76, 19-Nov-2019
849,Revenue,CAHD,South - Bed Purchasing and Direct payments,Permanent Residential,Dimensions  Suite 2,2806.12, 19-Nov-2019
850,Revenue,CAHD,Training - Adult Services,Training Expenses,Do The Write Thing,850.00, 08-Nov-2019
851,Revenue,CAHD,Training - Adult Services,Training Expenses,Do The Write Thing,850.00, 08-Nov-2019
852,Revenue,CAHD,Training Budget - Children`s Social Serv,Training Expenses,Do The Write Thing,850.00, 28-Nov-2019
853,Revenue,CAHD,Community Support - North,Preventative Assistance,Dobbins Industrial Cleaning Limited,1450.00, 01-Nov-2019
854,Revenue,CAHD,18-25 Year Olds,Other Small Contracts,DoCare Limited,44.64, 01-Nov-2019
855,Revenue,CAHD,Central - Community based support,Other Small Contracts,DoCare Limited,15332.55, 01-Nov-2019
856,Revenue,CAHD,South - community based support,Day Care / Social Activities,DoCare Limited,70.20, 01-Nov-2019
857,Revenue,CAHD,South - community based support,Other Small Contracts,DoCare Limited,665.22, 01-Nov-2019
858,Revenue,CAHD,North - Community based support,Other Small Contracts,DoCare Limited,4602.24, 01-Nov-2019
859,Revenue,CAHD,Central - Community based support,Other Small Contracts,DoCare Limited,15465.87, 01-Nov-2019
860,Revenue,CAHD,South - community based support,Day Care / Social Activities,DoCare Limited,75.60, 01-Nov-2019
861,Revenue,CAHD,South - community based support,Other Small Contracts,DoCare Limited,692.37, 01-Nov-2019
862,Revenue,CAHD,North - Community based support,Other Small Contracts,DoCare Limited,4690.62, 01-Nov-2019
863,Revenue,CAHD,18-25 Year Olds,Other Small Contracts,DoCare Limited,44.64, 19-Nov-2019
864,Revenue,CAHD,Central - Community based support,Other Small Contracts,DoCare Limited,15108.39, 19-Nov-2019
865,Revenue,CAHD,South - community based support,Day Care / Social Activities,DoCare Limited,86.40, 19-Nov-2019
866,Revenue,CAHD,South - community based support,Other Small Contracts,DoCare Limited,692.58, 19-Nov-2019
867,Revenue,CAHD,North - Community based support,Other Small Contracts,DoCare Limited,4726.98, 19-Nov-2019
868,Revenue,CAHD,18-25 Year Olds,Other Small Contracts,DoCare Limited,44.64, 25-Nov-2019
869,Revenue,CAHD,Central - Community based support,Other Small Contracts,DoCare Limited,15113.73, 25-Nov-2019
870,Revenue,CAHD,South - community based support,Day Care / Social Activities,DoCare Limited,75.60, 25-Nov-2019
871,Revenue,CAHD,South - community based support,Other Small Contracts,DoCare Limited,687.18, 25-Nov-2019
872,Revenue,CAHD,North - Community based support,Other Small Contracts,DoCare Limited,4770.18, 25-Nov-2019
873,Revenue,CAHD,North - bed purchasing and direct  payments,One-off Planned Direct Payment,Individual,1560.00, 29-Nov-2019
874,Revenue,CAHD,NHS Health Checks,Other Small Contracts,Downend Health Group,5888.00, 22-Nov-2019
875,Revenue,CAHD,Sexual Health,Other Small Contracts,Downend Health Group,1080.00, 26-Nov-2019
876,Revenue,CAHD,Sexual Health,Other Small Contracts,Downend Health Group,2737.00, 26-Nov-2019
877,Revenue,CAHD,Drug and Alcohol Programme,Other Small Contracts,Downend Health Group,5582.50, 05-Nov-2019
878,Revenue,CAHD,Sexual Health,Other Small Contracts,Downend Health Group,2302.18, 26-Nov-2019
879,Revenue,CAHD,Tobacco Control,Other Small Contracts,Downend Health Group,545.00, 01-Nov-2019
880,Revenue,CAHD,Tobacco Control,Other Small Contracts,Downend Health Group,905.00, 01-Nov-2019
881,Revenue,CAHD,CSC - Age Related Allowances,ADPN Allowances,Individual,848.57, 15-Nov-2019
882,Revenue,CAHD,CSC - Professional Fees Foster Carers,ADPN Allowances,Individual,890.29, 15-Nov-2019
883,Revenue,CAHD,CSC - Vinney Green Secure Unit,Premises Maintenance by Contractor,Dura-Sport Ltd,14686.50, 01-Nov-2019
884,Revenue,CAHD,Bed and Breakfast,Bed & Breakfast,Individual,418.25, 01-Nov-2019
885,Revenue,CAHD,North - bed purchasing and direct  payments,Permanent Residential,East Court,2763.56, 19-Nov-2019
886,Revenue,CAHD,CSC - Residential Placements,Permanent Residential,East Sussex County Council,21670.00, 08-Nov-2019
887,Revenue,CAHD,CSC - Corporate Parenting,Other Supplies & Services,Edge Church International,2510.00, 28-Nov-2019
888,Revenue,CAHD,CSC - Corporate Parenting,Other Supplies & Services,Edge Church International,2510.00, 25-Nov-2019
889,Revenue,CAHD,South - Bed Purchasing and Direct payments,Permanent Residential,Edgecumbe Lodge,2662.40, 19-Nov-2019
890,Revenue,CAHD,South - Bed Purchasing and Direct payments,Permanent Residential,Edgecumbe Lodge,2662.40, 19-Nov-2019
891,Revenue,CAHD,South - Bed Purchasing and Direct payments,Permanent Residential,Edgecumbe Lodge,2230.32, 19-Nov-2019
892,Revenue,CAHD,Central - Bed Purchasing and Direct Payments,Permanent Residential,Edgecumbe Lodge,2740.00, 19-Nov-2019
893,Revenue,CAHD,North - S117,Permanent Residential,Edgecumbe Lodge,2719.76, 19-Nov-2019
894,Revenue,CAHD,South - Bed Purchasing and Direct payments,Permanent Residential,Edgecumbe Lodge,2662.40, 19-Nov-2019
895,Revenue,CAHD,South - Bed Purchasing and Direct payments,Permanent Residential,Edgecumbe Lodge,2303.60, 19-Nov-2019
896,Revenue,CAHD,South - Bed Purchasing and Direct payments,Permanent Residential,Edgecumbe Lodge,2504.28, 19-Nov-2019
897,Revenue,CAHD,South - Bed Purchasing and Direct payments,Permanent Residential,Edgecumbe Lodge,2536.84, 19-Nov-2019
898,Revenue,CAHD,South - Bed Purchasing and Direct payments,Permanent Residential,Edgecumbe Lodge,2662.40, 19-Nov-2019
899,Revenue,CAHD,South - Bed Purchasing and Direct payments,Permanent Residential,Edgemont House Ltd,3200.00, 19-Nov-2019
900,Revenue,CAHD,South - Bed Purchasing and Direct payments,Permanent Residential,Edgemont House Ltd,2826.24, 19-Nov-2019
901,Revenue,CAHD,South - Bed Purchasing and Direct payments,Permanent Residential,Edgemont House Ltd,2022.76, 19-Nov-2019
902,Revenue,CAHD,South Glos Users in South Glos Homes,Permanent Nursing,Edgemont View Nursing Home,662.24, 19-Nov-2019
903,Revenue,CAHD,South - Bed Purchasing and Direct payments,Permanent Nursing,Edgemont View Nursing Home,3584.00, 19-Nov-2019
904,Revenue,CAHD,South Glos Users in South Glos Homes,Permanent Nursing,Edgemont View Nursing Home,662.24, 19-Nov-2019
905,Revenue,CAHD,South Glos Users in South Glos Homes,Permanent Nursing,Edgemont View Nursing Home,662.24, 19-Nov-2019
906,Revenue,CAHD,South - Bed Purchasing and Direct payments,Permanent Nursing,Edgemont View Nursing Home,2560.00, 19-Nov-2019
907,Revenue,CAHD,South Glos Users in South Glos Homes,Permanent Nursing,Edgemont View Nursing Home,662.24, 19-Nov-2019
908,Revenue,CAHD,South - Bed Purchasing and Direct payments,Permanent Nursing,Edgemont View Nursing Home,4129.44, 19-Nov-2019
909,Revenue,CAHD,South Glos Users in South Glos Homes,Permanent Nursing,Edgemont View Nursing Home,662.24, 19-Nov-2019
910,Revenue,CAHD,South Glos Users in South Glos Homes,Permanent Nursing,Edgemont View Nursing Home,662.24, 19-Nov-2019
911,Revenue,CAHD,South Glos Users in South Glos Homes,Permanent Nursing,Edgemont View Nursing Home,662.24, 19-Nov-2019
912,Revenue,CAHD,South Glos Users in South Glos Homes,Permanent Nursing,Edgemont View Nursing Home,662.24, 19-Nov-2019
913,Revenue,CAHD,South Glos Users in South Glos Homes,Permanent Nursing,Edgemont View Nursing Home,662.24, 19-Nov-2019
914,Revenue,CAHD,South - Bed Purchasing and Direct payments,Permanent Nursing,Edgemont View Nursing Home,3005.16, 19-Nov-2019
915,Revenue,CAHD,South Glos Users in South Glos Homes,Permanent Nursing,Edgemont View Nursing Home,662.24, 19-Nov-2019
916,Revenue,CAHD,South Glos Users in South Glos Homes,Permanent Nursing,Edgemont View Nursing Home,662.24, 19-Nov-2019
917,Revenue,CAHD,South Glos Users in South Glos Homes,Permanent Nursing,Edgemont View Nursing Home,662.24, 19-Nov-2019
918,Revenue,CAHD,South Glos Users in South Glos Homes,Permanent Nursing,Edgemont View Nursing Home,662.24, 19-Nov-2019
919,Revenue,CAHD,South - Bed Purchasing and Direct payments,Permanent Nursing,Edgemont View Nursing Home,3005.16, 19-Nov-2019
920,Revenue,CAHD,South Glos Users in South Glos Homes,Permanent Nursing,Edgemont View Nursing Home,662.24, 19-Nov-2019
921,Revenue,CAHD,South Glos Users in South Glos Homes,Permanent Nursing,Edgemont View Nursing Home,662.24, 19-Nov-2019
922,Revenue,CAHD,South - Bed Purchasing and Direct payments,Permanent Nursing,Edgemont View Nursing Home,3584.00, 19-Nov-2019
923,Revenue,CAHD,South Glos Users in South Glos Homes,Permanent Nursing,Edgemont View Nursing Home,662.24, 19-Nov-2019
924,Revenue,CAHD,South - Bed Purchasing and Direct payments,Permanent Nursing,Edgemont View Nursing Home,3400.00, 19-Nov-2019
925,Revenue,CAHD,South Glos Users in South Glos Homes,Permanent Nursing,Edgemont View Nursing Home,662.24, 19-Nov-2019
926,Revenue,CAHD,Planning and Partnerships Procurement,Other Supplies & Services,Eldercare,3046.95, 29-Nov-2019
927,Revenue,CAHD,Planning and Partnerships Procurement,Other Supplies & Services,Eldercare,2488.82, 29-Nov-2019
928,Revenue,CAHD,Supporting People Programme,Grants to Voluntary Bodies,Elim Housing Association Limited,5372.63, 01-Nov-2019
929,Revenue,CAHD,Supporting People Programme,Grants to Voluntary Bodies,Elim Housing Association Limited,5372.63, 29-Nov-2019
930,Revenue,CAHD,Pathway 1 - Re-Ablement Home Care,Other Small Contracts,Elite Home Care Ltd,1016.80, 12-Nov-2019
931,Revenue,CAHD,Pathway 1 - Re-Ablement Home Care,Other Small Contracts,Elite Home Care Ltd,520.80, 14-Nov-2019
932,Revenue,CAHD,Pathway 1 - Re-Ablement Home Care,Other Small Contracts,Elite Home Care Ltd,1011.84, 14-Nov-2019
933,Revenue,CAHD,South - community based support,Day Care / Social Activities,Elite Home Care Ltd,213.28, 04-Nov-2019
934,Revenue,CAHD,South - community based support,Other Small Contracts,Elite Home Care Ltd,8447.78, 04-Nov-2019
935,Revenue,CAHD,North - Community based support,Other Small Contracts,Elite Home Care Ltd,600.16, 04-Nov-2019
936,Revenue,CAHD,South - community based support,Day Care / Social Activities,Elite Home Care Ltd,193.44, 04-Nov-2019
937,Revenue,CAHD,South - community based support,Other Small Contracts,Elite Home Care Ltd,8191.57, 04-Nov-2019
938,Revenue,CAHD,North - Community based support,Other Small Contracts,Elite Home Care Ltd,610.08, 04-Nov-2019
939,Revenue,CAHD,South - community based support,Day Care / Social Activities,Elite Home Care Ltd,203.36, 07-Nov-2019
940,Revenue,CAHD,South - community based support,Other Small Contracts,Elite Home Care Ltd,8352.97, 07-Nov-2019
941,Revenue,CAHD,North - Community based support,Other Small Contracts,Elite Home Care Ltd,560.48, 07-Nov-2019
942,Revenue,CAHD,South - community based support,Day Care / Social Activities,Elite Home Care Ltd,213.28, 14-Nov-2019
943,Revenue,CAHD,South - community based support,Other Small Contracts,Elite Home Care Ltd,8428.51, 14-Nov-2019
944,Revenue,CAHD,North - Community based support,Other Small Contracts,Elite Home Care Ltd,426.56, 14-Nov-2019
945,Revenue,CAHD,South - community based support,Day Care / Social Activities,Elite Home Care Ltd,193.44, 27-Nov-2019
946,Revenue,CAHD,South - community based support,Other Small Contracts,Elite Home Care Ltd,8364.60, 27-Nov-2019
947,Revenue,CAHD,North - Community based support,Other Small Contracts,Elite Home Care Ltd,421.60, 27-Nov-2019
948,Revenue,CAHD,NHS Health Checks,Other Small Contracts,Emersons Green Medical Centre,575.00, 22-Nov-2019
949,Revenue,CAHD,Sexual Health,Other Small Contracts,Emersons Green Medical Centre,1449.00, 26-Nov-2019
950,Revenue,CAHD,Drug and Alcohol Programme,Other Small Contracts,Emersons Green Medical Centre,1624.00, 05-Nov-2019
951,Revenue,CAHD,Sexual Health,Other Small Contracts,Emersons Green Medical Centre,1156.24, 26-Nov-2019
952,Revenue,CAHD,Special ISB,Other Public Bodies,Enable Trust,6557.36, 22-Nov-2019
953,Revenue,CAHD,Special ISB,Other Public Bodies,Enable Trust,7622.91, 22-Nov-2019
954,Revenue,CAHD,Special ISB,Other Public Bodies,Enable Trust,1639.34, 22-Nov-2019
955,Revenue,CAHD,Special ISB,Other Public Bodies,Enable Trust,819.67, 22-Nov-2019
956,Revenue,CAHD,Special ISB,Other Public Bodies,Enable Trust,2540.97, 22-Nov-2019
957,Revenue,CAHD,North - Community based support,Other Small Contracts,Epiphany In Care,4644.08, 14-Nov-2019
958,Revenue,CAHD,South - Bed Purchasing and Direct payments,Permanent Nursing,Epworth House,3072.00, 19-Nov-2019
959,Revenue,CAHD,North - S117,Permanent Residential,Evolve House,3276.80, 19-Nov-2019
960,Revenue,CAHD,South - Bed Purchasing and Direct payments,Permanent Residential,Evolve House,2681.76, 19-Nov-2019
961,Revenue,CAHD,Placements OLA Special Schools and RB,Other L.A.'s - General,Excalibur Academies Trust T/A,1511.83, 27-Nov-2019
962,Revenue,CAHD,Post 16 High Needs Placements,Other Private Contractors,Exeter Royal Academy For Deaf Education,2157.46, 26-Nov-2019
963,Revenue,CAHD,Post 16 High Needs Placements,Other Private Contractors,Exeter Royal Academy For Deaf Education,4675.00, 26-Nov-2019
964,Revenue,CAHD,Homeless - Private Sector Leasing,Prop.Serv. General Repairs,Express Property Services Limited,4442.58, 15-Nov-2019
965,Revenue,CAHD,Homeless - Private Sector Leasing,Prop.Serv. General Repairs,Express Property Services Limited,1895.28, 07-Nov-2019
966,Revenue,CAHD,North - bed purchasing and direct  payments,Permanent Residential,Eyre Court,3719.16, 19-Nov-2019
967,Revenue,CAHD,South - Bed Purchasing and Direct payments,Permanent Nursing,Fairview Court,3810.56, 19-Nov-2019
968,Revenue,CAHD,South Glos Users in South Glos Homes,Permanent Nursing,Fairview Court,662.24, 19-Nov-2019
969,Revenue,CAHD,South Glos Users in South Glos Homes,Permanent Nursing,Fairview Court,662.24, 19-Nov-2019
970,Revenue,CAHD,South Glos Users in South Glos Homes,Permanent Nursing,Fairview Court,662.24, 19-Nov-2019
971,Revenue,CAHD,South - Bed Purchasing and Direct payments,Permanent Nursing,Fairview Court,3810.56, 19-Nov-2019
972,Revenue,CAHD,South Glos Users in South Glos Homes,Permanent Nursing,Fairview Court,662.24, 19-Nov-2019
973,Revenue,CAHD,South Glos Users in South Glos Homes,Permanent Nursing,Fairview Court,662.24, 19-Nov-2019
974,Revenue,CAHD,South Glos Users in South Glos Homes,Permanent Nursing,Fairview Court,662.24, 19-Nov-2019
975,Revenue,CAHD,South - Bed Purchasing and Direct payments,Permanent Nursing,Fairview Court,3547.76, 19-Nov-2019
976,Revenue,CAHD,South Glos Users in South Glos Homes,Permanent Nursing,Fairview Court,662.24, 19-Nov-2019
977,Revenue,CAHD,South - Bed Purchasing and Direct payments,Permanent Nursing,Fairview Court,3506.00, 19-Nov-2019
978,Revenue,CAHD,South Glos Users in South Glos Homes,Permanent Nursing,Fairview Court,662.24, 19-Nov-2019
979,Revenue,CAHD,South Glos Users in South Glos Homes,Permanent Nursing,Fairview Court,662.24, 19-Nov-2019
980,Revenue,CAHD,South Glos Users in South Glos Homes,Permanent Nursing,Fairview Court,662.24, 19-Nov-2019
981,Revenue,CAHD,South Glos Users in South Glos Homes,Permanent Nursing,Fairview Court,662.24, 19-Nov-2019
982,Revenue,CAHD,South - S117,Permanent Nursing,Fairview Court,4173.84, 19-Nov-2019
983,Revenue,CAHD,South Glos Users in South Glos Homes,Permanent Nursing,Fairview Court,662.24, 19-Nov-2019
984,Revenue,CAHD,South Glos Users in South Glos Homes,Permanent Nursing,Fairview Court,662.24, 19-Nov-2019
985,Revenue,CAHD,South - Bed Purchasing and Direct payments,Permanent Nursing,Fairview Court,3382.48, 19-Nov-2019
986,Revenue,CAHD,South Glos Users in South Glos Homes,Permanent Nursing,Fairview Court,662.24, 19-Nov-2019
987,Revenue,CAHD,South Glos Users in South Glos Homes,Permanent Nursing,Fairview Court,662.24, 19-Nov-2019
988,Revenue,CAHD,South Glos Users in South Glos Homes,Permanent Nursing,Fairview Court,662.24, 19-Nov-2019
989,Revenue,CAHD,South Glos Users in South Glos Homes,Permanent Nursing,Fairview Court,662.24, 19-Nov-2019
990,Revenue,CAHD,South Glos Users in South Glos Homes,Permanent Nursing,Fairview Court,662.24, 19-Nov-2019
991,Revenue,CAHD,South Glos Users in South Glos Homes,Permanent Nursing,Fairview Court,662.24, 19-Nov-2019
992,Revenue,CAHD,South - Bed Purchasing and Direct payments,Permanent Nursing,Fairview Court,7984.29, 19-Nov-2019
993,Revenue,CAHD,South - Bed Purchasing and Direct payments,Permanent Nursing,Fairview Court,4140.00, 19-Nov-2019
994,Revenue,CAHD,South Glos Users in South Glos Homes,Permanent Nursing,Fairview Court,662.24, 19-Nov-2019
995,Revenue,CAHD,South - Bed Purchasing and Direct payments,Permanent Nursing,Fairview Court,3810.56, 19-Nov-2019
996,Revenue,CAHD,South Glos Users in South Glos Homes,Permanent Nursing,Fairview Court,662.24, 19-Nov-2019
997,Revenue,CAHD,South Glos Users in South Glos Homes,Permanent Nursing,Fairview Court,662.24, 19-Nov-2019
998,Revenue,CAHD,South Glos Users in South Glos Homes,Permanent Nursing,Fairview Court,662.24, 19-Nov-2019
999,Revenue,CAHD,South Glos Users in South Glos Homes,Permanent Nursing,Fairview Court,662.24, 19-Nov-2019
"1,000",Revenue,CAHD,South Glos Users in South Glos Homes,Permanent Nursing,Fairview Court,662.24, 19-Nov-2019
"1,001",Revenue,CAHD,North - bed purchasing and direct  payments,Permanent Nursing,Fairview Court,3547.76, 19-Nov-2019
"1,002",Revenue,CAHD,South Glos Users in South Glos Homes,Permanent Nursing,Fairview Court,662.24, 19-Nov-2019
"1,003",Revenue,CAHD,South Glos Users in South Glos Homes,Permanent Nursing,Fairview Court,662.24, 19-Nov-2019
"1,004",Revenue,CAHD,South Glos Users in South Glos Homes,Permanent Nursing,Fairview Court,662.24, 19-Nov-2019
"1,005",Revenue,CAHD,South - Bed Purchasing and Direct payments,Permanent Residential,Fairview Court,4048.64, 19-Nov-2019
"1,006",Revenue,CAHD,South Glos Users in South Glos Homes,Permanent Nursing,Fairview Court,662.24, 19-Nov-2019
"1,007",Revenue,CAHD,South Glos Users in South Glos Homes,Permanent Nursing,Fairview Court,662.24, 19-Nov-2019
"1,008",Revenue,CAHD,North - bed purchasing and direct  payments,Permanent Residential,Fairview Court,3256.32, 19-Nov-2019
"1,009",Revenue,CAHD,South - Bed Purchasing and Direct payments,Respite Planned - Nursing,Fairview Court,1773.33, 19-Nov-2019
"1,010",Revenue,CAHD,South - Bed Purchasing and Direct payments,Permanent Nursing,Fairview Court,3483.68, 19-Nov-2019
"1,011",Revenue,CAHD,South Glos Users in South Glos Homes,Permanent Nursing,Fairview Court,662.24, 19-Nov-2019
"1,012",Revenue,CAHD,North - bed purchasing and direct  payments,Permanent Nursing,Fairview Court,3810.56, 19-Nov-2019
"1,013",Revenue,CAHD,South Glos Users in South Glos Homes,Permanent Nursing,Fairview Court,662.24, 19-Nov-2019
"1,014",Revenue,CAHD,South - Bed Purchasing and Direct payments,Permanent Nursing,Fairview Court,3130.36, 19-Nov-2019
"1,015",Revenue,CAHD,South Glos Users in South Glos Homes,Permanent Nursing,Fairview Court,662.24, 19-Nov-2019
"1,016",Revenue,CAHD,South - Bed Purchasing and Direct payments,Permanent Nursing,Fairview Court,3810.56, 19-Nov-2019
"1,017",Revenue,CAHD,South Glos Users in South Glos Homes,Permanent Nursing,Fairview Court,662.24, 19-Nov-2019
"1,018",Revenue,CAHD,South - Bed Purchasing and Direct payments,Permanent Nursing,Fairview Court,3547.76, 19-Nov-2019
"1,019",Revenue,CAHD,South Glos Users in South Glos Homes,Permanent Nursing,Fairview Court,662.24, 19-Nov-2019
"1,020",Revenue,CAHD,South - Bed Purchasing and Direct payments,Permanent Nursing,Fairview Court,4028.00, 19-Nov-2019
"1,021",Revenue,CAHD,South Glos Users in South Glos Homes,Permanent Nursing,Fairview Court,662.24, 19-Nov-2019
"1,022",Revenue,CAHD,South - S117,Permanent Residential,Fairview House,2303.52, 19-Nov-2019
"1,023",Revenue,CAHD,South - Bed Purchasing and Direct payments,Permanent Residential,Fairview House,2303.52, 19-Nov-2019
"1,024",Revenue,CAHD,North - bed purchasing and direct  payments,Permanent Residential,Fairview House,2846.72, 19-Nov-2019
"1,025",Revenue,CAHD,South - Bed Purchasing and Direct payments,Respite Planned - Residential,Fairview House,728.57, 19-Nov-2019
"1,026",Revenue,CAHD,Central - Bed Purchasing and Direct Payments,Permanent Residential,Fairview House,3400.00, 19-Nov-2019
"1,027",Revenue,CAHD,South - Bed Purchasing and Direct payments,Permanent Residential,Fairview House,2303.52, 19-Nov-2019
"1,028",Revenue,CAHD,South - Bed Purchasing and Direct payments,Permanent Residential,Fairview House,2230.32, 19-Nov-2019
"1,029",Revenue,CAHD,South - Bed Purchasing and Direct payments,Permanent Residential,Fairview House,2230.40, 19-Nov-2019
"1,030",Revenue,CAHD,North - bed purchasing and direct  payments,Permanent Residential,Faith House,3297.28, 19-Nov-2019
"1,031",Revenue,CAHD,North - bed purchasing and direct  payments,Permanent Residential,Faith House,2805.76, 19-Nov-2019
"1,032",Revenue,CAHD,North - bed purchasing and direct  payments,Respite Planned - Residential,Faith House,2980.00, 19-Nov-2019
"1,033",Revenue,CAHD,North - bed purchasing and direct  payments,Permanent Residential,Faith House,2410.60, 19-Nov-2019
"1,034",Revenue,CAHD,North - bed purchasing and direct  payments,Permanent Residential,Faith House,2980.00, 19-Nov-2019
"1,035",Revenue,CAHD,South - Bed Purchasing and Direct payments,Permanent Residential,Faith House,2900.00, 19-Nov-2019
"1,036",Revenue,CAHD,South - Bed Purchasing and Direct payments,Permanent Residential,Faith House,2980.00, 19-Nov-2019
"1,037",Revenue,CAHD,Central - Bed Purchasing and Direct Payments,Permanent Nursing,Festival House,3055.04, 19-Nov-2019
"1,038",Revenue,CAHD,North - bed purchasing and direct  payments,Permanent Nursing,Field House Care Home,3522.56, 19-Nov-2019
"1,039",Revenue,CAHD,South Glos Users in South Glos Homes,Permanent Nursing,Field House Care Home,662.24, 19-Nov-2019
"1,040",Revenue,CAHD,North - bed purchasing and direct  payments,Permanent Nursing,Field House Care Home,3522.56, 19-Nov-2019
"1,041",Revenue,CAHD,North - bed purchasing and direct  payments,Permanent Nursing,Field House Care Home,3403.60, 19-Nov-2019
"1,042",Revenue,CAHD,North - bed purchasing and direct  payments,Permanent Nursing,Field House Care Home,3589.48, 19-Nov-2019
"1,043",Revenue,CAHD,North - bed purchasing and direct  payments,Permanent Nursing,Field House Care Home,3422.52, 19-Nov-2019
"1,044",Revenue,CAHD,North - bed purchasing and direct  payments,Permanent Nursing,Field House Care Home,3422.52, 19-Nov-2019
"1,045",Revenue,CAHD,Central - Bed Purchasing and Direct Payments,Permanent Nursing,Field House Care Home,3740.00, 19-Nov-2019
"1,046",Revenue,CAHD,North - bed purchasing and direct  payments,Permanent Nursing,Field House Care Home,2216.32, 19-Nov-2019
"1,047",Revenue,CAHD,Central - Bed Purchasing and Direct Payments,Permanent Nursing,Field House Care Home,3740.00, 19-Nov-2019
"1,048",Revenue,CAHD,North - bed purchasing and direct  payments,Permanent Nursing,Field House Care Home,2216.32, 19-Nov-2019
"1,049",Revenue,CAHD,South - Bed Purchasing and Direct payments,Permanent Nursing,Field House Care Home,3600.00, 19-Nov-2019
"1,050",Revenue,CAHD,South - Bed Purchasing and Direct payments,Permanent Nursing,Field House Care Home,1800.00, 19-Nov-2019
"1,051",Revenue,CAHD,North - bed purchasing and direct  payments,Permanent Nursing,Field House Care Home,3506.00, 19-Nov-2019
"1,052",Revenue,CAHD,Central - Bed Purchasing and Direct Payments,Permanent Residential,Fieldview,3481.60, 19-Nov-2019
"1,053",Revenue,CAHD,Central - Bed Purchasing and Direct Payments,Respite Planned - Residential,Fieldview,1335.71, 19-Nov-2019
"1,054",Revenue,CAHD,North - bed purchasing and direct  payments,Permanent Residential,Fieldview,3756.44, 19-Nov-2019
"1,055",Revenue,CAHD,North - bed purchasing and direct  payments,Permanent Residential,Fieldview,3200.00, 19-Nov-2019
"1,056",Revenue,CAHD,MH Purchasing - Younger,Permanent Nursing,Fieldview,5496.52, 19-Nov-2019
"1,057",Revenue,CAHD,EARLY YEARS DEPRIVATION PAYMENT,Preventative Assistance,First Friends (Mangotsfield),727.79, 25-Nov-2019
"1,058",Revenue,CAHD,EARLY YEARS DEPRIVATION PAYMENT,Preventative Assistance,First Step Pre School Ltd,1536.53, 25-Nov-2019
"1,059",Revenue,CAHD,EARLY YEARS DISABILITY  ACCES FUND,Preventative Assistance,First Steps Day Nursery,615.00, 26-Nov-2019
"1,060",Revenue,CAHD,CSC - Agency Fostering,Foster Parent Allowances,Five Rivers Child Care Limited,4069.86, 01-Nov-2019
"1,061",Revenue,CAHD,CSC - Agency Fostering,Foster Parent Allowances,Five Rivers Child Care Limited,3627.00, 01-Nov-2019
"1,062",Revenue,CAHD,CSC - Agency Fostering,Foster Parent Allowances,Five Rivers Child Care Limited,4291.29, 01-Nov-2019
"1,063",Revenue,CAHD,CSC - Agency Fostering,Foster Parent Allowances,Five Rivers Child Care Limited,3518.19, 01-Nov-2019
"1,064",Revenue,CAHD,CSC - Agency Fostering,Foster Parent Allowances,Five Rivers Child Care Limited,4069.86, 01-Nov-2019
"1,065",Revenue,CAHD,CSC - Agency Fostering,Foster Parent Allowances,Five Rivers Child Care Limited,3447.82, 01-Nov-2019
"1,066",Revenue,CAHD,CSC - Agency Fostering,Foster Parent Allowances,Five Rivers Child Care Limited,3447.82, 01-Nov-2019
"1,067",Revenue,CAHD,CSC - Agency Fostering,Foster Parent Allowances,Five Rivers Child Care Limited,3671.29, 01-Nov-2019
"1,068",Revenue,CAHD,CSC - Agency Fostering,Foster Parent Allowances,Five Rivers Child Care Limited,3938.57, 29-Nov-2019
"1,069",Revenue,CAHD,CSC - Agency Fostering,Foster Parent Allowances,Five Rivers Child Care Limited,3404.70, 29-Nov-2019
"1,070",Revenue,CAHD,CSC - Agency Fostering,Foster Parent Allowances,Five Rivers Child Care Limited,3552.86, 29-Nov-2019
"1,071",Revenue,CAHD,CSC - Agency Fostering,Foster Parent Allowances,Five Rivers Child Care Limited,3336.60, 29-Nov-2019
"1,072",Revenue,CAHD,CSC - Agency Fostering,Foster Parent Allowances,Five Rivers Child Care Limited,3336.60, 29-Nov-2019
"1,073",Revenue,CAHD,Future Bright,Fees - General,Forest of Avon Trust,900.00, 07-Nov-2019
"1,074",Revenue,CAHD,CSC - Agency Fostering,Foster Parent Allowances,Foster Care Associates Limited,3998.40, 19-Nov-2019
"1,075",Revenue,CAHD,CSC - Asylum Seekers - Unaccompanied,Foster Parent Allowances,Foster Care Associates Limited,2328.60, 19-Nov-2019
"1,076",Revenue,CAHD,CSC - Asylum Seekers - Unaccompanied,Foster Parent Allowances,Foster Care Associates Limited,3405.35, 14-Nov-2019
"1,077",Revenue,CAHD,CSC - Agency Fostering,Foster Parent Allowances,Foster Care Associates Limited,3769.91, 14-Nov-2019
"1,078",Revenue,CAHD,Central - Community based support,Other Small Contracts,Fourways Care Limited,440.00, 01-Nov-2019
"1,079",Revenue,CAHD,South - community based support,Other Small Contracts,Fourways Care Limited,935.68, 01-Nov-2019
"1,080",Revenue,CAHD,North - Community based support,Other Small Contracts,Fourways Care Limited,10429.04, 01-Nov-2019
"1,081",Revenue,CAHD,Central - Community based support,Other Small Contracts,Fourways Care Limited,538.72, 07-Nov-2019
"1,082",Revenue,CAHD,South - community based support,Other Small Contracts,Fourways Care Limited,771.04, 07-Nov-2019
"1,083",Revenue,CAHD,North - Community based support,Other Small Contracts,Fourways Care Limited,10607.04, 07-Nov-2019
"1,084",Revenue,CAHD,Central - Community based support,Other Small Contracts,Fourways Care Limited,528.96, 14-Nov-2019
"1,085",Revenue,CAHD,South - community based support,Other Small Contracts,Fourways Care Limited,600.24, 14-Nov-2019
"1,086",Revenue,CAHD,North - Community based support,Other Small Contracts,Fourways Care Limited,10794.72, 14-Nov-2019
"1,087",Revenue,CAHD,Central - Community based support,Other Small Contracts,Fourways Care Limited,533.84, 22-Nov-2019
"1,088",Revenue,CAHD,South - community based support,Other Small Contracts,Fourways Care Limited,790.56, 22-Nov-2019
"1,089",Revenue,CAHD,North - Community based support,Other Small Contracts,Fourways Care Limited,10913.28, 22-Nov-2019
"1,090",Revenue,CAHD,Central - Community based support,Other Small Contracts,Fourways Care Limited,522.96, 27-Nov-2019
"1,091",Revenue,CAHD,South - community based support,Other Small Contracts,Fourways Care Limited,761.28, 27-Nov-2019
"1,092",Revenue,CAHD,North - Community based support,Other Small Contracts,Fourways Care Limited,10647.60, 27-Nov-2019
"1,093",Revenue,CAHD,Pathway 1 - Re-Ablement Home Care,Other Small Contracts,Fourways Care Limited,2454.64, 28-Nov-2019
"1,094",Revenue,CAHD,Supporting People Programme,Grants to Voluntary Bodies,Freeways Trust Limited,3265.00, 01-Nov-2019
"1,095",Revenue,CAHD,Supporting People Programme,Grants to Voluntary Bodies,Freeways Trust Limited,3265.00, 29-Nov-2019
"1,096",Revenue,CAHD,Freeways,Permanent Residential,Freeways Trust Limited,4529.44, 15-Nov-2019
"1,097",Revenue,CAHD,Freeways,Permanent Residential,Freeways Trust Limited,2914.94, 15-Nov-2019
"1,098",Revenue,CAHD,Freeways,Permanent Residential,Freeways Trust Limited,2914.94, 15-Nov-2019
"1,099",Revenue,CAHD,Freeways,Permanent Residential,Freeways Trust Limited,4238.80, 15-Nov-2019
"1,100",Revenue,CAHD,Freeways,Permanent Residential,Freeways Trust Limited,2914.94, 15-Nov-2019
"1,101",Revenue,CAHD,Freeways,Permanent Residential,Freeways Trust Limited,4284.01, 15-Nov-2019
"1,102",Revenue,CAHD,Freeways,Permanent Residential,Freeways Trust Limited,3223.53, 15-Nov-2019
"1,103",Revenue,CAHD,Freeways,Permanent Residential,Freeways Trust Limited,4494.55, 15-Nov-2019
"1,104",Revenue,CAHD,Freeways,Permanent Residential,Freeways Trust Limited,2732.02, 15-Nov-2019
"1,105",Revenue,CAHD,Freeways,Permanent Residential,Freeways Trust Limited,3441.52, 15-Nov-2019
"1,106",Revenue,CAHD,Freeways,Permanent Residential,Freeways Trust Limited,3403.10, 15-Nov-2019
"1,107",Revenue,CAHD,Freeways,Permanent Residential,Freeways Trust Limited,5208.96, 15-Nov-2019
"1,108",Revenue,CAHD,Freeways,Permanent Residential,Freeways Trust Limited,2914.94, 15-Nov-2019
"1,109",Revenue,CAHD,Freeways,Respite Planned - Residential,Freeways Trust Limited,1594.82, 15-Nov-2019
"1,110",Revenue,CAHD,Freeways,Respite Planned - Residential,Freeways Trust Limited,1313.38, 15-Nov-2019
"1,111",Revenue,CAHD,Freeways,Respite Planned - Residential,Freeways Trust Limited,1125.75, 15-Nov-2019
"1,112",Revenue,CAHD,Freeways,Respite Planned - Residential,Freeways Trust Limited,1501.01, 15-Nov-2019
"1,113",Revenue,CAHD,Freeways,Respite Planned - Residential,Freeways Trust Limited,3095.82, 15-Nov-2019
"1,114",Revenue,CAHD,South - community based support,Day Care / Social Activities,Freeways Trust Limited,1038.96, 08-Nov-2019
"1,115",Revenue,CAHD,North - Community based support,Other Small Contracts,Freeways Trust Limited,14470.40, 08-Nov-2019
"1,116",Revenue,CAHD,South - community based support,Day Care / Social Activities,Freeways Trust Limited,1115.92, 19-Nov-2019
"1,117",Revenue,CAHD,Central - Community based support,Other Small Contracts,Freeways Trust Limited,731.12, 19-Nov-2019
"1,118",Revenue,CAHD,North - Community based support,Supported Living,Freeways Trust Ltd,845.52, 19-Nov-2019
"1,119",Revenue,CAHD,S28A cases,Permanent Residential,Freeways Trust Ltd,3886.64, 19-Nov-2019
"1,120",Revenue,CAHD,North - bed purchasing and direct  payments,Permanent Residential,Freeways Trust Ltd,3763.40, 19-Nov-2019
"1,121",Revenue,CAHD,South - Bed Purchasing and Direct payments,Permanent Residential,Freeways Trust Ltd,2851.00, 19-Nov-2019
"1,122",Revenue,CAHD,South - Bed Purchasing and Direct payments,Permanent Residential,Freeways Trust Ltd,1584.40, 19-Nov-2019
"1,123",Revenue,CAHD,South - Bed Purchasing and Direct payments,Permanent Residential,Freeways Trust Ltd,3961.00, 19-Nov-2019
"1,124",Revenue,CAHD,North - bed purchasing and direct  payments,Permanent Residential,Freeways Trust Ltd,29002.00, 19-Nov-2019
"1,125",Revenue,CAHD,North - bed purchasing and direct  payments,Permanent Residential,Freeways Trust Ltd,10256.80, 19-Nov-2019
"1,126",Revenue,CAHD,North - bed purchasing and direct  payments,Permanent Residential,Freeways Trust Ltd,3301.04, 19-Nov-2019
"1,127",Revenue,CAHD,North - bed purchasing and direct  payments,Fees & Charges Income - General,Freeways Trust Ltd,2480.96, 19-Nov-2019
"1,128",Revenue,CAHD,North - bed purchasing and direct  payments,Fees & Charges Income - General,Freeways Trust Ltd,4270.50, 19-Nov-2019
"1,129",Revenue,CAHD,South - Bed Purchasing and Direct payments,Permanent Residential,Freeways Trust Ltd,24639.91, 19-Nov-2019
"1,130",Revenue,CAHD,South - Bed Purchasing and Direct payments,Permanent Residential,Freeways Trust Ltd,3301.04, 19-Nov-2019
"1,131",Revenue,CAHD,South - Bed Purchasing and Direct payments,Fees & Charges Income - General,Freeways Trust Ltd,4293.30, 19-Nov-2019
"1,132",Revenue,CAHD,North - bed purchasing and direct  payments,Permanent Residential,Freeways Trust Ltd,3381.20, 19-Nov-2019
"1,133",Revenue,CAHD,North - bed purchasing and direct  payments,Permanent Residential,Freeways Trust Ltd,2898.17, 19-Nov-2019
"1,134",Revenue,CAHD,North - bed purchasing and direct  payments,Permanent Residential,Freeways Trust Ltd,3984.12, 19-Nov-2019
"1,135",Revenue,CAHD,18-25 Year Olds,Permanent Residential,Freeways Trust Ltd,3680.48, 19-Nov-2019
"1,136",Revenue,CAHD,Section 117 Placements MH Younger,Permanent Residential,Freeways Trust Ltd,3339.04, 19-Nov-2019
"1,137",Revenue,CAHD,Central - Community based support,Day Care / Social Activities,Frenchay Beckspool Building,1895.60, 19-Nov-2019
"1,138",Revenue,CAHD,South - community based support,Day Care / Social Activities,Frenchay Beckspool Building,902.40, 19-Nov-2019
"1,139",Revenue,CAHD,South - community based support,Day Care / Social Activities,Frenchay Beckspool Building,640.08, 19-Nov-2019
"1,140",Revenue,CAHD,Pathway 3 - (Complex Beds),Permanent Nursing,Frenchay House,3343.00, 01-Nov-2019
"1,141",Revenue,CAHD,Pathway 3 - (Complex Beds),Permanent Nursing,Frenchay House,3343.00, 28-Nov-2019
"1,142",Revenue,CAHD,North - bed purchasing and direct  payments,Permanent Nursing,Frenchay Park Nursing Home,3481.60, 19-Nov-2019
"1,143",Revenue,CAHD,North - bed purchasing and direct  payments,Permanent Nursing,Frenchay Park Nursing Home,3481.60, 19-Nov-2019
"1,144",Revenue,CAHD,Central - Bed Purchasing and Direct Payments,Permanent Nursing,Frenchay Park Nursing Home,3400.00, 19-Nov-2019
"1,145",Revenue,CAHD,EARLY YEARS DISABILITY  ACCES FUND,Preventative Assistance,Frenchay Pre School Playgroup,615.00, 08-Nov-2019
"1,146",Revenue,CAHD,NHS Health Checks,Other Small Contracts,Frome Valley Medical Centre,3450.00, 22-Nov-2019
"1,147",Revenue,CAHD,Sexual Health,Other Small Contracts,Frome Valley Medical Centre,1368.50, 26-Nov-2019
"1,148",Revenue,CAHD,Drug and Alcohol Programme,Other Small Contracts,Frome Valley Medical Centre,710.50, 05-Nov-2019
"1,149",Revenue,CAHD,Sexual Health,Other Small Contracts,Frome Valley Medical Centre,1094.30, 26-Nov-2019
"1,150",Revenue,CAHD,Tobacco Control,Other Small Contracts,Frome Valley Medical Centre,500.00, 01-Nov-2019
"1,151",Revenue,CAHD,Drug and Alcohol Programme,Other Supplies & Services,Frontier Plastics Ltd,900.00, 25-Nov-2019
"1,152",Revenue,CAHD,CSC - Through & Leaving Care Team,Agency Staff (Admin/Support Staff) Pay,Frontline Staffing Ltd,1778.02, 13-Nov-2019
"1,153",Revenue,CAHD,CSC - Social Work Team - CENTRAL,Agency Staff (Admin/Support Staff) Pay,Frontline Staffing Ltd,1871.60, 01-Nov-2019
"1,154",Revenue,CAHD,CSC - Through & Leaving Care Team,Agency Staff (Admin/Support Staff) Pay,Frontline Staffing Ltd,1731.23, 01-Nov-2019
"1,155",Revenue,CAHD,CSC - Social Work Team - CENTRAL,Agency Staff (Admin/Support Staff) Pay,Frontline Staffing Ltd,1052.78, 01-Nov-2019
"1,156",Revenue,CAHD,CSC - Through & Leaving Care Team,Agency Staff (Admin/Support Staff) Pay,Frontline Staffing Ltd,1778.02, 08-Nov-2019
"1,157",Revenue,CAHD,CSC - Social Work Team - NORTH,Agency Staff (Admin/Support Staff) Pay,Frontline Staffing Ltd,1731.23, 07-Nov-2019
"1,158",Revenue,CAHD,CSC - Social Work Team - CENTRAL,Agency Staff (Admin/Support Staff) Pay,Frontline Staffing Ltd,1871.60, 07-Nov-2019
"1,159",Revenue,CAHD,CSC - Social Work Team - NORTH,Agency Staff (Admin/Support Staff) Pay,Frontline Staffing Ltd,1871.60, 08-Nov-2019
"1,160",Revenue,CAHD,CSC - Social Work Team - SOUTH,Agency Staff (Admin/Support Staff) Pay,Frontline Staffing Ltd,1871.60, 11-Nov-2019
"1,161",Revenue,CAHD,CSC - Social Work Team - SOUTH,Agency Staff (Admin/Support Staff) Pay,Frontline Staffing Ltd,1871.60, 11-Nov-2019
"1,162",Revenue,CAHD,CSC - Social Work Team - SOUTH,Agency Staff (Admin/Support Staff) Pay,Frontline Staffing Ltd,1590.86, 11-Nov-2019
"1,163",Revenue,CAHD,CSC - Social Work Team - NORTH,Agency Staff (Admin/Support Staff) Pay,Frontline Staffing Ltd,1731.23, 11-Nov-2019
"1,164",Revenue,CAHD,CSC - Social Work Team - CENTRAL,Agency Staff (Admin/Support Staff) Pay,Frontline Staffing Ltd,1497.28, 12-Nov-2019
"1,165",Revenue,CAHD,CSC - Social Work Team - NORTH,Agency Staff (Admin/Support Staff) Pay,Frontline Staffing Ltd,1579.16, 13-Nov-2019
"1,166",Revenue,CAHD,CSC - Social Work Team - NORTH,Agency Staff (Admin/Support Staff) Pay,Frontline Staffing Ltd,1871.60, 13-Nov-2019
"1,167",Revenue,CAHD,CSC - Through & Leaving Care Team,Agency Staff (Admin/Support Staff) Pay,Frontline Staffing Ltd,1778.02, 13-Nov-2019
"1,168",Revenue,CAHD,CSC - Social Work Team - CENTRAL,Agency Staff (Admin/Support Staff) Pay,Frontline Staffing Ltd,1871.60, 18-Nov-2019
"1,169",Revenue,CAHD,CSC - Social Work Team - NORTH,Agency Staff (Admin/Support Staff) Pay,Frontline Staffing Ltd,1871.60, 19-Nov-2019
"1,170",Revenue,CAHD,CSC - Social Work Team - NORTH,Agency Staff (Admin/Support Staff) Pay,Frontline Staffing Ltd,1731.23, 19-Nov-2019
"1,171",Revenue,CAHD,CSC - Through & Leaving Care Team,Agency Staff (Admin/Support Staff) Pay,Frontline Staffing Ltd,1731.23, 26-Nov-2019
"1,172",Revenue,CAHD,CSC - Through & Leaving Care Team,Agency Staff (Admin/Support Staff) Pay,Frontline Staffing Ltd,1731.23, 25-Nov-2019
"1,173",Revenue,CAHD,CSC - Social Work Team - CENTRAL,Other Transport Costs,Frontline Staffing Ltd,1087.87, 27-Nov-2019
"1,174",Revenue,CAHD,CSC - Social Work Team - SOUTH,Agency Staff (Admin/Support Staff) Pay,Frontline Staffing Ltd,807.13, 27-Nov-2019
"1,175",Revenue,CAHD,CSC - Social Work Team - SOUTH,Agency Staff (Admin/Support Staff) Pay,Frontline Staffing Ltd,1637.65, 27-Nov-2019
"1,176",Revenue,CAHD,South - Bed Purchasing and Direct payments,Permanent Nursing,Fshc  1St Floor,2735.08, 19-Nov-2019
"1,177",Revenue,CAHD,South Glos Users in South Glos Homes,Permanent Nursing,Fshc  1St Floor,662.24, 19-Nov-2019
"1,178",Revenue,CAHD,South - Bed Purchasing and Direct payments,Permanent Nursing,Fshc  1St Floor,2398.00, 19-Nov-2019
"1,179",Revenue,CAHD,South - Bed Purchasing and Direct payments,Permanent Nursing,Fshc  1St Floor,2398.00, 19-Nov-2019
"1,180",Revenue,CAHD,South Glos Users in South Glos Homes,Permanent Nursing,Fshc  1St Floor,662.24, 19-Nov-2019
"1,181",Revenue,CAHD,South - Bed Purchasing and Direct payments,Permanent Nursing,Fshc  1St Floor,2398.00, 19-Nov-2019
"1,182",Revenue,CAHD,South Glos Users in South Glos Homes,Permanent Nursing,Fshc  1St Floor,662.24, 19-Nov-2019
"1,183",Revenue,CAHD,South - Bed Purchasing and Direct payments,Permanent Residential,Fshc  1St Floor,2462.56, 19-Nov-2019
"1,184",Revenue,CAHD,South Glos Users in South Glos Homes,Permanent Nursing,Fshc  1St Floor,662.24, 19-Nov-2019
"1,185",Revenue,CAHD,North - bed purchasing and direct  payments,Permanent Nursing,Fshc  1St Floor,2891.76, 19-Nov-2019
"1,186",Revenue,CAHD,South Glos Users in South Glos Homes,Permanent Nursing,Fshc  1St Floor,662.24, 19-Nov-2019
"1,187",Revenue,CAHD,South - Bed Purchasing and Direct payments,Permanent Nursing,Fshc  1St Floor,2662.40, 19-Nov-2019
"1,188",Revenue,CAHD,South Glos Users in South Glos Homes,Permanent Nursing,Fshc  1St Floor,662.24, 19-Nov-2019
"1,189",Revenue,CAHD,South Glos Users in South Glos Homes,Permanent Nursing,Fshc  1St Floor,662.24, 19-Nov-2019
"1,190",Revenue,CAHD,South Glos Users in South Glos Homes,Permanent Nursing,Fshc  1St Floor,662.24, 19-Nov-2019
"1,191",Revenue,CAHD,South Glos Users in South Glos Homes,Permanent Nursing,Fshc  1St Floor,662.24, 19-Nov-2019
"1,192",Revenue,CAHD,South - Bed Purchasing and Direct payments,Permanent Nursing,Fshc  1St Floor,2891.76, 19-Nov-2019
"1,193",Revenue,CAHD,South - Bed Purchasing and Direct payments,Permanent Nursing,Fshc  1St Floor,2621.44, 19-Nov-2019
"1,194",Revenue,CAHD,South Glos Users in South Glos Homes,Permanent Nursing,Fshc  1St Floor,662.24, 19-Nov-2019
"1,195",Revenue,CAHD,South Glos Users in South Glos Homes,Permanent Nursing,Fshc  1St Floor,662.24, 19-Nov-2019
"1,196",Revenue,CAHD,South - Bed Purchasing and Direct payments,Permanent Residential,Fshc  1St Floor,3203.04, 19-Nov-2019
"1,197",Revenue,CAHD,South Glos Users in South Glos Homes,Permanent Nursing,Fshc  1St Floor,662.24, 19-Nov-2019
"1,198",Revenue,CAHD,South Glos Users in South Glos Homes,Permanent Nursing,Fshc  1St Floor,662.24, 19-Nov-2019
"1,199",Revenue,CAHD,South Glos Users in South Glos Homes,Permanent Nursing,Fshc  1St Floor,662.24, 19-Nov-2019
"1,200",Revenue,CAHD,South - Bed Purchasing and Direct payments,Permanent Nursing,Fshc  1St Floor,2867.20, 19-Nov-2019
"1,201",Revenue,CAHD,South - Bed Purchasing and Direct payments,Permanent Nursing,Fshc  1St Floor,2398.00, 19-Nov-2019
"1,202",Revenue,CAHD,South Glos Users in South Glos Homes,Permanent Nursing,Fshc  1St Floor,662.24, 19-Nov-2019
"1,203",Revenue,CAHD,South - Bed Purchasing and Direct payments,Permanent Nursing,Fshc  1St Floor,2462.56, 19-Nov-2019
"1,204",Revenue,CAHD,South Glos Users in South Glos Homes,Permanent Nursing,Fshc  1St Floor,662.24, 19-Nov-2019
"1,205",Revenue,CAHD,South - Bed Purchasing and Direct payments,Permanent Nursing,Fshc  1St Floor,2398.00, 19-Nov-2019
"1,206",Revenue,CAHD,South Glos Users in South Glos Homes,Permanent Nursing,Fshc  1St Floor,662.24, 19-Nov-2019
"1,207",Revenue,CAHD,South - Bed Purchasing and Direct payments,Permanent Nursing,Fshc  1St Floor,2398.00, 19-Nov-2019
"1,208",Revenue,CAHD,South Glos Users in South Glos Homes,Permanent Nursing,Fshc  1St Floor,662.24, 19-Nov-2019
"1,209",Revenue,CAHD,South - S117,Permanent Residential,Fshc  1St Floor,3128.00, 19-Nov-2019
"1,210",Revenue,CAHD,South - Bed Purchasing and Direct payments,Permanent Nursing,Fshc  1St Floor,2398.00, 19-Nov-2019
"1,211",Revenue,CAHD,South Glos Users in South Glos Homes,Permanent Nursing,Fshc  1St Floor,662.24, 19-Nov-2019
"1,212",Revenue,CAHD,South Glos Users in South Glos Homes,Permanent Nursing,Fshc  1St Floor,662.24, 19-Nov-2019
"1,213",Revenue,CAHD,South - Bed Purchasing and Direct payments,Permanent Nursing,Fshc  1St Floor,3172.12, 19-Nov-2019
"1,214",Revenue,CAHD,South Glos Users in South Glos Homes,Permanent Nursing,Fshc  1St Floor,662.24, 19-Nov-2019
"1,215",Revenue,CAHD,South - Bed Purchasing and Direct payments,Permanent Nursing,Fshc  1St Floor,2933.00, 19-Nov-2019
"1,216",Revenue,CAHD,North - bed purchasing and direct  payments,Permanent Residential,Fshc  1St Floor,2891.76, 19-Nov-2019
"1,217",Revenue,CAHD,South Glos Users in South Glos Homes,Permanent Nursing,Fshc  1St Floor,662.24, 19-Nov-2019
"1,218",Revenue,CAHD,Central - Bed Purchasing and Direct Payments,Permanent Nursing,Fshc  1St Floor,2398.00, 19-Nov-2019
"1,219",Revenue,CAHD,South Glos Users in South Glos Homes,Permanent Nursing,Fshc  1St Floor,662.24, 19-Nov-2019
"1,220",Revenue,CAHD,Central - Bed Purchasing and Direct Payments,Permanent Nursing,Fshc  1St Floor,2398.00, 19-Nov-2019
"1,221",Revenue,CAHD,South Glos Users in South Glos Homes,Permanent Nursing,Fshc  1St Floor,662.24, 19-Nov-2019
"1,222",Revenue,CAHD,South Glos Users in South Glos Homes,Permanent Nursing,Fshc  1St Floor,662.24, 19-Nov-2019
"1,223",Revenue,CAHD,Central - Bed Purchasing and Direct Payments,Fees & Charges Income - General,Fshc  1St Floor,537.52, 19-Nov-2019
"1,224",Revenue,CAHD,Central - Bed Purchasing and Direct Payments,Permanent Residential,Fshc  1St Floor,2764.80, 19-Nov-2019
"1,225",Revenue,CAHD,Central - Bed Purchasing and Direct Payments,Permanent Residential,Fshc  1St Floor,2230.32, 19-Nov-2019
"1,226",Revenue,CAHD,South Glos Users in South Glos Homes,Permanent Nursing,Fshc  1St Floor,662.24, 19-Nov-2019
"1,227",Revenue,CAHD,South Glos Users in South Glos Homes,Permanent Nursing,Fshc  1St Floor,662.24, 19-Nov-2019
"1,228",Revenue,CAHD,Central - Bed Purchasing and Direct Payments,Permanent Residential,Fshc  1St Floor,2768.00, 19-Nov-2019
"1,229",Revenue,CAHD,South - Bed Purchasing and Direct payments,Permanent Residential,Fshc  1St Floor,2817.36, 19-Nov-2019
"1,230",Revenue,CAHD,South Glos Users in South Glos Homes,Permanent Nursing,Fshc  1St Floor,1939.42, 19-Nov-2019
"1,231",Revenue,CAHD,North - bed purchasing and direct  payments,Permanent Nursing,Fshc  1St Floor,2398.00, 19-Nov-2019
"1,232",Revenue,CAHD,South Glos Users in South Glos Homes,Permanent Nursing,Fshc  1St Floor,662.24, 19-Nov-2019
"1,233",Revenue,CAHD,Central - Bed Purchasing and Direct Payments,Permanent Nursing,Fshc  1St Floor,2398.00, 19-Nov-2019
"1,234",Revenue,CAHD,South Glos Users in South Glos Homes,Permanent Nursing,Fshc  1St Floor,662.24, 19-Nov-2019
"1,235",Revenue,CAHD,Central - Bed Purchasing and Direct Payments,Permanent Nursing,Fshc  1St Floor,2398.00, 19-Nov-2019
"1,236",Revenue,CAHD,South Glos Users in South Glos Homes,Permanent Nursing,Fshc  1St Floor,662.24, 19-Nov-2019
"1,237",Revenue,CAHD,North - bed purchasing and direct  payments,Permanent Nursing,Fshc  1St Floor,2398.00, 19-Nov-2019
"1,238",Revenue,CAHD,South Glos Users in South Glos Homes,Permanent Nursing,Fshc  1St Floor,662.24, 19-Nov-2019
"1,239",Revenue,CAHD,Central - Bed Purchasing and Direct Payments,Permanent Residential,Fshc  1St Floor,2768.00, 19-Nov-2019
"1,240",Revenue,CAHD,South Glos Users in South Glos Homes,Permanent Nursing,Fshc  1St Floor,662.24, 19-Nov-2019
"1,241",Revenue,CAHD,North - bed purchasing and direct  payments,Permanent Nursing,Fshc  1St Floor,2398.00, 19-Nov-2019
"1,242",Revenue,CAHD,South Glos Users in South Glos Homes,Permanent Nursing,Fshc  1St Floor,662.24, 19-Nov-2019
"1,243",Revenue,CAHD,North - bed purchasing and direct  payments,Permanent Nursing,Fshc  1St Floor,2398.00, 19-Nov-2019
"1,244",Revenue,CAHD,South Glos Users in South Glos Homes,Permanent Nursing,Fshc  1St Floor,662.24, 19-Nov-2019
"1,245",Revenue,CAHD,South Glos Users in South Glos Homes,Permanent Nursing,Fshc  1St Floor,662.24, 19-Nov-2019
"1,246",Revenue,CAHD,Central - Bed Purchasing and Direct Payments,Permanent Nursing,Fshc  1St Floor,2471.60, 19-Nov-2019
"1,247",Revenue,CAHD,South Glos Users in South Glos Homes,Permanent Nursing,Fshc  1St Floor,662.24, 19-Nov-2019
"1,248",Revenue,CAHD,North - bed purchasing and direct  payments,Permanent Nursing,Fshc  1St Floor,2439.16, 19-Nov-2019
"1,249",Revenue,CAHD,South Glos Users in South Glos Homes,Permanent Nursing,Fshc  1St Floor,662.24, 19-Nov-2019
"1,250",Revenue,CAHD,South Glos Users in South Glos Homes,Permanent Nursing,Fshc  1St Floor,662.24, 19-Nov-2019
"1,251",Revenue,CAHD,Central - Bed Purchasing and Direct Payments,Permanent Nursing,Fshc  1St Floor,2366.64, 19-Nov-2019
"1,252",Revenue,CAHD,North - bed purchasing and direct  payments,Permanent Residential,Fshc  1St Floor,2439.16, 19-Nov-2019
"1,253",Revenue,CAHD,South Glos Users in South Glos Homes,Permanent Nursing,Fshc  1St Floor,662.24, 19-Nov-2019
"1,254",Revenue,CAHD,South Glos Users in South Glos Homes,Permanent Nursing,Fshc  1St Floor,662.24, 19-Nov-2019
"1,255",Revenue,CAHD,South Glos Users in South Glos Homes,Permanent Nursing,Fshc  1St Floor,662.24, 19-Nov-2019
"1,256",Revenue,CAHD,Central - Bed Purchasing and Direct Payments,Permanent Residential,Fshc  1St Floor,2768.00, 19-Nov-2019
"1,257",Revenue,CAHD,South - Bed Purchasing and Direct payments,Permanent Residential,Fshc  1St Floor,2768.00, 19-Nov-2019
"1,258",Revenue,CAHD,South - Bed Purchasing and Direct payments,Permanent Residential,Fshc  1St Floor,1878.29, 19-Nov-2019
"1,259",Revenue,CAHD,South Glos Users in South Glos Homes,Permanent Nursing,Fshc  1St Floor,662.24, 19-Nov-2019
"1,260",Revenue,CAHD,North - bed purchasing and direct  payments,Permanent Nursing,Fshc  1St Floor,2398.00, 19-Nov-2019
"1,261",Revenue,CAHD,South Glos Users in South Glos Homes,Permanent Nursing,Fshc  1St Floor,662.24, 19-Nov-2019
"1,262",Revenue,CAHD,South Glos Users in South Glos Homes,Permanent Nursing,Fshc  1St Floor,662.24, 19-Nov-2019
"1,263",Revenue,CAHD,North - S117,Permanent Nursing,Fshc  1St Floor,2470.44, 19-Nov-2019
"1,264",Revenue,CAHD,South Glos Users in South Glos Homes,Permanent Nursing,Fshc  1St Floor,662.24, 19-Nov-2019
"1,265",Revenue,CAHD,Central - Bed Purchasing and Direct Payments,Permanent Nursing,Fshc  1St Floor,2398.00, 19-Nov-2019
"1,266",Revenue,CAHD,South Glos Users in South Glos Homes,Permanent Nursing,Fshc  1St Floor,2294.19, 19-Nov-2019
"1,267",Revenue,CAHD,South Glos Users in South Glos Homes,Permanent Nursing,Fshc  1St Floor,662.24, 19-Nov-2019
"1,268",Revenue,CAHD,South Glos Users in South Glos Homes,Permanent Nursing,Fshc  1St Floor,662.24, 19-Nov-2019
"1,269",Revenue,CAHD,South Glos Users in South Glos Homes,Permanent Nursing,Fshc  1St Floor,662.24, 19-Nov-2019
"1,270",Revenue,CAHD,South Glos Users in South Glos Homes,Permanent Nursing,Fshc  1St Floor,662.24, 19-Nov-2019
"1,271",Revenue,CAHD,Central - Bed Purchasing and Direct Payments,Permanent Nursing,Fshc  1St Floor,2398.00, 19-Nov-2019
"1,272",Revenue,CAHD,South Glos Users in South Glos Homes,Permanent Nursing,Fshc  1St Floor,662.24, 19-Nov-2019
"1,273",Revenue,CAHD,Central - Bed Purchasing and Direct Payments,Permanent Nursing,Fshc  1St Floor,2398.00, 19-Nov-2019
"1,274",Revenue,CAHD,South Glos Users in South Glos Homes,Permanent Nursing,Fshc  1St Floor,662.24, 19-Nov-2019
"1,275",Revenue,CAHD,South - Bed Purchasing and Direct payments,Permanent Residential,Fshc  1St Floor,2768.00, 19-Nov-2019
"1,276",Revenue,CAHD,Central - Bed Purchasing and Direct Payments,Permanent Nursing,Fshc  1St Floor,2311.20, 19-Nov-2019
"1,277",Revenue,CAHD,South Glos Users in South Glos Homes,Permanent Nursing,Fshc  1St Floor,662.24, 19-Nov-2019
"1,278",Revenue,CAHD,North - bed purchasing and direct  payments,Permanent Nursing,Fshc  1St Floor,2437.12, 19-Nov-2019
"1,279",Revenue,CAHD,South Glos Users in South Glos Homes,Permanent Nursing,Fshc  1St Floor,662.24, 19-Nov-2019
"1,280",Revenue,CAHD,Central - Bed Purchasing and Direct Payments,Permanent Nursing,Fshc  1St Floor,2398.00, 19-Nov-2019
"1,281",Revenue,CAHD,South Glos Users in South Glos Homes,Permanent Nursing,Fshc  1St Floor,662.24, 19-Nov-2019
"1,282",Revenue,CAHD,Central - Bed Purchasing and Direct Payments,Permanent Residential,Fshc  1St Floor,2834.44, 19-Nov-2019
"1,283",Revenue,CAHD,North - bed purchasing and direct  payments,Permanent Nursing,Fshc  1St Floor,2398.00, 19-Nov-2019
"1,284",Revenue,CAHD,South Glos Users in South Glos Homes,Permanent Nursing,Fshc  1St Floor,662.24, 19-Nov-2019
"1,285",Revenue,CAHD,North - bed purchasing and direct  payments,Permanent Nursing,Fshc  1St Floor,2398.00, 19-Nov-2019
"1,286",Revenue,CAHD,South Glos Users in South Glos Homes,Permanent Nursing,Fshc  1St Floor,662.24, 19-Nov-2019
"1,287",Revenue,CAHD,Central - Bed Purchasing and Direct Payments,Permanent Nursing,Fshc  1St Floor,2398.00, 19-Nov-2019
"1,288",Revenue,CAHD,South Glos Users in South Glos Homes,Permanent Nursing,Fshc  1St Floor,662.24, 19-Nov-2019
"1,289",Revenue,CAHD,South Glos Users in South Glos Homes,Permanent Nursing,Fshc  1St Floor,662.24, 19-Nov-2019
"1,290",Revenue,CAHD,North - bed purchasing and direct  payments,Permanent Nursing,Fshc  1St Floor,2356.60, 19-Nov-2019
"1,291",Revenue,CAHD,South Glos Users in South Glos Homes,Permanent Nursing,Fshc  1St Floor,662.24, 19-Nov-2019
"1,292",Revenue,CAHD,North - bed purchasing and direct  payments,Permanent Nursing,Fshc  1St Floor,2471.44, 19-Nov-2019
"1,293",Revenue,CAHD,South Glos Users in South Glos Homes,Permanent Nursing,Fshc  1St Floor,662.24, 19-Nov-2019
"1,294",Revenue,CAHD,Central - Bed Purchasing and Direct Payments,Permanent Nursing,Fshc  1St Floor,2486.12, 19-Nov-2019
"1,295",Revenue,CAHD,South Glos Users in South Glos Homes,Permanent Nursing,Fshc  1St Floor,662.24, 19-Nov-2019
"1,296",Revenue,CAHD,North - bed purchasing and direct  payments,Permanent Residential,Fshc  1St Floor,3400.00, 19-Nov-2019
"1,297",Revenue,CAHD,South Glos Users in South Glos Homes,Permanent Nursing,Fshc  1St Floor,662.24, 19-Nov-2019
"1,298",Revenue,CAHD,Central - Bed Purchasing and Direct Payments,Permanent Nursing,Fshc  1St Floor,3200.00, 19-Nov-2019
"1,299",Revenue,CAHD,South Glos Users in South Glos Homes,Permanent Nursing,Fshc  1St Floor,662.24, 19-Nov-2019
"1,300",Revenue,CAHD,North - bed purchasing and direct  payments,Permanent Nursing,Fshc  1St Floor,2398.00, 19-Nov-2019
"1,301",Revenue,CAHD,South Glos Users in South Glos Homes,Permanent Nursing,Fshc  1St Floor,662.24, 19-Nov-2019
"1,302",Revenue,CAHD,Central - Bed Purchasing and Direct Payments,Permanent Nursing,Fshc  1St Floor,3234.72, 19-Nov-2019
"1,303",Revenue,CAHD,South Glos Users in South Glos Homes,Permanent Nursing,Fshc  1St Floor,662.24, 19-Nov-2019
"1,304",Revenue,CAHD,Central - Bed Purchasing and Direct Payments,Permanent Nursing,Fshc  1St Floor,3472.44, 19-Nov-2019
"1,305",Revenue,CAHD,South Glos Users in South Glos Homes,Permanent Nursing,Fshc  1St Floor,662.24, 19-Nov-2019
"1,306",Revenue,CAHD,South Glos Users in South Glos Homes,Permanent Nursing,Fshc  1St Floor,662.24, 19-Nov-2019
"1,307",Revenue,CAHD,South Glos Users in South Glos Homes,Permanent Nursing,Fshc  1St Floor,662.24, 19-Nov-2019
"1,308",Revenue,CAHD,South Glos Users in South Glos Homes,Permanent Nursing,Fshc  1St Floor,662.24, 19-Nov-2019
"1,309",Revenue,CAHD,South Glos Users in South Glos Homes,Permanent Nursing,Fshc  1St Floor,662.24, 19-Nov-2019
"1,310",Revenue,CAHD,Central - Bed Purchasing and Direct Payments,Permanent Nursing,Fshc  1St Floor,2731.36, 19-Nov-2019
"1,311",Revenue,CAHD,South Glos Users in South Glos Homes,Permanent Nursing,Fshc  1St Floor,662.24, 19-Nov-2019
"1,312",Revenue,CAHD,Central - Bed Purchasing and Direct Payments,Permanent Nursing,Fshc  1St Floor,2803.48, 19-Nov-2019
"1,313",Revenue,CAHD,South Glos Users in South Glos Homes,Permanent Nursing,Fshc  1St Floor,662.24, 19-Nov-2019
"1,314",Revenue,CAHD,South Glos Users in South Glos Homes,Permanent Nursing,Fshc  1St Floor,662.24, 19-Nov-2019
"1,315",Revenue,CAHD,Central - Bed Purchasing and Direct Payments,Permanent Nursing,Fshc  1St Floor,2997.60, 19-Nov-2019
"1,316",Revenue,CAHD,South Glos Users in South Glos Homes,Permanent Nursing,Fshc  1St Floor,662.24, 19-Nov-2019
"1,317",Revenue,CAHD,South Glos Users in South Glos Homes,Permanent Nursing,Fshc  1St Floor,662.24, 19-Nov-2019
"1,318",Revenue,CAHD,Central - Bed Purchasing and Direct Payments,Permanent Nursing,Fshc  1St Floor,2833.76, 19-Nov-2019
"1,319",Revenue,CAHD,South Glos Users in South Glos Homes,Permanent Nursing,Fshc  1St Floor,662.24, 19-Nov-2019
"1,320",Revenue,CAHD,North - bed purchasing and direct  payments,Permanent Nursing,Fshc  1St Floor,2587.56, 19-Nov-2019
"1,321",Revenue,CAHD,South Glos Users in South Glos Homes,Permanent Nursing,Fshc  1St Floor,662.24, 19-Nov-2019
"1,322",Revenue,CAHD,South Glos Users in South Glos Homes,Permanent Nursing,Fshc  1St Floor,662.24, 19-Nov-2019
"1,323",Revenue,CAHD,South Glos Users in South Glos Homes,Permanent Nursing,Fshc  1St Floor,662.24, 19-Nov-2019
"1,324",Revenue,CAHD,South Glos Users in South Glos Homes,Permanent Nursing,Fshc  1St Floor,662.24, 19-Nov-2019
"1,325",Revenue,CAHD,Central - Bed Purchasing and Direct Payments,Respite Planned - Nursing,Fshc  1St Floor,3028.11, 19-Nov-2019
"1,326",Revenue,CAHD,South Glos Users in South Glos Homes,Permanent Nursing,Fshc  1St Floor,662.24, 19-Nov-2019
"1,327",Revenue,CAHD,Central - Bed Purchasing and Direct Payments,Permanent Nursing,Fshc  1St Floor,2471.44, 19-Nov-2019
"1,328",Revenue,CAHD,South Glos Users in South Glos Homes,Permanent Nursing,Fshc  1St Floor,662.24, 19-Nov-2019
"1,329",Revenue,CAHD,Central - Bed Purchasing and Direct Payments,Permanent Nursing,Fshc  1St Floor,3038.56, 19-Nov-2019
"1,330",Revenue,CAHD,South Glos Users in South Glos Homes,Permanent Nursing,Fshc  1St Floor,662.24, 19-Nov-2019
"1,331",Revenue,CAHD,North - bed purchasing and direct  payments,Permanent Nursing,Fshc  1St Floor,2834.20, 19-Nov-2019
"1,332",Revenue,CAHD,South Glos Users in South Glos Homes,Permanent Nursing,Fshc  1St Floor,662.24, 19-Nov-2019
"1,333",Revenue,CAHD,South Glos Users in South Glos Homes,Permanent Nursing,Fshc  1St Floor,662.24, 19-Nov-2019
"1,334",Revenue,CAHD,Central - Bed Purchasing and Direct Payments,Permanent Nursing,Fshc  1St Floor,3234.72, 19-Nov-2019
"1,335",Revenue,CAHD,South Glos Users in South Glos Homes,Permanent Nursing,Fshc  1St Floor,662.24, 19-Nov-2019
"1,336",Revenue,CAHD,North - bed purchasing and direct  payments,Permanent Nursing,Fshc  1St Floor,2515.48, 19-Nov-2019
"1,337",Revenue,CAHD,South Glos Users in South Glos Homes,Permanent Nursing,Fshc  1St Floor,662.24, 19-Nov-2019
"1,338",Revenue,CAHD,South - Bed Purchasing and Direct payments,Permanent Nursing,Fshc  1St Floor,2616.12, 19-Nov-2019
"1,339",Revenue,CAHD,South Glos Users in South Glos Homes,Permanent Nursing,Fshc  1St Floor,662.24, 19-Nov-2019
"1,340",Revenue,CAHD,Central - Bed Purchasing and Direct Payments,Permanent Nursing,Fshc  1St Floor,2471.44, 19-Nov-2019
"1,341",Revenue,CAHD,South Glos Users in South Glos Homes,Permanent Nursing,Fshc  1St Floor,662.24, 19-Nov-2019
"1,342",Revenue,CAHD,South - Bed Purchasing and Direct payments,Permanent Nursing,Fshc  1St Floor,3243.36, 19-Nov-2019
"1,343",Revenue,CAHD,South Glos Users in South Glos Homes,Permanent Nursing,Fshc  1St Floor,662.24, 19-Nov-2019
"1,344",Revenue,CAHD,South Glos Users in South Glos Homes,Permanent Nursing,Fshc  1St Floor,648.48, 19-Nov-2019
"1,345",Revenue,CAHD,South - Bed Purchasing and Direct payments,Permanent Nursing,Fshc  1St Floor,2608.68, 19-Nov-2019
"1,346",Revenue,CAHD,South Glos Users in South Glos Homes,Permanent Nursing,Fshc  1St Floor,662.24, 19-Nov-2019
"1,347",Revenue,CAHD,South - Bed Purchasing and Direct payments,Permanent Nursing,Fshc  1St Floor,2504.28, 19-Nov-2019
"1,348",Revenue,CAHD,South Glos Users in South Glos Homes,Permanent Nursing,Fshc  1St Floor,662.24, 19-Nov-2019
"1,349",Revenue,CAHD,South Glos Users in South Glos Homes,Permanent Nursing,Fshc  1St Floor,662.24, 19-Nov-2019
"1,350",Revenue,CAHD,South - Bed Purchasing and Direct payments,Permanent Residential,Fshc  1St Floor,2662.40, 19-Nov-2019
"1,351",Revenue,CAHD,South Glos Users in South Glos Homes,Permanent Nursing,Fshc  1St Floor,662.24, 19-Nov-2019
"1,352",Revenue,CAHD,South - Bed Purchasing and Direct payments,Permanent Residential,Fshc  1St Floor,2399.96, 19-Nov-2019
"1,353",Revenue,CAHD,South Glos Users in South Glos Homes,Permanent Nursing,Fshc  1St Floor,662.24, 19-Nov-2019
"1,354",Revenue,CAHD,South Glos Users in South Glos Homes,Permanent Nursing,Fshc  1St Floor,662.24, 19-Nov-2019
"1,355",Revenue,CAHD,South - Bed Purchasing and Direct payments,Permanent Nursing,Fshc  1St Floor,2398.00, 19-Nov-2019
"1,356",Revenue,CAHD,South Glos Users in South Glos Homes,Permanent Nursing,Fshc  1St Floor,662.24, 19-Nov-2019
"1,357",Revenue,CAHD,South - Bed Purchasing and Direct payments,Permanent Residential,Fshc  1St Floor,2303.60, 19-Nov-2019
"1,358",Revenue,CAHD,South - Bed Purchasing and Direct payments,Permanent Nursing,Fshc  1St Floor,2287.36, 19-Nov-2019
"1,359",Revenue,CAHD,South - S117,Permanent Nursing,Fshc  1St Floor,2287.36, 19-Nov-2019
"1,360",Revenue,CAHD,South - Bed Purchasing and Direct payments,Permanent Nursing,Fshc  1St Floor,3593.88, 19-Nov-2019
"1,361",Revenue,CAHD,North - bed purchasing and direct  payments,Permanent Nursing,Fshc  1St Floor,2287.36, 19-Nov-2019
"1,362",Revenue,CAHD,North - bed purchasing and direct  payments,Permanent Nursing,Fshc  1St Floor,3234.72, 19-Nov-2019
"1,363",Revenue,CAHD,South - Bed Purchasing and Direct payments,Permanent Nursing,Fshc  1St Floor,2287.36, 19-Nov-2019
"1,364",Revenue,CAHD,South - Bed Purchasing and Direct payments,Permanent Residential,Fshc  1St Floor,3744.04, 19-Nov-2019
"1,365",Revenue,CAHD,North - bed purchasing and direct  payments,Permanent Nursing,Fshc  1St Floor,2401.84, 19-Nov-2019
"1,366",Revenue,CAHD,North - bed purchasing and direct  payments,Permanent Residential,Fshc  1St Floor,2174.20, 19-Nov-2019
"1,367",Revenue,CAHD,Central - Bed Purchasing and Direct Payments,Permanent Nursing,Fshc  1St Floor,4173.84, 19-Nov-2019
"1,368",Revenue,CAHD,North - bed purchasing and direct  payments,Permanent Residential,Fshc  1St Floor,2273.28, 19-Nov-2019
"1,369",Revenue,CAHD,North - bed purchasing and direct  payments,Permanent Nursing,Fshc  1St Floor,2657.80, 19-Nov-2019
"1,370",Revenue,CAHD,CSC - Agency Fostering,Foster Parent Allowances,Fusion Fostering Ltd,1725.00, 14-Nov-2019
"1,371",Revenue,CAHD,CSC - Agency Fostering,Foster Parent Allowances,Fusion Fostering Ltd,2760.00, 13-Nov-2019
"1,372",Revenue,CAHD,CSC - Agency Fostering,Foster Parent Allowances,Fusion Fostering Ltd,4073.27, 20-Nov-2019
"1,373",Revenue,CAHD,CSC - Vinney Green Secure Unit,External Lecturers Fees,Future Sports Development,585.00, 04-Nov-2019
"1,374",Revenue,CAHD,CSC - Ofsted Work,Consultants Fees,Gatenby Sanderson Limited,2900.00, 01-Nov-2019
"1,375",Revenue,CAHD,CSC - Ofsted Work,Consultants Fees,Gatenby Sanderson Limited,2610.00, 13-Nov-2019
"1,376",Revenue,CAHD,CSC - Ofsted Work,Consultants Fees,Gatenby Sanderson Limited,2900.00, 08-Nov-2019
"1,377",Revenue,CAHD,CSC - Ofsted Work,Consultants Fees,Gatenby Sanderson Limited,2900.00, 20-Nov-2019
"1,378",Revenue,CAHD,CSC - Ofsted Work,Consultants Fees,Gatenby Sanderson Limited,2900.00, 29-Nov-2019
"1,379",Revenue,CAHD,South - Bed Purchasing and Direct payments,Permanent Residential,Gladstone House,5999.84, 19-Nov-2019
"1,380",Revenue,CAHD,Jointly Funded H&SC Packages,Permanent Residential,Gladstone House,783.98, 19-Nov-2019
"1,381",Revenue,CAHD,MH Purchasing - Younger,Permanent Residential,Gladstone House,3135.90, 19-Nov-2019
"1,382",Revenue,CAHD,North - bed purchasing and direct  payments,Permanent Residential,Glan Y Felin,6803.40, 19-Nov-2019
"1,383",Revenue,CAHD,South - Bed Purchasing and Direct payments,Permanent Residential,Glasallt Fawr,5344.40, 19-Nov-2019
"1,384",Revenue,CAHD,North - bed purchasing and direct  payments,Permanent Nursing,Glebe House Nursing Home,3664.16, 19-Nov-2019
"1,385",Revenue,CAHD,South Glos Users in South Glos Homes,Permanent Nursing,Glebe House Nursing Home,662.24, 19-Nov-2019
"1,386",Revenue,CAHD,North - bed purchasing and direct  payments,Permanent Nursing,Glebe House Nursing Home,3973.12, 19-Nov-2019
"1,387",Revenue,CAHD,South Glos Users in South Glos Homes,Permanent Nursing,Glebe House Nursing Home,662.24, 19-Nov-2019
"1,388",Revenue,CAHD,South Glos Users in South Glos Homes,Permanent Nursing,Glebe House Nursing Home,662.24, 19-Nov-2019
"1,389",Revenue,CAHD,South Glos Users in South Glos Homes,Permanent Nursing,Glebe House Nursing Home,662.24, 19-Nov-2019
"1,390",Revenue,CAHD,South Glos Users in South Glos Homes,Permanent Nursing,Glebe House Nursing Home,662.24, 19-Nov-2019
"1,391",Revenue,CAHD,South Glos Users in South Glos Homes,Permanent Nursing,Glebe House Nursing Home,662.24, 19-Nov-2019
"1,392",Revenue,CAHD,North - bed purchasing and direct  payments,Permanent Residential,Glebe House Nursing Home,3785.04, 19-Nov-2019
"1,393",Revenue,CAHD,South Glos Users in South Glos Homes,Permanent Nursing,Glebe House Nursing Home,662.24, 19-Nov-2019
"1,394",Revenue,CAHD,North - bed purchasing and direct  payments,Permanent Residential,Glebe House Nursing Home,3833.84, 19-Nov-2019
"1,395",Revenue,CAHD,North - bed purchasing and direct  payments,Permanent Nursing,Glebe House Nursing Home,4080.00, 19-Nov-2019
"1,396",Revenue,CAHD,South Glos Users in South Glos Homes,Permanent Nursing,Glebe House Nursing Home,662.24, 19-Nov-2019
"1,397",Revenue,CAHD,South Glos Users in South Glos Homes,Permanent Nursing,Glebe House Nursing Home,662.24, 19-Nov-2019
"1,398",Revenue,CAHD,North - bed purchasing and direct  payments,Permanent Nursing,Glebe House Nursing Home,4048.60, 19-Nov-2019
"1,399",Revenue,CAHD,South Glos Users in South Glos Homes,Permanent Nursing,Glebe House Nursing Home,662.24, 19-Nov-2019
"1,400",Revenue,CAHD,South Glos Users in South Glos Homes,Permanent Nursing,Glebe House Nursing Home,662.24, 19-Nov-2019
"1,401",Revenue,CAHD,South Glos Users in South Glos Homes,Permanent Nursing,Glebe House Nursing Home,662.24, 19-Nov-2019
"1,402",Revenue,CAHD,North - bed purchasing and direct  payments,Permanent Nursing,Glebe House Nursing Home,3960.16, 19-Nov-2019
"1,403",Revenue,CAHD,South Glos Users in South Glos Homes,Permanent Nursing,Glebe House Nursing Home,662.24, 19-Nov-2019
"1,404",Revenue,CAHD,South Glos Users in South Glos Homes,Permanent Nursing,Glebe House Nursing Home,662.24, 19-Nov-2019
"1,405",Revenue,CAHD,South Glos Users in South Glos Homes,Permanent Nursing,Glebe House Nursing Home,662.24, 19-Nov-2019
"1,406",Revenue,CAHD,North - bed purchasing and direct  payments,Permanent Nursing,Glebe House Nursing Home,3502.08, 19-Nov-2019
"1,407",Revenue,CAHD,South Glos Users in South Glos Homes,Permanent Nursing,Glebe House Nursing Home,662.24, 19-Nov-2019
"1,408",Revenue,CAHD,Central - Bed Purchasing and Direct Payments,Permanent Nursing,Glenview,3224.00, 19-Nov-2019
"1,409",Revenue,CAHD,Central - Bed Purchasing and Direct Payments,Permanent Nursing,Glenview,3224.00, 19-Nov-2019
"1,410",Revenue,CAHD,South - Bed Purchasing and Direct payments,Permanent Nursing,Glenview,2891.76, 19-Nov-2019
"1,411",Revenue,CAHD,North - S117,Permanent Nursing,Glenview,3301.36, 19-Nov-2019
"1,412",Revenue,CAHD,South - Bed Purchasing and Direct payments,Permanent Nursing,Glenview,3993.60, 19-Nov-2019
"1,413",Revenue,CAHD,North - bed purchasing and direct  payments,Permanent Nursing,Glenview,2891.76, 19-Nov-2019
"1,414",Revenue,CAHD,Training Budget - Children`s Social Serv,Training Expenses,Gloucester Rugby Club,2402.50, 19-Nov-2019
"1,415",Revenue,CAHD,South - Bed Purchasing and Direct payments,Permanent Residential,Gordena Care Home,4018.92, 19-Nov-2019
"1,416",Revenue,CAHD,South - Bed Purchasing and Direct payments,Permanent Residential,Gordena Care Home,2736.12, 19-Nov-2019
"1,417",Revenue,CAHD,South - Bed Purchasing and Direct payments,Permanent Residential,Gordena Care Home,3895.40, 19-Nov-2019
"1,418",Revenue,CAHD,South - Bed Purchasing and Direct payments,Permanent Residential,Gordena Care Home,3907.28, 19-Nov-2019
"1,419",Revenue,CAHD,South - Bed Purchasing and Direct payments,Permanent Residential,Gordena Care Limited,5105.52, 19-Nov-2019
"1,420",Revenue,CAHD,S28A cases,Permanent Residential,Gordena Care Limited,4965.36, 19-Nov-2019
"1,421",Revenue,CAHD,North - bed purchasing and direct  payments,Permanent Residential,Gordena Care Limited,5175.04, 19-Nov-2019
"1,422",Revenue,CAHD,Central - Bed Purchasing and Direct Payments,Permanent Residential,Grace Care Centre,4915.20, 19-Nov-2019
"1,423",Revenue,CAHD,North - bed purchasing and direct  payments,Permanent Residential,Grace Care Centre,8661.43, 19-Nov-2019
"1,424",Revenue,CAHD,North - bed purchasing and direct  payments,Permanent Residential,Grace Care Centre,5160.00, 19-Nov-2019
"1,425",Revenue,CAHD,North - bed purchasing and direct  payments,Permanent Residential,Grace Care Centre,4800.00, 19-Nov-2019
"1,426",Revenue,CAHD,North - bed purchasing and direct  payments,Permanent Residential,Grace Care Centre,5160.00, 19-Nov-2019
"1,427",Revenue,CAHD,South - Bed Purchasing and Direct payments,Permanent Nursing,Gracefields Nursing Home,3761.76, 19-Nov-2019
"1,428",Revenue,CAHD,South Glos Users in South Glos Homes,Permanent Nursing,Gracefields Nursing Home,662.24, 19-Nov-2019
"1,429",Revenue,CAHD,South Glos Users in South Glos Homes,Permanent Nursing,Gracefields Nursing Home,662.24, 19-Nov-2019
"1,430",Revenue,CAHD,South - Bed Purchasing and Direct payments,Permanent Nursing,Gracefields Nursing Home,3537.76, 19-Nov-2019
"1,431",Revenue,CAHD,South Glos Users in South Glos Homes,Permanent Nursing,Gracefields Nursing Home,662.24, 19-Nov-2019
"1,432",Revenue,CAHD,South - Bed Purchasing and Direct payments,Permanent Nursing,Gracefields Nursing Home,3652.12, 19-Nov-2019
"1,433",Revenue,CAHD,South Glos Users in South Glos Homes,Permanent Nursing,Gracefields Nursing Home,662.24, 19-Nov-2019
"1,434",Revenue,CAHD,South Glos Users in South Glos Homes,Permanent Nursing,Gracefields Nursing Home,662.24, 19-Nov-2019
"1,435",Revenue,CAHD,South Glos Users in South Glos Homes,Permanent Nursing,Gracefields Nursing Home,662.24, 19-Nov-2019
"1,436",Revenue,CAHD,South - Bed Purchasing and Direct payments,Permanent Nursing,Gracefields Nursing Home,3652.96, 19-Nov-2019
"1,437",Revenue,CAHD,South Glos Users in South Glos Homes,Permanent Nursing,Gracefields Nursing Home,662.24, 19-Nov-2019
"1,438",Revenue,CAHD,South - Bed Purchasing and Direct payments,Permanent Nursing,Gracefields Nursing Home,3652.96, 19-Nov-2019
"1,439",Revenue,CAHD,South Glos Users in South Glos Homes,Permanent Nursing,Gracefields Nursing Home,662.24, 19-Nov-2019
"1,440",Revenue,CAHD,South - S117,Permanent Nursing,Gracefields Nursing Home,2551.96, 19-Nov-2019
"1,441",Revenue,CAHD,South Glos Users in South Glos Homes,Permanent Nursing,Gracefields Nursing Home,662.24, 19-Nov-2019
"1,442",Revenue,CAHD,South - Bed Purchasing and Direct payments,Permanent Nursing,Gracefields Nursing Home,3229.20, 19-Nov-2019
"1,443",Revenue,CAHD,South Glos Users in South Glos Homes,Permanent Nursing,Gracefields Nursing Home,662.24, 19-Nov-2019
"1,444",Revenue,CAHD,South Glos Users in South Glos Homes,Permanent Nursing,Gracefields Nursing Home,662.24, 19-Nov-2019
"1,445",Revenue,CAHD,South - Bed Purchasing and Direct payments,Permanent Nursing,Gracefields Nursing Home,3874.16, 19-Nov-2019
"1,446",Revenue,CAHD,South Glos Users in South Glos Homes,Permanent Nursing,Gracefields Nursing Home,662.24, 19-Nov-2019
"1,447",Revenue,CAHD,Central - Bed Purchasing and Direct Payments,Permanent Nursing,Gracefields Nursing Home,3652.96, 19-Nov-2019
"1,448",Revenue,CAHD,South Glos Users in South Glos Homes,Permanent Nursing,Gracefields Nursing Home,662.24, 19-Nov-2019
"1,449",Revenue,CAHD,South Glos Users in South Glos Homes,Permanent Nursing,Gracefields Nursing Home,662.24, 19-Nov-2019
"1,450",Revenue,CAHD,South Glos Users in South Glos Homes,Permanent Nursing,Gracefields Nursing Home,662.24, 19-Nov-2019
"1,451",Revenue,CAHD,South - Bed Purchasing and Direct payments,Permanent Nursing,Gracefields Nursing Home,3652.96, 19-Nov-2019
"1,452",Revenue,CAHD,South Glos Users in South Glos Homes,Permanent Nursing,Gracefields Nursing Home,662.24, 19-Nov-2019
"1,453",Revenue,CAHD,South Glos Users in South Glos Homes,Permanent Nursing,Gracefields Nursing Home,662.24, 19-Nov-2019
"1,454",Revenue,CAHD,South Glos Users in South Glos Homes,Permanent Nursing,Gracefields Nursing Home,662.24, 19-Nov-2019
"1,455",Revenue,CAHD,South - Bed Purchasing and Direct payments,Permanent Nursing,Gracefields Nursing Home,3204.88, 19-Nov-2019
"1,456",Revenue,CAHD,South Glos Users in South Glos Homes,Permanent Nursing,Gracefields Nursing Home,662.24, 19-Nov-2019
"1,457",Revenue,CAHD,South - Bed Purchasing and Direct payments,Permanent Nursing,Gracefields Nursing Home,15965.61, 19-Nov-2019
"1,458",Revenue,CAHD,South - Bed Purchasing and Direct payments,Permanent Nursing,Gracefields Nursing Home,4027.36, 19-Nov-2019
"1,459",Revenue,CAHD,South Glos Users in South Glos Homes,Permanent Nursing,Gracefields Nursing Home,662.24, 19-Nov-2019
"1,460",Revenue,CAHD,South Glos Users in South Glos Homes,Permanent Nursing,Gracefields Nursing Home,662.24, 19-Nov-2019
"1,461",Revenue,CAHD,South - Bed Purchasing and Direct payments,Permanent Nursing,Gracefields Nursing Home,3229.20, 19-Nov-2019
"1,462",Revenue,CAHD,South Glos Users in South Glos Homes,Permanent Nursing,Gracefields Nursing Home,662.24, 19-Nov-2019
"1,463",Revenue,CAHD,South Glos Users in South Glos Homes,Permanent Nursing,Gracefields Nursing Home,662.24, 19-Nov-2019
"1,464",Revenue,CAHD,South Glos Users in South Glos Homes,Permanent Nursing,Gracefields Nursing Home,662.24, 19-Nov-2019
"1,465",Revenue,CAHD,South Glos Users in South Glos Homes,Permanent Nursing,Gracefields Nursing Home,1584.65, 19-Nov-2019
"1,466",Revenue,CAHD,South Glos Users in South Glos Homes,Permanent Nursing,Gracefields Nursing Home,662.24, 19-Nov-2019
"1,467",Revenue,CAHD,South Glos Users in South Glos Homes,Permanent Nursing,Gracefields Nursing Home,662.24, 19-Nov-2019
"1,468",Revenue,CAHD,South Glos Users in South Glos Homes,Permanent Nursing,Gracefields Nursing Home,662.24, 19-Nov-2019
"1,469",Revenue,CAHD,South Glos Users in South Glos Homes,Permanent Nursing,Gracefields Nursing Home,662.24, 19-Nov-2019
"1,470",Revenue,CAHD,South - Bed Purchasing and Direct payments,Permanent Nursing,Gracefields Nursing Home,3669.76, 19-Nov-2019
"1,471",Revenue,CAHD,South - Bed Purchasing and Direct payments,Permanent Nursing,Gracefields Nursing Home,1572.75, 19-Nov-2019
"1,472",Revenue,CAHD,South Glos Users in South Glos Homes,Permanent Nursing,Gracefields Nursing Home,662.24, 19-Nov-2019
"1,473",Revenue,CAHD,South Glos Users in South Glos Homes,Permanent Nursing,Gracefields Nursing Home,662.24, 19-Nov-2019
"1,474",Revenue,CAHD,South Glos Users in South Glos Homes,Permanent Nursing,Gracefields Nursing Home,662.24, 19-Nov-2019
"1,475",Revenue,CAHD,South Glos Users in South Glos Homes,Permanent Nursing,Gracefields Nursing Home,662.24, 19-Nov-2019
"1,476",Revenue,CAHD,South Glos Users in South Glos Homes,Permanent Nursing,Gracefields Nursing Home,662.24, 19-Nov-2019
"1,477",Revenue,CAHD,South Glos Users in South Glos Homes,Permanent Nursing,Gracefields Nursing Home,2169.05, 19-Nov-2019
"1,478",Revenue,CAHD,South Glos Users in South Glos Homes,Permanent Nursing,Gracefields Nursing Home,662.24, 19-Nov-2019
"1,479",Revenue,CAHD,South Glos Users in South Glos Homes,Permanent Nursing,Gracefields Nursing Home,662.24, 19-Nov-2019
"1,480",Revenue,CAHD,South Glos Users in South Glos Homes,Permanent Nursing,Gracefields Nursing Home,662.24, 19-Nov-2019
"1,481",Revenue,CAHD,South - Bed Purchasing and Direct payments,Permanent Nursing,Gracefields Nursing Home,2546.97, 19-Nov-2019
"1,482",Revenue,CAHD,South - Bed Purchasing and Direct payments,Fees & Charges Income - General,Gracefields Nursing Home,2674.32, 19-Nov-2019
"1,483",Revenue,CAHD,South - Bed Purchasing and Direct payments,Permanent Nursing,Gracefields Nursing Home,1018.79, 19-Nov-2019
"1,484",Revenue,CAHD,South - Bed Purchasing and Direct payments,Permanent Nursing,Gracefields Nursing Home,8532.35, 19-Nov-2019
"1,485",Revenue,CAHD,South - Bed Purchasing and Direct payments,Fees & Charges Income - General,Gracefields Nursing Home,1342.16, 19-Nov-2019
"1,486",Revenue,CAHD,South - Bed Purchasing and Direct payments,Permanent Nursing,Gracefields Nursing Home,3481.60, 19-Nov-2019
"1,487",Revenue,CAHD,South Glos Users in South Glos Homes,Permanent Nursing,Gracefields Nursing Home,662.24, 19-Nov-2019
"1,488",Revenue,CAHD,North - bed purchasing and direct  payments,Permanent Nursing,Gracefields Nursing Home,3789.76, 19-Nov-2019
"1,489",Revenue,CAHD,South - Bed Purchasing and Direct payments,Permanent Nursing,Gracefields Nursing Home,3652.96, 19-Nov-2019
"1,490",Revenue,CAHD,South - Bed Purchasing and Direct payments,Permanent Nursing,Gracefields Nursing Home,2551.96, 19-Nov-2019
"1,491",Revenue,CAHD,South Glos Users in South Glos Homes,Permanent Nursing,Gracefields Nursing Home,662.24, 19-Nov-2019
"1,492",Revenue,CAHD,South - Bed Purchasing and Direct payments,Permanent Nursing,Gracefields Nursing Home,3547.76, 19-Nov-2019
"1,493",Revenue,CAHD,South Glos Users in South Glos Homes,Permanent Nursing,Gracefields Nursing Home,662.24, 19-Nov-2019
"1,494",Revenue,CAHD,South Glos Users in South Glos Homes,Permanent Nursing,Gracefields Nursing Home,662.24, 19-Nov-2019
"1,495",Revenue,CAHD,South Glos Users in South Glos Homes,Permanent Nursing,Gracefields Nursing Home,3121.99, 19-Nov-2019
"1,496",Revenue,CAHD,South Glos Users in South Glos Homes,Permanent Nursing,Gracefields Nursing Home,662.24, 19-Nov-2019
"1,497",Revenue,CAHD,South Glos Users in South Glos Homes,Permanent Nursing,Gracefields Nursing Home,520.33, 19-Nov-2019
"1,498",Revenue,CAHD,South Glos Users in South Glos Homes,Permanent Nursing,Gracefields Nursing Home,662.24, 19-Nov-2019
"1,499",Revenue,CAHD,South Glos Users in South Glos Homes,Permanent Nursing,Gracefields Nursing Home,662.24, 19-Nov-2019
"1,500",Revenue,CAHD,North - bed purchasing and direct  payments,Permanent Residential,Greenacres,3300.00, 19-Nov-2019
"1,501",Revenue,CAHD,CSC - Residential Placements,Permanent Residential,Greenfields Adolecent Development Limited,20357.14, 08-Nov-2019
"1,502",Revenue,CAHD,CSC - Residential Placements,Permanent Residential,Greenfields Adolecent Development Limited,26527.14, 29-Nov-2019
"1,503",Revenue,CAHD,CSC - Residential Placements,Permanent Residential,Greenfields Adolecent Development Limited,21035.71, 29-Nov-2019
"1,504",Revenue,CAHD,Post 16 High Needs Placements,Other Private Contractors,GroundEd,5400.00, 26-Nov-2019
"1,505",Revenue,CAHD,Post 16 High Needs Placements,Other Private Contractors,GroundEd,32400.00, 21-Nov-2019
"1,506",Revenue,CAHD,North - S117,Permanent Residential,Grove View,7204.88, 19-Nov-2019
"1,507",Revenue,CAHD,South - Bed Purchasing and Direct payments,Permanent Residential,Gwendoline House,2600.00, 19-Nov-2019
"1,508",Revenue,CAHD,South - Bed Purchasing and Direct payments,Permanent Residential,Gwendoline House,2473.40, 19-Nov-2019
"1,509",Revenue,CAHD,South - Bed Purchasing and Direct payments,Permanent Residential,Gwendoline House,3250.00, 19-Nov-2019
"1,510",Revenue,CAHD,South - Bed Purchasing and Direct payments,Permanent Residential,Gwendoline House,2600.00, 19-Nov-2019
"1,511",Revenue,CAHD,South - Bed Purchasing and Direct payments,Permanent Residential,Gwendoline House,2600.00, 19-Nov-2019
"1,512",Revenue,CAHD,Supporting People Programme,Grants to Voluntary Bodies,Habinteg Housing Association,694.00, 01-Nov-2019
"1,513",Revenue,CAHD,Supporting People Programme,Grants to Voluntary Bodies,Habinteg Housing Association,694.00, 29-Nov-2019
"1,514",Revenue,CAHD,Early Years Inclusion Fund,Other Public Bodies,Hambrook Pre-School,2000.00, 01-Nov-2019
"1,515",Revenue,CAHD,Social Lettings Agency,Fees - General,Individual,13.13, 27-Nov-2019
"1,516",Revenue,CAHD,Social Lettings Agency,Other Supplies & Services,Individual,577.72, 27-Nov-2019
"1,517",Revenue,CAHD,NHS Health Checks,Other Small Contracts,Hanham Health,4117.00, 22-Nov-2019
"1,518",Revenue,CAHD,Sexual Health,Other Small Contracts,Hanham Health,724.50, 26-Nov-2019
"1,519",Revenue,CAHD,Sexual Health,Other Small Contracts,Hanham Health,2334.50, 26-Nov-2019
"1,520",Revenue,CAHD,Drug and Alcohol Programme,Other Small Contracts,Hanham Health,1928.50, 05-Nov-2019
"1,521",Revenue,CAHD,Sexual Health,Other Small Contracts,Hanham Health,1589.86, 26-Nov-2019
"1,522",Revenue,CAHD,Tobacco Control,Other Small Contracts,Hanham Health,670.00, 01-Nov-2019
"1,523",Revenue,CAHD,Early Years High Needs Support,Other Private Contractors,Hanham Toddlers Pre School,716.32, 22-Nov-2019
"1,524",Revenue,CAHD,CSC - Vinney Green Secure Unit,External Lecturers Fees,Individual,687.50, 28-Nov-2019
"1,525",Revenue,CAHD,EARLY YEARS DEPRIVATION PAYMENT,Preventative Assistance,Happy Days Day Nursery - Cheswick Village,3063.21, 25-Nov-2019
"1,526",Revenue,CAHD,Early Years Pupil Premium Grant,Preventative Assistance,Happy Days Day Nursery - Cheswick Village,824.15, 25-Nov-2019
"1,527",Revenue,CAHD,North - Community based support,Other Supplies & Services,HAS Technology Limited T/A CM2000,1610.00, 07-Nov-2019
"1,528",Revenue,CAHD,North - bed purchasing and direct  payments,Permanent Nursing,Hazelwood Gardens Nursing Home,2721.84, 19-Nov-2019
"1,529",Revenue,CAHD,North - bed purchasing and direct  payments,Permanent Nursing,Hazelwood Gardens Nursing Home,2343.48, 19-Nov-2019
"1,530",Revenue,CAHD,Central - Bed Purchasing and Direct Payments,Permanent Residential,Hc-One Ltd,2233.36, 19-Nov-2019
"1,531",Revenue,CAHD,Central - Bed Purchasing and Direct Payments,Permanent Residential,Hc-One Ltd,2277.92, 19-Nov-2019
"1,532",Revenue,CAHD,Central - Bed Purchasing and Direct Payments,Permanent Residential,Hc-One Ltd,2369.24, 19-Nov-2019
"1,533",Revenue,CAHD,Central - Bed Purchasing and Direct Payments,Permanent Nursing,Hc-One Ltd,2321.72, 19-Nov-2019
"1,534",Revenue,CAHD,North - bed purchasing and direct  payments,Respite Planned - Residential,Hc-One Ltd,10560.43, 19-Nov-2019
"1,535",Revenue,CAHD,North - bed purchasing and direct  payments,Respite Planned - Residential,Hc-One Ltd,2404.00, 19-Nov-2019
"1,536",Revenue,CAHD,North - bed purchasing and direct  payments,Permanent Nursing,Hc-One Ltd,2223.20, 19-Nov-2019
"1,537",Revenue,CAHD,North - bed purchasing and direct  payments,Respite Planned - Nursing,Hc-One Ltd,3537.76, 19-Nov-2019
"1,538",Revenue,CAHD,North - bed purchasing and direct  payments,Respite Planned - Nursing,Hc-One Ltd,2653.32, 19-Nov-2019
"1,539",Revenue,CAHD,North - bed purchasing and direct  payments,Permanent Nursing,Hc-One Ltd,2737.76, 19-Nov-2019
"1,540",Revenue,CAHD,North - bed purchasing and direct  payments,Permanent Residential,Hc-One Ltd,2264.52, 19-Nov-2019
"1,541",Revenue,CAHD,North - bed purchasing and direct  payments,Permanent Nursing,Head Office,2470.80, 19-Nov-2019
"1,542",Revenue,CAHD,North - bed purchasing and direct  payments,Permanent Nursing,Head Office,4554.08, 19-Nov-2019
"1,543",Revenue,CAHD,CSC - Residential Placements,Permanent Residential,Headway Adolescent Resources Limited,13600.00, 04-Nov-2019
"1,544",Revenue,CAHD,CSC - Residential Placements,Permanent Residential,Headway Adolescent Resources Limited,13600.00, 14-Nov-2019
"1,545",Revenue,CAHD,Central - Community based support,Day Care / Social Activities,Headway Bristol,564.00, 04-Nov-2019
"1,546",Revenue,CAHD,Central - Community based support,Other Small Contracts,Headway Bristol,473.76, 04-Nov-2019
"1,547",Revenue,CAHD,South - community based support,Day Care / Social Activities,Headway Bristol,135.36, 04-Nov-2019
"1,548",Revenue,CAHD,South - community based support,Other Small Contracts,Headway Bristol,270.72, 04-Nov-2019
"1,549",Revenue,CAHD,North - Community based support,Day Care / Social Activities,Headway Bristol,67.68, 04-Nov-2019
"1,550",Revenue,CAHD,Younger MH non-res purchasing,Day Care / Social Activities,Headway Bristol,45.12, 04-Nov-2019
"1,551",Revenue,CAHD,Central - Community based support,Day Care / Social Activities,Headway Bristol,564.00, 08-Nov-2019
"1,552",Revenue,CAHD,Central - Community based support,Other Small Contracts,Headway Bristol,676.80, 08-Nov-2019
"1,553",Revenue,CAHD,South - community based support,Day Care / Social Activities,Headway Bristol,135.36, 08-Nov-2019
"1,554",Revenue,CAHD,South - community based support,Other Small Contracts,Headway Bristol,270.72, 08-Nov-2019
"1,555",Revenue,CAHD,North - Community based support,Day Care / Social Activities,Headway Bristol,67.68, 08-Nov-2019
"1,556",Revenue,CAHD,North - Community based support,Other Small Contracts,Headway Bristol,90.24, 08-Nov-2019
"1,557",Revenue,CAHD,Younger MH non-res purchasing,Day Care / Social Activities,Headway Bristol,90.24, 08-Nov-2019
"1,558",Revenue,CAHD,Central - Community based support,Day Care / Social Activities,Headway Bristol,564.00, 18-Nov-2019
"1,559",Revenue,CAHD,Central - Community based support,Other Small Contracts,Headway Bristol,473.76, 18-Nov-2019
"1,560",Revenue,CAHD,South - community based support,Day Care / Social Activities,Headway Bristol,135.36, 18-Nov-2019
"1,561",Revenue,CAHD,South - community based support,Other Small Contracts,Headway Bristol,270.72, 18-Nov-2019
"1,562",Revenue,CAHD,North - Community based support,Day Care / Social Activities,Headway Bristol,67.68, 18-Nov-2019
"1,563",Revenue,CAHD,Younger MH non-res purchasing,Day Care / Social Activities,Headway Bristol,90.24, 18-Nov-2019
"1,564",Revenue,CAHD,Central - Community based support,Day Care / Social Activities,Headway Bristol,564.00, 25-Nov-2019
"1,565",Revenue,CAHD,Central - Community based support,Other Small Contracts,Headway Bristol,541.44, 25-Nov-2019
"1,566",Revenue,CAHD,South - community based support,Day Care / Social Activities,Headway Bristol,67.68, 25-Nov-2019
"1,567",Revenue,CAHD,South - community based support,Other Small Contracts,Headway Bristol,270.72, 25-Nov-2019
"1,568",Revenue,CAHD,North - Community based support,Day Care / Social Activities,Headway Bristol,67.68, 25-Nov-2019
"1,569",Revenue,CAHD,North - Community based support,Other Small Contracts,Headway Bristol,90.24, 25-Nov-2019
"1,570",Revenue,CAHD,Younger MH non-res purchasing,Day Care / Social Activities,Headway Bristol,90.24, 25-Nov-2019
"1,571",Revenue,CAHD,Hospital Tuition,Other Private Contractors,Heath House School Priory,525.00, 19-Nov-2019
"1,572",Revenue,CAHD,Hospital Tuition,Other Private Contractors,Heath House School Priory,613.00, 19-Nov-2019
"1,573",Revenue,CAHD,CSC - Legal Fees,Legal Fees,Hector Independent Assessments Ltd,2628.80, 15-Nov-2019
"1,574",Revenue,CAHD,South - community based support,Other Small Contracts,Helping Hands Homecare,1045.09, 26-Nov-2019
"1,575",Revenue,CAHD,Central - Community based support,Other Small Contracts,Helping Hands Homecare,1782.16, 22-Nov-2019
"1,576",Revenue,CAHD,South - community based support,Other Small Contracts,Helping Hands Homecare,586.52, 22-Nov-2019
"1,577",Revenue,CAHD,North - Community based support,Other Small Contracts,Helping Hands Homecare,2134.97, 22-Nov-2019
"1,578",Revenue,CAHD,Central - Community based support,Other Small Contracts,Helping Hands Homecare,1232.50, 22-Nov-2019
"1,579",Revenue,CAHD,South - community based support,Other Small Contracts,Helping Hands Homecare,666.93, 22-Nov-2019
"1,580",Revenue,CAHD,North - Community based support,Other Small Contracts,Helping Hands Homecare,2226.77, 22-Nov-2019
"1,581",Revenue,CAHD,Central - Community based support,Other Small Contracts,Helping Hands Homecare,1242.55, 22-Nov-2019
"1,582",Revenue,CAHD,South - community based support,Other Small Contracts,Helping Hands Homecare,581.79, 22-Nov-2019
"1,583",Revenue,CAHD,North - Community based support,Other Small Contracts,Helping Hands Homecare,2289.56, 22-Nov-2019
"1,584",Revenue,CAHD,Central - Community based support,Other Small Contracts,Helping Hands Homecare,1793.44, 22-Nov-2019
"1,585",Revenue,CAHD,South - community based support,Other Small Contracts,Helping Hands Homecare,591.25, 22-Nov-2019
"1,586",Revenue,CAHD,North - Community based support,Other Small Contracts,Helping Hands Homecare,1010.53, 22-Nov-2019
"1,587",Revenue,CAHD,S117 Placements PCT,Permanent Residential,Hesley Hall,19720.32, 19-Nov-2019
"1,588",Revenue,CAHD,Central - Bed Purchasing and Direct Payments,Permanent Residential,High Border Lodge,2142.20, 19-Nov-2019
"1,589",Revenue,CAHD,North - bed purchasing and direct  payments,Permanent Residential,High Border Lodge,2088.68, 19-Nov-2019
"1,590",Revenue,CAHD,CSC - Corporate Parenting,Other Supplies & Services,High Street Vouchers Ltd T/A Park Retail Ltd,809.00, 05-Nov-2019
"1,591",Revenue,CAHD,18-25 Year Olds,Supported Living,Hillcairnie House,3487.72, 19-Nov-2019
"1,592",Revenue,CAHD,South - community based support,Supported Living,Hillcairnie House,4610.56, 19-Nov-2019
"1,593",Revenue,CAHD,South - community based support,Supported Living,Hillcairnie House,2517.76, 19-Nov-2019
"1,594",Revenue,CAHD,South - community based support,Supported Living,Hillcairnie House,2577.92, 19-Nov-2019
"1,595",Revenue,CAHD,North - Community based support,Supported Living,Hillcairnie House,2577.92, 19-Nov-2019
"1,596",Revenue,CAHD,South - community based support,Supported Living,Hillcairnie House,4295.80, 19-Nov-2019
"1,597",Revenue,CAHD,South - community based support,Supported Living,Hillcairnie House,2577.92, 19-Nov-2019
"1,598",Revenue,CAHD,CSC - Residential Placements,Permanent Residential,Hillcrest Care Services Limited,20236.80, 14-Nov-2019
"1,599",Revenue,CAHD,CSC - Residential Placements,Permanent Residential,Hillcrest Care Services Limited,19584.00, 29-Nov-2019
"1,600",Revenue,CAHD,EARLY YEARS DEPRIVATION PAYMENT,Preventative Assistance,Hillsides Secret Garden Day Nursery,1152.40, 25-Nov-2019
"1,601",Revenue,CAHD,18-25 Year Olds,Permanent Residential,Hilltop Residential Home,8810.20, 19-Nov-2019
"1,602",Revenue,CAHD,Jointly Funded H&SC Packages,Permanent Residential,Hilltop Residential Home,5594.24, 19-Nov-2019
"1,603",Revenue,CAHD,North - bed purchasing and direct  payments,Permanent Residential,Holly Tree Cottage,8531.24, 19-Nov-2019
"1,604",Revenue,CAHD,Jointly Funded H&SC Packages,Permanent Residential,Holly Tree Cottage,2577.68, 19-Nov-2019
"1,605",Revenue,CAHD,Central - Bed Purchasing and Direct Payments,Permanent Nursing,Holly Villa,2153.16, 19-Nov-2019
"1,606",Revenue,CAHD,North - bed purchasing and direct  payments,Permanent Residential,Holly Villa,6914.29, 19-Nov-2019
"1,607",Revenue,CAHD,North - bed purchasing and direct  payments,Permanent Residential,Holly Villa,3520.00, 19-Nov-2019
"1,608",Revenue,CAHD,North - bed purchasing and direct  payments,Fees & Charges Income - General,Holly Villa,1118.46, 19-Nov-2019
"1,609",Revenue,CAHD,North - bed purchasing and direct  payments,Permanent Residential,Holmleigh Care Homes Ltd,4778.12, 19-Nov-2019
"1,610",Revenue,CAHD,Central - Bed Purchasing and Direct Payments,Permanent Residential,Holmleigh Care Homes Ltd,8903.60, 19-Nov-2019
"1,611",Revenue,CAHD,Jointly Funded H&SC Packages,Permanent Residential,Holmleigh Care Homes Ltd,4833.28, 19-Nov-2019
"1,612",Revenue,CAHD,South - Bed Purchasing and Direct payments,Permanent Residential,Holmleigh Care Homes Ltd,4564.24, 19-Nov-2019
"1,613",Revenue,CAHD,Jointly Funded H&SC Packages,Permanent Residential,Holmleigh Care Homes Ltd,1307.60, 19-Nov-2019
"1,614",Revenue,CAHD,18-25 Year Olds,Permanent Residential,Holmleigh Care Homes Ltd,15889.76, 19-Nov-2019
"1,615",Revenue,CAHD,Central - Community based support,Supported Living,Home Farm Trust Ltd  5-6 Brook Office Pa,2161.96, 19-Nov-2019
"1,616",Revenue,CAHD,18-25 Year Olds,Permanent Residential,Home From Home Care Ltd,9927.36, 19-Nov-2019
"1,617",Revenue,CAHD,Bed and Breakfast,Bed & Breakfast,Homes 4 All Ltd,925.40, 07-Nov-2019
"1,618",Revenue,CAHD,Bed and Breakfast,Bed & Breakfast,Homes 4 All Ltd,746.20, 07-Nov-2019
"1,619",Revenue,CAHD,Bed and Breakfast,Bed & Breakfast,Homes 4 All Ltd,746.20, 07-Nov-2019
"1,620",Revenue,CAHD,Bed and Breakfast,Bed & Breakfast,Homes 4 All Ltd,746.20, 11-Nov-2019
"1,621",Revenue,CAHD,Bed and Breakfast,Bed & Breakfast,Homes 4 All Ltd,746.20, 11-Nov-2019
"1,622",Revenue,CAHD,Bed and Breakfast,Bed & Breakfast,Homes 4 All Ltd,746.20, 18-Nov-2019
"1,623",Revenue,CAHD,Bed and Breakfast,Bed & Breakfast,Homes 4 All Ltd,746.20, 20-Nov-2019
"1,624",Revenue,CAHD,Supporting People Programme,Grants to Voluntary Bodies,Housing 21,658.00, 01-Nov-2019
"1,625",Revenue,CAHD,Supporting People Programme,Grants to Voluntary Bodies,Housing 21,999.00, 01-Nov-2019
"1,626",Revenue,CAHD,Supporting People Programme,Grants to Voluntary Bodies,Housing 21,658.00, 29-Nov-2019
"1,627",Revenue,CAHD,Supporting People Programme,Grants to Voluntary Bodies,Housing 21,999.00, 29-Nov-2019
"1,628",Revenue,CAHD,Extra Care Housing,Private & Voluntary Home Care,Housing 21,40507.75, 15-Nov-2019
"1,629",Revenue,CAHD,Extra Care Housing,Private & Voluntary Home Care,Housing 21,39365.75, 06-Nov-2019
"1,630",Revenue,CAHD,South - Bed Purchasing and Direct payments,Permanent Nursing,Hydon Hill,6437.72, 19-Nov-2019
"1,631",Revenue,CAHD,Future Bright,Fees - General,ICS Learn,653.67, 07-Nov-2019
"1,632",Revenue,CAHD,Information Systems - Software,Software Support & Maintenance,Idox Software Ltd,2500.00, 27-Nov-2019
"1,633",Revenue,CAHD,Schools Specific Grant Income,Other Supplies & Services,Impact Mentoring,675.00, 01-Nov-2019
"1,634",Revenue,CAHD,SEN High Needs - Not at School Base,Other Private Contractors,Impact Mentoring,450.00, 12-Nov-2019
"1,635",Revenue,CAHD,CSC - Section 17 0-25,Preventative Assistance,Impact Mentoring,2125.00, 27-Nov-2019
"1,636",Revenue,CAHD,CSC - Section 17 0-25,Preventative Assistance,Impact Mentoring,875.00, 25-Nov-2019
"1,637",Revenue,CAHD,18-25 Year Olds,Day Care / Social Activities,Impact Mentoring,1935.00, 13-Nov-2019
"1,638",Revenue,CAHD,CSC - Section 17 0-25,Preventative Assistance,Impact Mentoring,2000.00, 21-Nov-2019
"1,639",Revenue,CAHD,Independent Special Placements - Travel,Client Transport,Impact Mentoring,840.00, 26-Nov-2019
"1,640",Revenue,CAHD,Independent Special Placements - Travel,Client Transport,Impact Mentoring,900.00, 26-Nov-2019
"1,641",Revenue,CAHD,CSC - Section 17 0-25,Preventative Assistance,Impact Mentoring,2512.50, 25-Nov-2019
"1,642",Revenue,CAHD,Statemented Support Equipment,Educational Supplies & Equipment,Insight Direct (UK) Limited,715.00, 15-Nov-2019
"1,643",Revenue,CAHD,North - S117,Permanent Residential,Ivybank House Care Home,3256.32, 19-Nov-2019
"1,644",Revenue,CAHD,Social Lettings Agency,Fees - General,Individual,12.22, 11-Nov-2019
"1,645",Revenue,CAHD,Social Lettings Agency,Other Supplies & Services,Individual,529.04, 11-Nov-2019
"1,646",Revenue,CAHD,CSC - Professional Fees Foster Carers,Band 2 Foster Care,Individual,507.57, 08-Nov-2019
"1,647",Revenue,CAHD,CSC - Professional Fees Foster Carers,Band 2 Foster Care,Individual,627.00, 08-Nov-2019
"1,648",Revenue,CAHD,CSC - Professional Fees Foster Carers,Band 2 Foster Care,Individual,627.00, 15-Nov-2019
"1,649",Revenue,CAHD,CSC - Professional Fees Foster Carers,Band 2 Foster Care,Individual,627.00, 22-Nov-2019
"1,650",Revenue,CAHD,TSG Practice Placements,Training Expenses,Individual,500.00, 15-Nov-2019
"1,651",Revenue,CAHD,Social Lettings Agency,Fees - General,Individual,7.90, 01-Nov-2019
"1,652",Revenue,CAHD,Social Lettings Agency,Other Supplies & Services,Individual,609.24, 01-Nov-2019
"1,653",Revenue,CAHD,Social Lettings Agency,Fees - General,Individual,7.90, 29-Nov-2019
"1,654",Revenue,CAHD,Social Lettings Agency,Other Supplies & Services,Individual,609.24, 29-Nov-2019
"1,655",Revenue,CAHD,CSC - Ofsted Work,Consultants Fees,Individual,1250.00, 08-Nov-2019
"1,656",Revenue,CAHD,CSC - Ofsted Work,Consultants Fees,Individual,2450.00, 28-Nov-2019
"1,657",Revenue,CAHD,CSC - Legal Fees,Legal Fees,Individual,3350.00, 13-Nov-2019
"1,658",Revenue,CAHD,CSC - Legal Fees,Legal Fees,Individual,500.00, 01-Nov-2019
"1,659",Revenue,CAHD,Social Lettings Agency,Fees - General,Individual,12.93, 15-Nov-2019
"1,660",Revenue,CAHD,Social Lettings Agency,Other Supplies & Services,Individual,730.35, 15-Nov-2019
"1,661",Revenue,CAHD,ICES / NRS Contract,Other Transport Costs,John Lewis PLC,1085.00, 08-Nov-2019
"1,662",Revenue,CAHD,South - Bed Purchasing and Direct payments,Permanent Residential,Jonen House,5280.28, 19-Nov-2019
"1,663",Revenue,CAHD,CSC - No Recourse For Public Funds,"Provisions (Food, etc)",Joyce Soyemi,650.00, 01-Nov-2019
"1,664",Revenue,CAHD,CSC - No Recourse For Public Funds,"Provisions (Food, etc)",Joyce Soyemi,650.00, 29-Nov-2019
"1,665",Revenue,CAHD,Virtual School for Looked After Children,Consultants Fees,Judith Mee Education,3200.00, 28-Nov-2019
"1,666",Revenue,CAHD,Post 16 High Needs Placements,Other Private Contractors,Julian & Shani Payne T/A Peopleton Brook Farm,1476.00, 13-Nov-2019
"1,667",Revenue,CAHD,Post 16 High Needs Placements,Other Private Contractors,Julian & Shani Payne T/A Peopleton Brook Farm,1755.00, 13-Nov-2019
"1,668",Revenue,CAHD,Post 16 High Needs Placements,Other Private Contractors,Julian & Shani Payne T/A Peopleton Brook Farm,1710.00, 26-Nov-2019
"1,669",Revenue,CAHD,Post 16 High Needs Placements,Other Private Contractors,Julian & Shani Payne T/A Peopleton Brook Farm,2547.00, 13-Nov-2019
"1,670",Revenue,CAHD,Post 16 High Needs Placements,Other Private Contractors,Julian & Shani Payne T/A Peopleton Brook Farm,1755.00, 13-Nov-2019
"1,671",Revenue,CAHD,Post 16 High Needs Placements,Other Private Contractors,Julian & Shani Payne T/A Peopleton Brook Farm,1332.00, 13-Nov-2019
"1,672",Revenue,CAHD,Post 16 High Needs Placements,Other Private Contractors,Julian & Shani Payne T/A Peopleton Brook Farm,3216.00, 13-Nov-2019
"1,673",Revenue,CAHD,Post 16 High Needs Placements,Other Private Contractors,Julian & Shani Payne T/A Peopleton Brook Farm,1200.00, 13-Nov-2019
"1,674",Revenue,CAHD,Post 16 High Needs Placements,Other Private Contractors,Julian & Shani Payne T/A Peopleton Brook Farm,1368.00, 26-Nov-2019
"1,675",Revenue,CAHD,CSC - Fostering Carer Support,Project Funding,Julie Sawers T/A Flowerdaleplus Limited,554.70, 27-Nov-2019
"1,676",Revenue,CAHD,CSC - Care Leavers Independent Living,Adults - Family Support,Individual,900.00, 01-Nov-2019
"1,677",Revenue,CAHD,CSC - Ofsted Work,Consultants Fees,K J Harwood Limited,3550.00, 27-Nov-2019
"1,678",Revenue,CAHD,North - S117,Permanent Residential,Kahala Court,2921.68, 19-Nov-2019
"1,679",Revenue,CAHD,Schools Specific Grant Income,Other Public Bodies,Katharine Lady Berkeley School,780.00, 22-Nov-2019
"1,680",Revenue,CAHD,CAHA - Complaints and FOI,Complaints External Expenses,Individual,3037.42, 18-Nov-2019
"1,681",Revenue,CAHD,CAHA - Complaints and FOI,Complaints External Expenses,Individual,2445.31, 08-Nov-2019
"1,682",Revenue,CAHD,NHS Health Checks,Other Small Contracts,Kennedy Way Surgery,920.00, 22-Nov-2019
"1,683",Revenue,CAHD,Sexual Health,Other Small Contracts,Kennedy Way Surgery,563.50, 26-Nov-2019
"1,684",Revenue,CAHD,Drug and Alcohol Programme,Other Small Contracts,Kennedy Way Surgery,1421.00, 05-Nov-2019
"1,685",Revenue,CAHD,Sexual Health,Other Small Contracts,Kennedy Way Surgery,2322.82, 26-Nov-2019
"1,686",Revenue,CAHD,Tobacco Control,Other Small Contracts,Kennedy Way Surgery,560.00, 01-Nov-2019
"1,687",Revenue,CAHD,Central - Community based support,Other Small Contracts,Kensington Community Care,1329.13, 01-Nov-2019
"1,688",Revenue,CAHD,South - community based support,Other Small Contracts,Kensington Community Care,2705.56, 01-Nov-2019
"1,689",Revenue,CAHD,Central - Community based support,Other Small Contracts,Kensington Community Care,1106.82, 13-Nov-2019
"1,690",Revenue,CAHD,South - community based support,Other Small Contracts,Kensington Community Care,2752.86, 13-Nov-2019
"1,691",Revenue,CAHD,Central - Community based support,Other Small Contracts,Kensington Community Care,1310.21, 14-Nov-2019
"1,692",Revenue,CAHD,South - community based support,Other Small Contracts,Kensington Community Care,2726.79, 14-Nov-2019
"1,693",Revenue,CAHD,Central - Community based support,Other Small Contracts,Kensington Community Care,1144.66, 15-Nov-2019
"1,694",Revenue,CAHD,South - community based support,Other Small Contracts,Kensington Community Care,2038.63, 15-Nov-2019
"1,695",Revenue,CAHD,Central - Community based support,Other Small Contracts,Kensington Community Care,1173.04, 27-Nov-2019
"1,696",Revenue,CAHD,South - community based support,Other Small Contracts,Kensington Community Care,2019.71, 27-Nov-2019
"1,697",Revenue,CAHD,South - Bed Purchasing and Direct payments,Permanent Residential,Kenver House Residential Home,2570.12, 19-Nov-2019
"1,698",Revenue,CAHD,South - Bed Purchasing and Direct payments,Permanent Residential,Kenver House Residential Home,2570.12, 19-Nov-2019
"1,699",Revenue,CAHD,South - Bed Purchasing and Direct payments,Respite Planned - Residential,Kenver House Residential Home,2250.00, 19-Nov-2019
"1,700",Revenue,CAHD,South - Bed Purchasing and Direct payments,Respite Planned - Residential,Kenver House Residential Home,2250.00, 19-Nov-2019
"1,701",Revenue,CAHD,South - Bed Purchasing and Direct payments,Permanent Residential,Kenver House Residential Home,2570.12, 19-Nov-2019
"1,702",Revenue,CAHD,South - Bed Purchasing and Direct payments,Permanent Residential,Kenver House Residential Home,2727.12, 19-Nov-2019
"1,703",Revenue,CAHD,South - Bed Purchasing and Direct payments,Permanent Residential,Kenver House Residential Home,3072.00, 19-Nov-2019
"1,704",Revenue,CAHD,North - bed purchasing and direct  payments,Permanent Residential,Kenver House Residential Home,3000.00, 19-Nov-2019
"1,705",Revenue,CAHD,South - Bed Purchasing and Direct payments,Permanent Residential,Kenver House Residential Home,3072.00, 19-Nov-2019
"1,706",Revenue,CAHD,Central - Bed Purchasing and Direct Payments,Respite Planned - Residential,Kenver House Residential Home,3000.00, 19-Nov-2019
"1,707",Revenue,CAHD,North - bed purchasing and direct  payments,Permanent Residential,Kenver House Residential Home,5250.00, 19-Nov-2019
"1,708",Revenue,CAHD,North - bed purchasing and direct  payments,Permanent Residential,Kenver House Residential Home,3000.00, 19-Nov-2019
"1,709",Revenue,CAHD,North - bed purchasing and direct  payments,Fees & Charges Income - General,Kenver House Residential Home,976.11, 19-Nov-2019
"1,710",Revenue,CAHD,North - bed purchasing and direct  payments,Fees & Charges Income - General,Kenver House Residential Home,1287.36, 19-Nov-2019
"1,711",Revenue,CAHD,South - Bed Purchasing and Direct payments,Permanent Residential,Kenver House Residential Home,2949.12, 19-Nov-2019
"1,712",Revenue,CAHD,Central - Bed Purchasing and Direct Payments,Permanent Residential,Kenver House Residential Home,3000.00, 19-Nov-2019
"1,713",Revenue,CAHD,CSC - Ofsted Work,Consultants Fees,KEOM Consulting Limited,4330.40, 20-Nov-2019
"1,714",Revenue,CAHD,CSC - Ofsted Work,Consultants Fees,KEOM Consulting Limited,5595.60, 20-Nov-2019
"1,715",Revenue,CAHD,CSC - Legal Fees,Legal Fees,Individual,500.00, 14-Nov-2019
"1,716",Revenue,CAHD,CSC - Legal Fees,Legal Fees,Individual,600.00, 07-Nov-2019
"1,717",Revenue,CAHD,CSC - Care Leavers Independent Living,Independent Living,Key2 Futures Limited,2237.15, 08-Nov-2019
"1,718",Revenue,CAHD,CSC - Care Leavers Independent Living,Independent Living,Key2 Futures Limited,13422.90, 13-Nov-2019
"1,719",Revenue,CAHD,CSC - Care Leavers Independent Living,Adults - Family Support,Key2 Futures Limited,2512.86, 29-Nov-2019
"1,720",Revenue,CAHD,CSC - Care Leavers Independent Living,Adults - Family Support,Key2 Futures Limited,3082.33, 29-Nov-2019
"1,721",Revenue,CAHD,CSC - Care Leavers Independent Living,Adults - Family Support,Key2 Futures Limited,3082.33, 29-Nov-2019
"1,722",Revenue,CAHD,CSC - Care Leavers Independent Living,Adults - Family Support,Key2 Futures Limited,3082.33, 29-Nov-2019
"1,723",Revenue,CAHD,CSC - Care Leavers Independent Living,Adults - Family Support,Key2 Futures Limited,3082.29, 29-Nov-2019
"1,724",Revenue,CAHD,CSC - Care Leavers Independent Living,Independent Living,Key2 Futures Limited,13870.29, 29-Nov-2019
"1,725",Revenue,CAHD,Supporting People Programme,Grants to Voluntary Bodies,Keyring Living Support Networks,3118.00, 01-Nov-2019
"1,726",Revenue,CAHD,Supporting People Programme,Grants to Voluntary Bodies,Keyring Living Support Networks,3118.00, 29-Nov-2019
"1,727",Revenue,CAHD,Younger MH non-res purchasing,Supported Living,Keystone Mental Health Services Limited,599.92, 19-Nov-2019
"1,728",Revenue,CAHD,Younger MH non-res purchasing,Other Small Contracts,Keystones Mental Health Support Services LTD,652.32, 19-Nov-2019
"1,729",Revenue,CAHD,Younger MH non-res purchasing,Other Small Contracts,Keystones Mental Health Support Services LTD,652.32, 20-Nov-2019
"1,730",Revenue,CAHD,Children & Young People�s Health,Operational Equipment,Kid Rapt Limited,530.35, 08-Nov-2019
